{"text_format":"1","workbook":"xlsx","n_sheets":7,"sheets":["Macros","GE URLs","Statement of Earnings","Balance Sheet","Cash Flow","Amazon Financial Statements","Sheet2"],"not_rendered":{"charts":0,"images":1,"macros":1,"external_links":1,"defined_names":42,"comments":0,"pivot_tables":0},"unopened":[],"bounds":{"document_bytes":16777216,"sheet_cells":100000,"rows_first":2000,"rows_last":500,"rows_between":2000,"halvings":0,"cell_chars":16384,"cell_head_chars":4096},"cells_cut":0,"cells_raw":0,"read":"whole","date_system":"1900"}

{"sheet":"Macros","index":0,"n_rows":67,"n_cols":17,"rows_kept":67,"cut":false,"hidden":false,"merged":[]}
[null,null,"Debug Test",null,false]
[]
[null,null,"https://www.sec.gov/",null,null,null,null,null,null,null,null,null,null,null,null,null,"SHIFT, CNTL, I"]
[]
[null,null,"Amazon",null,1018724,"company"]
[null,null,"Year",null,"17","year"]
[null,null,"Number",null,55,"filing "]
[null,null,"Number Text",null,{"$f":"TEXT(E7,\"000000\")","v":"000055"},"filing_no",null,null,null,null,null,null,null,null,null,null,"Shift, CNTL, C"]
[]
[null,null,"start filing",null,1,"start filing"]
[null,null,"end filing",null,160,"end filing"]
[]
[null,null,"Start Year",null,"17","start",null,"Download Type",null,"10-K and 10-Q",{"$f":"MATCH(J13,D64:D67,0)","v":3},null,null,null,null,null,"Shift, CNTL, B"]
[null,null,"End Year",null,"20","end"]
[]
[null,null,"C:\\Users\\edwar\\Documents\\",null,null,null,null,"output folder"]
[]
[null,null,{"$f":"C31&E5&\"/\"&\"000\"&E5&E6&E8&\"/Financial_Report.xlsx\"","v":"https://www.sec.gov/Archives/edgar/data/1018724/000101872417000055/Financial_Report.xlsx"},null,null,null,null,null,null,null,null,null,null,null,null,null,"SEC Read GE.xlsm"]
[null,null,null,null,null,null,null,null,null,null,null,null,null,null,null,null,{"$f":"active_book()","v":"SEC Read GE.xlsm"}]
[null,null,"https://www.sec.gov/Archives/edgar/data/1018724/000101872417000011/Financial_Report.xlsx"]
[]
[]
[]
[null,null,"https://www.sec.gov/Archives/edgar/data/320193/000032019317000070/Financial_Report.xlsx"]
[]
[]
[]
[null,null,"URL's for SEC 10K for Amazon"]
[]
[null,null,"https://www.sec.gov/Archives/edgar/data/320193/000032019320000010/Financial_Report.xlsx"]
[null,null,"https://www.sec.gov/Archives/edgar/data/"]
[null,null,"https://www.sec.gov/Archives/edgar/data/320193/0000320193"]
[null,null,"https://www.sec.gov/Archives/edgar/data/320193/000032019320"]
[null,null,"https://www.sec.gov/Archives/edgar/data/320193/000032019320000010/Financial_Report.xlsx"]
[null,null,"https://www.sec.gov/Archives/edgar/data/320193/000032019319000076/Financial_Report.xlsx"]
[]
[null,null,"https://www.sec.gov/Archives/edgar/data/320193/000119312509153165/Financial_Report.xls",null,null,null,null,null,null,null,null,null,"2009 10-K"]
[null,null,"https://www.sec.gov/Archives/edgar/data/320193/000119312510238044/Financial_Report.xls"]
[null,null,"https://www.sec.gov/Archives/edgar/data/320193/000119312511282113/Financial_Report.xls"]
[null,null,"https://www.sec.gov/Archives/edgar/data/320193/000119312512444068/Financial_Report.xls"]
[null,null,"https://www.sec.gov/Archives/edgar/data/320193/000119312513416534/Financial_Report.xlsx"]
[null,null,"https://www.sec.gov/Archives/edgar/data/320193/000119312514383437/Financial_Report.xlsx"]
[null,null,"https://www.sec.gov/Archives/edgar/data/320193/000119312515356351/Financial_Report.xlsx"]
[]
[null,null,"https://www.sec.gov/Archives/edgar/data/320193/000162828016020309/Financial_Report.xlsx"]
[]
[null,null,"https://www.sec.gov/Archives/edgar/data/320193/000032019317000070/Financial_Report.xlsx"]
[]
[null,null,"https://www.sec.gov/Archives/edgar/data/320193/000032019320000010/Financial_Report.xlsx"]
[]
[null,null,"https://www.sec.gov/Archives/edgar/data/1018724/000101872419000004/Financial_Report.xlsx",null,null,null,null,null,null,null,null,null,1018724]
[null,null,"https://www.sec.gov/Archives/edgar/data/1018724/000101872417000011/Financial_Report.xlsx"]
[null,null,"https://www.sec.gov/Archives/edgar/data/1018724/000101872418000005/Financial_Report.xlsx"]
[null,null,"https://www.sec.gov/Archives/edgar/data/1018724/000101872417000011/Financial_Report.xlsx"]
[null,null,"https://www.sec.gov/Archives/edgar/data/1018724/000101872420000004/Financial_Report.xlsx"]
[null,null,"https://www.sec.gov/Archives/edgar/data/1018724/000119312512032846/Financial_Report.xls"]
[]
[]
[]
[null,null,"https://www.sec.gov/Archives/edgar/data/320193/000119312509153165/Financial_Report.xls"]
[null,null,"https://www.sec.gov/Archives/edgar/data/320193/000119312509153165/Financial_Report.xls"]
[]
[]
[null,null,null,"10-K"]
[null,null,null,"10-Q"]
[null,null,null,"10-K and 10-Q"]
[null,null,null,"All"]

{"sheet":"GE URLs","index":1,"n_rows":24,"n_cols":16,"rows_kept":24,"cut":false,"hidden":false,"merged":[]}
[]
[null,null,null,null,null,null,null,null,null,null,null,null,null,null,null,"You can collect the 10k's from the SEC website"]
[null,null,{"$f":"output_folder","v":"C:\\Users\\edwar\\Documents\\"},null,null,null,"output folder"]
[null,null,"Company Name",null,"GE",null,null,null,null,null,null,null,null,null,null,"https://www.sec.gov/"]
[]
[null,null,"Year Number",null,14]
[]
[1,null,"2009 10-K",null,"https://www.sec.gov/Archives/edgar/data/40545/000004054510000010/Financial_Report.xls"]
[2,null,"2010 10-K",null,"https://www.sec.gov/Archives/edgar/data/40545/000004054510000010/Financial_Report.xls"]
[3,null,"2011 10-K",null,"https://www.sec.gov/Archives/edgar/data/40545/000119312511047479/Financial_Report.xls"]
[4,null,"2012 10-K",null,"https://www.sec.gov/Archives/edgar/data/40545/000004054512000016/Financial_Report.xls"]
[5,null,"2013 10-K",null,"https://www.sec.gov/Archives/edgar/data/40545/000004054513000036/Financial_Report.xls"]
[6,null,"2014 10-K",null,"https://www.sec.gov/Archives/edgar/data/40545/000004054515000030/Financial_Report.xlsx"]
[7,null,"2015 10-K",null,"https://www.sec.gov/Archives/edgar/data/40545/000004054515000030/Financial_Report.xlsx"]
[8,null,"2016 10-K",null,"https://www.sec.gov/Archives/edgar/data/40545/000004054516000145/Financial_Report.xlsx"]
[9,null,"2017 10-K",null,"https://www.sec.gov/Archives/edgar/data/40545/000004054517000010/Financial_Report.xlsx"]
[10,null,"2018 10-K",null,"https://www.sec.gov/Archives/edgar/data/40545/000004054518000014/Financial_Report.xlsx"]
[11,null,"2019 10-K",null,"https://www.sec.gov/Archives/edgar/data/40545/000004054519000014/Financial_Report.xlsx"]
[12,null,"2020 10-K",null,"https://www.sec.gov/Archives/edgar/data/40545/000004054520000009/Financial_Report.xlsx"]
[13,null,"2021 10-K",null,"https://www.sec.gov/Archives/edgar/data/40545/000004054521000011/Financial_Report.xlsx"]
[14,null,"2022 10-K",null,"https://www.sec.gov/Archives/edgar/data/40545/000004054522000008/Financial_Report.xlsx"]
[]
[]
[null,null,{"$f":"INDEX(C8:C21,$E$6)","v":"2022 10-K"},null,{"$f":"INDEX(E8:E21,$E$6)","v":"https://www.sec.gov/Archives/edgar/data/40545/000004054522000008/Financial_Report.xlsx"},null,null,null,null,null,null,null,null,null,"old_url"]

{"sheet":"Statement of Earnings","index":2,"n_rows":197,"n_cols":45,"rows_kept":197,"cut":false,"hidden":false,"merged":[]}
["Statement of Earnings (USD $)",null,null,null,"Statement of Earnings (USD  $)","12 Months Ended",null,null,"Statement of Earnings (USD $)","12 Months Ended",null,null,"Statement of Earnings (USD $)","12 Months Ended",null,null,"Statement of Earnings (USD $)","12 Months Ended",null,null,"Statement of Earnings (USD $)","12 Months Ended",null,null,"Statement of Earnings - USD ($) in Millions","Statement of Earnings - USD ($) in Millions","12 Months Ended",null,null,"STATEMENT OF EARNINGS (LOSS) - USD ($) in Millions","12 Months Ended",null,null,"STATEMENT OF EARNINGS (LOSS) - USD ($) in Millions","12 Months Ended",null,null,"STATEMENT OF EARNINGS (LOSS) - USD ($) in Millions","12 Months Ended",null,null,"STATEMENT OF EARNINGS (LOSS) - USD ($) in Millions","12 Months Ended"]
["In Millions","12 Months Ended\r\nDec. 31, 2009\r\n","12 Months Ended\r\nDec. 31, 2008\r\n","12 Months Ended\r\nDec. 31, 2007\r\n","In Millions, except Per Share data","Dec. 31, 2010","Dec. 31, 2009","Dec. 31, 2008","In Millions, except Per Share data, unless otherwise specified","Dec. 31, 2011","Dec. 31, 2010","Dec. 31, 2009","In Millions, except Per Share data, unless otherwise specified","Dec. 31, 2012","Dec. 31, 2011","Dec. 31, 2010","In Millions, except Per Share data, unless otherwise specified","Dec. 31, 2014","Dec. 31, 2013","Dec. 31, 2012","In Millions, except Per Share data, unless otherwise specified","Dec. 31, 2014","Dec. 31, 2013","Dec. 31, 2012",null,null,"Dec. 31, 2016","Dec. 31, 2015","Dec. 31, 2014",null,"Dec. 31, 2017","Dec. 31, 2016","Dec. 31, 2015",null,"Dec. 31, 2018","Dec. 31, 2017","Dec. 31, 2016",null,"Dec. 31, 2019","Dec. 31, 2018","Dec. 31, 2017",null,"Dec. 31, 2021","Dec. 31, 2020","Dec. 31, 2019"]
["Revenues",null,null,null,"Revenues",null,null,null,"Revenues",null,null,null,"Revenues and other income",null,null,null,"Revenues and other income",null,null,null,"Revenues and other income",null,null,null,"Revenues and other income","Revenues and other income",null,null,null,"Revenues and other income",null,null,null,"Revenues",null,null,null,"GE Capital revenues from services",7728,8072,7337,"Revenues"]
["Sales of goods",65068,69100,60670,"Sales of goods",60812,65067,69100,"Sales of goods",66875,60812,65067,"Sales of goods",72991,66875,60811,"Sales of goods",76568,71873,72991,"Sales of goods",76568,71873,72991,"Sales of goods","Sales of goods",75414,74510,76568,"Sales of goods",75641,75414,74510,"Sales",113543,110968,110171,"Total revenues (Note 26)",95214,97012,99279,"Insurance revenues (Note 11)",3106,2865,2802]
["Sales of services",38709,43669,38856,"Sales of services",39625,38710,43669,"Sales of services",27648,39625,38710,"Sales of services",27158,27648,39625,"Sales of services",30190,28669,27158,"Sales of services",30190,28669,27158,"Sales of services","Sales of services",34976,31298,30190,"Sales of services",37551,34976,31298,"GE Capital revenues from services",8072,7276,9297,"Cost of goods and services",70029,72818,null,"Total revenues (Note 23)",74196,75833,90221]
["Other income (Note 17)",1006,1586,3019,"Other income (Note 17)",1151,1006,1586,"Other income (Note 17)",5063,1151,1006,"Other income (Note 17)",2563,5064,1151,"Other income (Note 17)",778,3108,2563,"Other income (Note 17)",778,3108,2563,"Other income (Note 17)","Other income (Note 17)",4005,2227,778,"Other income (Note 17)",1625,4005,2227,"Total revenues (Note 9)",121615,118243,119469,"Selling, general and administrative expenses",13949,14643,14257,"Costs and expenses"]
["GECS earnings from continuing operations",0,0,0,"GECS earnings from continuing operations",null,null,null,"GECS earnings from continuing operations",0,0,0,"GECC earnings from continuing operations",0,0,0,"GECC earnings from continuing operations",0,0,0,"GECC earnings from continuing operations",0,0,0,"GE Capital earnings from continuing operations","GE Capital earnings (loss) from continuing operations",0,0,0,"GE Capital earnings (loss) from continuing operations",0,0,0,"Costs and expenses",null,null,null,"Interest and other financial charges",4227,4766,4655,"Selling, general and administrative expenses",11707,12592,13806]
["GECS revenues from services (Note 18)",52000,68160,69943,"GECS revenues from services (Note 18)",48623,50495,67226,"GECS revenues from services (Note 18)",47714,48005,49655,"GECC revenues from services (Note 18)",44647,47701,47980,"GECC revenues from services (Note 18)",41053,42395,43972,"GECC revenues from services (Note 18)",41053,42395,43972,"GE Capital revenues from services","GE Capital revenues from services",9297,9350,9648,"GE Capital revenues from services",7276,9297,9350,"Selling, general and administrative expenses",18111,17569,17756,"Insurance losses and annuity benefits (Note 12)",3294,2790,12168,"Research and development",2497,2565,3118]
["Total revenues",156783,182515,172488,"Total revenues",150211,155278,181581,"Total revenues",147300,149593,154438,"Total revenues and other income",147359,147288,149567,"Total revenues and other income",148589,146045,146684,"Total revenues and other income",148589,146045,146684,"Total revenues and other income","Total revenues and other income",123693,117386,117184,"Total revenues and other income",122092,123693,117386,"Interest and other financial charges",5059,4869,5025,"Goodwill impairments (Note 8)",1486,22136,2550,"Interest and other financial charges",1876,2068,2927]
["Costs and expenses (Note 19)",null,null,null,"Costs and expenses (Note 19)",null,null,null,"Costs and expenses (Note 19)",null,null,null,"Costs and expenses (Note 19)",null,null,null,"Costs and expenses (Note 19)",null,null,null,"Costs and expenses (Note 19)",null,null,null,"Costs and expenses","Costs and expenses (Note 27)",null,null,null,"Costs and expenses (Note 25)",null,null,null,"Investment contracts, insurance losses and insurance annuity benefits",2790,12168,2797,"Non-operating benefit costs",2844,2753,2423,"Debt extinguishment costs (Note 10)",6524,301,256]
["Cost of goods sold",50580,54602,47309,"Cost of goods sold",46005,50580,54602,"Cost of goods sold",51455,46005,50580,"Cost of goods sold",56785,51455,45998,"Cost of goods sold",61257,57867,56785,"Cost of goods sold",61257,57867,56785,"Cost of goods sold","Cost of goods sold",62440,59905,61257,"Cost of goods sold",64328,62440,59905,"Goodwill impairments (Note 8)",22136,2550,0,"Other costs and expenses",458,414,1060,"Insurance losses and annuity benefits (Note 11)",2283,2397,3294]
["Cost of services sold",25341,29170,25816,"Cost of services sold",25708,25341,29170,"Cost of services sold",16823,25708,25341,"Cost of services sold",17525,16823,25715,"Cost of services sold",20054,19274,17525,"Cost of services sold",20054,19274,17525,"Cost of services sold","Cost of services sold",25043,22788,22447,"Cost of services sold",27606,25043,22788,"Non-operating benefit costs",2777,2399,2365,"Total costs and expenses",96287,120320,112707,"Goodwill impairments (Note 7)",0,877,1486]
["Interest and other financial charges",18769,26209,23762,"Interest and other financial charges",15983,18309,25758,"Interest and other financial charges",14545,15553,17697,"Interest and other financial charges",12508,14528,15537,"Interest and other financial charges",9482,10116,12407,"Interest and other financial charges",9482,10116,12407,"Selling, general and administrative expenses","Selling, general and administrative expenses",18377,17831,16848,"Selling, general and administrative expenses",18280,18377,17831,"Other costs and expenses",464,1082,982,"Other income (Note 19)",2222,2321,2083,"Non-operating benefit costs",1782,2430,2839]
["Investment contracts, insurance losses and insurance annuity benefits",3017,3213,3469,"Investment contracts, insurance losses and insurance annuity benefits",3012,3017,3213,"Investment contracts, insurance losses and insurance annuity benefits",2912,3012,3017,"Investment contracts, insurance losses and insurance annuity benefits",2857,2912,3012,"Investment contracts, insurance losses and insurance annuity benefits",2548,2676,2857,"Investment contracts, insurance losses and insurance annuity benefits",2548,2676,2857,"Interest and other financial charges","Interest and other financial charges",5025,3463,2723,"Interest and other financial charges",4869,5025,3463,"Total costs and expenses",144008,131520,116577,"GE Capital earnings (loss) from continuing operations",0,0,0,"Other costs and expenses",136,159,176]
["Provision for losses on financing receivables (Note 6)",10928,7518,4431,"Provision for losses on financing receivables (Notes 6 and 23)",7191,10627,7233,"Provision for losses on financing receivables (Notes 6 and 23)",4083,7176,10585,"Provision for losses on financing receivables (Notes 6 and 23)",3891,3951,7085,"Provision for losses on financing receivables (Note 6)",3993,4818,3832,"Provision for losses on financing receivables (Note 6)",3993,4818,3832,"Investment contracts, insurance losses and insurance annuity benefits","Investment contracts, insurance losses and insurance annuity benefits",2797,2605,2530,"Investment contracts, insurance losses and insurance annuity benefits",12168,2797,2605,"Other income (Note 18)",2259,2126,4140,"Earnings (loss) from continuing operations before income taxes",1149,-20987,-11345,"Total costs and expenses",80702,81259,92754]
["Other costs and expenses",37804,42021,40173,"Other costs and expenses",38104,37409,41835,"Other costs and expenses",37384,38054,37354,"Other costs and expenses",36387,37362,38033,"Other costs and expenses",34026,35143,35897,"Other costs and expenses",34026,35143,35897,"Other costs and expenses","Other costs and expenses",982,2608,1115,"Other costs and expenses",3632,982,2608,"GE Capital earnings (loss) from continuing operations",0,0,0,"Benefit (provision) for income taxes (Note 15)",-726,-93,2808,"Other income (Note 18)",2823,11396,2479]
["Total costs and expenses",146439,162733,144960,"Total costs and expenses",136003,145283,161811,"Total costs and expenses",127202,135508,144574,"Total costs and expenses",129953,127031,135380,"Total costs and expenses",131360,129894,129303,"Total costs and expenses",131360,129894,129303,"Total costs and expenses","Total costs and expenses",114663,109200,106921,"Total costs and expenses",130883,114663,109200,"Earnings (loss) from continuing operations before income taxes",-20134,-11151,7031,"Earnings (loss) from continuing operations",423,-21080,-8536,"Earnings (loss) from continuing operations before income taxes",-3683,5970,-54]
["Earnings (loss) from continuing operations before income taxes",10344,19782,27528,"Earnings (loss) from continuing operations before income taxes",14208,9995,19770,"Earnings (loss) from continuing operations before income taxes",20098,14085,9864,"Earnings (loss) from continuing operations before income taxes",17406,20257,14187,"Earnings from continuing operations before income taxes",17229,16151,17381,"Earnings from continuing operations before income taxes",17229,16151,17381,"Earnings (loss) from continuing operations before income taxes","Earnings (loss) from continuing operations before income taxes",9030,8186,10263,"Earnings (loss) from continuing operations before income taxes",-8791,9030,8186,"Benefit (provision) for income taxes (Note 14)",-583,2611,1133,"Earnings (loss) from discontinued operations, net of taxes (Note 2)",-5335,-1363,-312,"Benefit (provision) for income taxes (Note 14)",286,487,-552]
["Benefit (provision) for income taxes (Note 14)",1090,-1052,-4155,"Benefit (provision) for income taxes (Note 14)",-1050,1148,-1102,"Benefit (provision) for income taxes (Note 14)",-5732,-1033,1142,"Benefit (provision) for income taxes (Note 14)",-2504,-5738,-1039,"Benefit (provision) for income taxes (Note 14)",-1772,-676,-2534,"Benefit (provision) for income taxes (Note 14)",-1772,-676,-2534,"Benefit (provision) for income taxes","Benefit (provision) for income taxes (Note 14)",464,-6485,-773,"Benefit (provision) for income taxes (Note 13)",3043,464,-6485,"Earnings (loss) from continuing operations",-20717,-8540,8165,"Net earnings (loss)",-4912,-22443,-8849,"Earnings (loss) from continuing operations",-3396,6457,-606]
["Earnings from continuing operations",11434,18730,23373,"Earnings from continuing operations",13158,11143,18668,"Earnings from continuing operations",14366,13052,11006,"Earnings from continuing operations",14902,14519,13148,"Earnings from continuing operations",15457,15475,14847,"Earnings from continuing operations",15457,15475,14847,"Earnings (loss) from continuing operations","Earnings (loss) from continuing operations",9494,1700,9490,"Earnings (loss) from continuing operations",-5748,9494,1700,"Earnings (loss) from discontinued operations, net of taxes (Note 2)",-1726,-309,-954,"Less net earnings (loss) attributable to noncontrolling interests",66,-89,-365,"Earnings (loss) from discontinued operations, net of taxes (Note 2)",-3195,-911,-4306]
["Loss from discontinued operations, net of taxes (Note 2)",-193,-679,-249,"Earnings (loss) from discontinued operations, net of taxes (Note 2)",-979,82,-617,"Earnings (loss) from discontinued operations, net of taxes (Note 2)",77,-873,219,"Earnings (loss) from discontinued operations, net of taxes (Note 2)",-1038,-76,-969,"Earnings (loss) from discontinued operations, net of taxes (Note 2)",-112,-2120,-983,"Earnings (loss) from discontinued operations, net of taxes (Note 2)",-112,-2120,-983,"Earnings (loss) from discontinued operations, net of taxes (Note 2)","Earnings (loss) from discontinued operations, net of taxes (Note 2)",-954,-7495,5855,"Earnings (loss) from discontinued operations, net of taxes (Note 2)",-309,-954,-7495,"Net earnings (loss)",-22443,-8849,7211,"Net earnings (loss) attributable to the Company",-4979,-22355,-8484,"Net earnings (loss)",-6591,5546,-4912]
["Net earnings",11241,18051,23124,"Net earnings",12179,11225,18051,"Net earnings (loss)",14443,12179,11225,"Net earnings (loss)",13864,14443,12179,"Net earnings",15345,13355,13864,"Net earnings",15345,13355,13864,"Net earnings (loss)","Net earnings (loss)",8540,-5795,15345,"Net earnings (loss)",-6056,8540,-5795,"Less net earnings (loss) attributable to noncontrolling interests",-89,-365,-289,"Preferred stock dividends",-460,-447,-436,"Less net earnings (loss) attributable to noncontrolling interests",-71,-158,66]
["Less net earnings attributable to noncontrolling interests",216,641,916,"Less net earnings attributable to noncontrolling interests",535,200,641,"Less net earnings (loss) attributable to noncontrollng interests",292,535,200,"Less: net earnings (loss) attributable to noncontrollng interests",223,292,535,"Less net earnings (loss) attributable to noncontrolling interests",112,298,223,"Less net earnings (loss) attributable to noncontrolling interests",112,298,223,"Less net earnings (loss) attributable to noncontrolling interests","Less net earnings (loss) attributable to noncontrolling interests",-291,332,112,"Less net earnings (loss) attributable to noncontrolling interests",-270,-291,332,"Net earnings (loss) attributable to the Company",-22355,-8484,7500,"Net earnings (loss) attributable to GE common shareholders",-5439,-22802,-8920,"Net earnings (loss) attributable to the Company",-6520,5704,-4979]
["Net earnings attributable to the Company",11025,17410,22208,"Net earnings attributable to the Company",11644,11025,17410,"Net earnings (loss) attributable to the Company",14151,11644,11025,"Net earnings (loss) attributable to the Company",13641,14151,11644,"Net earnings attributable to the Company",15233,13057,13641,"Net earnings attributable to the Company",15233,13057,13641,"Net earnings (loss) attributable to the Company","Net earnings (loss) attributable to the Company",8831,-6126,15233,"Net earnings (loss) attributable to the Company",-5786,8831,-6126,"Preferred stock dividends",-447,-436,-656,"Amounts attributable to GE common shareholders:",null,null,null,"Preferred stock dividends",-237,-474,-460]
["Preferred stock dividends declared",-300,-75,0,"Preferred stock dividends declared",-300,-300,-75,"Preferred stock dividends declared",-1031,-300,-300,"Preferred stock dividends declared",0,-1031,-300,"Preferred stock dividends declared",0,0,0,"Preferred stock dividends declared",0,0,0,"Preferred stock dividends declared","Preferred stock dividends",-656,-18,0,"Preferred stock dividends",-436,-656,-18,"Net earnings (loss) attributable to GE common shareowners",-22802,-8920,6845,"Earnings (loss) from continuing operations",423,-21080,-8536,"Net earnings (loss) attributable to GE common shareholders",-6757,5230,-5439]
["Net earnings attributable to GE common shareowners",10725,17335,22208,"Net earnings attributable to GE common shareowners",11344,10725,17335,"Net earnings (loss) attributable to GE common shareowners",13120,11344,10725,"Net earnings (loss) attributable to GE common shareowners",13641,13120,11344,"Net earnings attributable to GE common shareowners",15233,13057,13641,"Net earnings attributable to GE common shareowners",15233,13057,13641,"Net earnings (loss) attributable to GE common shareowners","Net earnings (loss) attributable to GE common shareowners",8176,-6145,15233,"Net earnings (loss) attributable to GE common shareowners",-6222,8176,-6145,"Amounts attributable to GE common shareowners:",null,null,null,"Less net earnings (loss) attributable to noncontrolling interests, continuing operations",7,-90,-283,"Amounts attributable to GE common shareholders"]
["Amounts attributable to the Company",null,null,null,"Amounts attributable to the Company",null,null,null,"Amounts attributable to the Company",null,null,null,"Amounts attributable to the Company",null,null,null,"Amounts attributable to GE common shareowners",null,null,null,"Amounts attributable to GE common shareowners",null,null,null,"Amounts attributable to GE common shareowners","Amounts attributable to GE common shareowners",null,null,null,"Amounts attributable to GE common shareowners:",null,null,null,"Earnings (loss) from continuing operations",-20717,-8540,8165,"Earnings (loss) from continuing operations attributable to the Company",416,-20991,-8253,"Earnings (loss) from continuing operations",-3396,6457,-606]
["Earnings from continuing operations",11218,18089,22457,"Earnings from continuing operations",12623,10943,18027,"Earnings (loss) from continuing operations",14074,12517,10806,"Earnings (loss) from continuing operations",14679,14227,12613,"Earnings from continuing operations",15457,15475,14847,"Earnings from continuing operations",15457,15475,14847,"Earnings (loss) from continuing operations","Earnings (loss) from continuing operations",9494,1700,9490,"Earnings (loss) from continuing operations",-5748,9494,1700,"Less net earnings (loss) attributable to noncontrolling interests, continuing operations",-89,-371,-288,"Preferred stock dividends",-460,-447,-436,"Less net earnings (loss) attributable to noncontrolling interests, continuing operations",-71,-158,7]
["Loss from discontinued operations, net of taxes",-193,-679,-249,"Earnings (loss) from discontinued operations, net of taxes",-979,82,-617,"Earnings (loss) from discontinued operations, net of taxes",77,-873,219,"Earnings (loss) from discontinued operations, net of taxes",-1038,-76,-969,"Less net earnings (loss) attributable to noncontrolling interests",112,298,223,"Less net earnings (loss) attributable to noncontrolling interests",112,298,223,"Less net earnings (loss) from continuing operations, attributable to noncontrolling interests","Less net earnings (loss) from continuing operations, attributable to noncontrolling interests",-290,19,-45,"Less net earnings (loss) attributable to noncontrolling interests, continuing operations",-277,-290,19,"Earnings (loss) from continuing operations attributable to the Company",-20629,-8169,8453,"Earnings (loss) from continuing operations attributable to GE common shareholders",-44,-21438,-8689,"Earnings (loss) from continuing operations attributable to the Company",-3325,6615,-613]
["Net earnings attributable to the Company",11025,17410,22208,"Net earnings attributable to the Company",11644,11025,17410,"Net earnings (loss) attributable to the Company",14151,11644,11025,"Net earnings (loss) attributable to the Company",13641,14151,11644,"Earnings from continuing operations attributable to the Company",15345,15177,14624,"Earnings from continuing operations attributable to the Company",15345,15177,14624,"Earnings (loss) from continuing operations attributable to the Company","Earnings (loss) from continuing operations attributable to the Company",9784,1681,9535,"Earnings (loss) from continuing operations attributable to the Company",-5471,9784,1681,"Preferred stock dividends",-447,-436,-656,"Earnings (loss) from discontinued operations, net of taxes",-5335,-1363,-312,"Preferred stock dividends",-237,-474,-460]
["Earnings from continuing operations",null,null,null,"Earnings from continuing operations",null,null,null,"Earnings from continuing operations",null,null,null,"Earnings from continuing operations",null,null,null,"GECC preferred stock dividends declared",0,0,0,"GECC preferred stock dividends declared",0,0,0,"Preferred stock dividends declared","Preferred stock dividends",-656,-18,0,"Preferred stock dividends",-436,-656,-18,"Earnings (loss) from continuing operations attributable to GE common shareowners",-21076,-8605,7797,"Less net earnings (loss) attributable to noncontrolling interests, discontinued operations",60,1,-81,"Earnings (loss) from continuing operations attributable to GE common shareholders",-3562,6141,-1073]
["Diluted earnings per share",1.03,1.78,2.2000000000000002,"Diluted earnings per share",1.1499999999999999,1,1.78,"Diluted earnings per share",1.23,1.1399999999999999,0.99,"Diluted earnings per share",1.39,1.24,1.1499999999999999,"Earnings from continuing operations attributable to GE common shareowners",15345,15177,14624,"Earnings from continuing operations attributable to GE common shareowners",15345,15177,14624,"Net earnings (loss) from continuing operations attributable to GE common shareowners","Net earnings (loss) from continuing operations attributable to GE common shareowners",9128,1663,9535,"Earnings (loss) from continuing operations attributable to GE common shareowners",-5907,9128,1663,"Earnings (loss) from discontinued operations, net of taxes",-1726,-309,-954,"Net earnings (loss) attributable to GE common shareholders",-5439,-22802,-8920,"Earnings (loss) from discontinued operations attributable to GE common shareholders",-3195,-911,-4366]
["Basic earnings per share",1.03,1.79,2.21,"Basic earnings per share",1.1499999999999999,1,1.78,"Basic earnings per share",1.23,1.1399999999999999,0.99,"Basic earnings per share",1.39,1.24,1.1499999999999999,"Earnings (loss) from discontinued operations, net of taxes",-112,-2120,-983,"Earnings (loss) from discontinued operations, net of taxes",-112,-2120,-983,"Earnings (loss) from discontinued operations, net of taxes","Earnings (loss) from discontinued operations, net of taxes",-954,-7495,5855,"Earnings (loss) from discontinued operations, net of taxes",-309,-954,-7495,"Less net earnings (loss) attributable to noncontrolling interests, discontinued operations",0,6,-1,"Earnings (loss) from continuing operations",null,null,null,"Net earnings (loss) attributable to GE common shareholders",-6757,5230,-5439]
["Net earnings",null,null,null,"Net earnings",null,null,null,"Net earnings (loss)",null,null,null,"Net earnings (loss)",null,null,null,"Net earnings attributable to GE common shareowners",15233,13057,13641,"Net earnings attributable to GE common shareowners",15233,13057,13641,"Less net earnings (loss) attributable to noncontrolling interests, discontinued operations","Less net earnings (loss) attributable to noncontrolling interests, discontinued operations",-1,312,157,"Less net earnings (loss) attributable to noncontrolling interests, discontinued operations",6,-1,312,"Net earnings (loss) attributable to GE common shareowners",-22802,-8920,6845,"Diluted earnings (loss) per share (in dollars per share)",-0.01,-2.4700000000000002,-1,"   Earnings (loss) per share from continuing operations (Note 17)"]
["Diluted earnings per share",1.01,1.72,2.17,"Diluted earnings per share",1.06,1.01,1.72,"Diluted earnings per share",1.23,1.06,1.01,"Diluted earnings per share",1.29,1.23,1.06,"Earnings from continuing operations",null,null,null,"Earnings from continuing operations",null,null,null,"Net earnings (loss) attributable to GE common shareowners","Net earnings (loss) attributable to GE common shareowners",8176,-6145,15233,"Net earnings (loss) attributable to GE common shareowners",-6222,8176,-6145,"Earnings (loss) from continuing operations",null,null,null,"Basic earnings (loss) per share (in dollars per share)",-0.01,-2.4700000000000002,-1,"Diluted earnings (loss) per share (in dollars per share)",-3.25,5.46,-0.98]
["Basic earnings per share",1.01,1.72,2.1800000000000002,"Basic earnings per share",1.06,1.01,1.72,"Basic earnings per share",1.24,1.06,1.01,"Basic earnings per share",1.29,1.24,1.06,"Diluted earnings per share",1.51,1.47,1.38,"Diluted earnings per share",1.51,1.47,1.38,"Earnings (loss) from continuing operations","Earnings From Continuing Operations Per Share (Note 18)",null,null,null,"Earnings (loss) from continuing operations",null,null,null,"Diluted earnings (loss) per share (in dollars per share)",-2.4300000000000002,-0.99,0.85,"Net earnings (loss)",null,null,null,"Basic earnings (loss) per share (in dollars per share)",-3.25,5.46,-0.98]
["Dividends declared per share",0.61,1.24,1.1499999999999999,"Dividends declared per share",0.46,0.61,1.24,"Dividends declared per common share",0.61,0.46,0.61,"Dividends declared per share",0.7,0.61,0.46,"Basic earnings per share",1.53,1.48,1.39,"Basic earnings per share",1.53,1.48,1.39,"Diluted earnings (loss) per share","Diluted earnings (loss) per share",1,0.17,0.94,"Diluted earnings (loss) per share (in dollars per share)",-0.68,1,0.17,"Basic earnings (loss) per share (in dollars per share)",-2.4300000000000002,-0.99,0.86,"Diluted earnings (loss) per share (in dollars per share)",-0.62,-2.62,-1.03,"   Net earnings (loss) per share (Note 17)"]
[null,null,null,null,null,null,null,null,null,null,null,null,"Subsidiaries [Member]",null,null,null,"Net earnings",null,null,null,"Net earnings",null,null,null,"Basic earnings (loss) per share","Basic earnings (loss) per share",1.01,0.17,0.95,"Basic earnings (loss) per share (in dollars per share)",-0.68,1.01,0.17,"Net earnings (loss)",null,null,null,"Basic earnings (loss) per share (in dollars per share)",-0.62,-2.62,-1.03,"Diluted earnings (loss) per share (in dollars per share)",-6.16,4.63,-4.99]
[null,null,null,null,null,null,null,null,null,null,null,null,"Revenues and other income",null,null,null,"Diluted earnings per share",1.5,1.27,1.29,"Diluted earnings per share",1.5,1.27,1.29,"Net earnings","Net earnings",null,null,null,"Net earnings (loss)",null,null,null,"Diluted earnings (loss) per share (in dollars per share)",-2.62,-1.03,0.75,"Dividends declared per common share (in dollars per share)",0.04,0.37,0.84,"Basic earnings (loss) per share (in dollars per share)",-6.16,4.63,-4.99]
[null,null,null,null,null,null,null,null,null,null,null,null,"Sales of goods",73304,67012,60344,"Basic earnings per share",1.51,1.28,1.29,"Basic earnings per share",1.51,1.28,1.29,"Diluted earnings (loss) per share","Diluted earnings (loss) per share",0.89,-0.61,1.5,"Diluted earnings (loss) per share (in dollars per share)",-0.72,0.89,-0.61,"Basic earnings (loss) per share (in dollars per share)",-2.62,-1.03,0.76,"Goods",null,null,null,"Equipment"]
[null,null,null,null,null,null,null,null,null,null,null,null,"Sales of services",27571,28024,39875,"Dividends declared per common share",0.89,0.79,0.7,"Dividends declared per common share",0.89,0.79,0.7,"Basic earnings (loss) per share","Basic earnings (loss) per share",0.9,-0.62,1.51,"Basic earnings (loss) per share (in dollars per share)",-0.72,0.9,-0.62,"Dividends declared per common share (in dollars per share)",0.37,0.84,0.93,"Sales",58949,60148,62709,"Revenues"]
[null,null,null,null,null,null,null,null,null,null,null,null,"Other income (Note 17)",2657,5270,1285,"GE",null,null,null,"GE",null,null,null,"Dividends declared per common share","Dividends declared per common share",0.93,0.92,0.89,"Dividends declared per common share (in dollars per share)",0.84,0.93,0.92,"Goods",null,null,null,"Cost of goods and services",48406,50244,52483,"Sales",34200,37584,42811]
[null,null,null,null,null,null,null,null,null,null,null,null,"GECC earnings from continuing operations",7401,6584,3120,"Revenues and other income",null,null,null,"Revenues and other income",null,null,null,"GE","GE",null,null,null,"GE",null,null,null,"Revenues",null,null,null,"Services",null,null,null,"Costs and expenses"]
[null,null,null,null,null,null,null,null,null,null,null,null,"GECC revenues from services (Note 18)",0,0,0,"Sales of goods",76714,71951,73304,"Sales of goods",76714,71951,73304,"Revenues and other income","Revenues and other income",null,null,null,"Revenues and other income",null,null,null,"Sales",74855,74990,76721,"Sales",28538,28792,29233,"Cost of sales",31399,35242,37572]
[null,null,null,null,null,null,null,null,null,null,null,null,"Total revenues and other income",110933,106890,104624,"Sales of services",30594,29063,27571,"Sales of services",30594,29063,27571,"Sales of goods","Sales of goods",75580,74565,76715,"Sales of goods",75718,75580,74565,"Costs and expenses",null,null,null,"Cost of goods and services",21622,22574,23110,"Services"]
[null,null,null,null,null,null,null,null,null,null,null,null,"Costs and expenses (Note 19)",null,null,null,"Other income (Note 17)",707,2886,2657,"Other income (Note 17)",707,2886,2657,"Sales of services","Sales of services",35255,31641,30594,"Sales of services",37761,35255,31641,"Cost of goods and services",63116,63075,62605,"GE",null,null,null,"Revenues"]
[null,null,null,null,null,null,null,null,null,null,null,null,"Cost of goods sold",57118,51605,45563,"GECC earnings from continuing operations",7341,8258,7345,"GECC earnings from continuing operations",7341,8258,7345,"Other income (Note 17)","Other income (Note 17)",4092,2165,707,"Other income (Note 17)",1436,4092,2165,"Services",null,null,null,"GE Capital revenues from services",0,0,0,"Sales",36890,35385,44608]
[null,null,null,null,null,null,null,null,null,null,null,null,"Cost of services sold",17938,17199,25965,"GECC revenues from services (Note 18)",0,0,0,"GECC revenues from services (Note 18)",0,0,0,"GE Capital earnings from continuing operations","GE Capital earnings (loss) from continuing operations",-1251,-7672,1532,"GE Capital earnings (loss) from continuing operations",-6765,-1251,-7672,"Revenues",null,null,null,"Total revenues (Note 26)",87719,89038,92229,"Costs and expenses"]
[null,null,null,null,null,null,null,null,null,null,null,null,"Interest and other financial charges",1353,1299,1600,"Total revenues and other income",115356,112158,110877,"Total revenues and other income",115356,112158,110877,"GE Capital revenues from services","GE Capital revenues from services",0,0,0,"GE Capital revenues from services",0,0,0,"Sales",38689,35977,33450,"Selling, general and administrative expenses",13404,13851,13094,"Cost of sales",22497,22629,27280]
[null,null,null,null,null,null,null,null,null,null,null,null,"Investment contracts, insurance losses and insurance annuity benefits",0,0,0,"Costs and expenses (Note 19)",null,null,null,"Costs and expenses (Note 19)",null,null,null,"Total revenues and other income","Total revenues and other income",113676,100700,109546,"Total revenues and other income",108150,113676,100700,"Costs and expenses",null,null,null,"Interest and other financial charges",2115,2415,2538]
[null,null,null,null,null,null,null,null,null,null,null,null,"Provision for losses on financing receivables (Notes 6 and 23)",0,0,0,"Cost of goods sold",61420,57962,57118,"Cost of goods sold",61420,57962,57118,"Costs and expenses","Costs and expenses (Note 27)",null,null,null,"Costs and expenses (Note 25)",null,null,null,"Cost of goods and services",29555,27808,25047,"Insurance losses and annuity benefits (Note 12)",0,0,0]
[null,null,null,null,null,null,null,null,null,null,null,null,"Other costs and expenses",17672,17556,16340,"Cost of services sold",20457,19668,17938,"Cost of services sold",20457,19668,17938,"Cost of goods sold","Cost of goods sold",62628,59970,61420,"Cost of goods sold",64433,62628,59970,"GE",null,null,null,"Goodwill impairments (Note 8)",1486,22136,1165]
[null,null,null,null,null,null,null,null,null,null,null,null,"Total costs and expenses",94081,87659,89468,"Interest and other financial charges",1579,1333,1353,"Interest and other financial charges",1579,1333,1353,"Cost of services sold","Cost of services sold",23084,20858,20456,"Cost of services sold",25619,23084,20858,"Revenues",null,null,null,"Non-operating benefit costs",2828,2740,2409]
[null,null,null,null,null,null,null,null,null,null,null,null,"Earnings (loss) from continuing operations before income taxes",16852,19231,15156,"Investment contracts, insurance losses and insurance annuity benefits",0,0,0,"Investment contracts, insurance losses and insurance annuity benefits",0,0,0,"Selling, general and administrative expenses","Selling, general and administrative expenses",16123,14914,14972,"Selling, general and administrative expenses",17103,16123,14914,"GE Capital revenues from services",0,0,0,"Other costs and expenses",0,-51,-22]
[null,null,null,null,null,null,null,null,null,null,null,null,"Benefit (provision) for income taxes (Note 14)",-2013,-4839,-2024,"Provision for losses on financing receivables (Note 6)",0,0,0,"Provision for losses on financing receivables (Note 6)",0,0,0,"Interest and other financial charges","Interest and other financial charges",2026,1706,1579,"Interest and other financial charges",2753,2026,1706,"Total revenues (Note 9)",113642,111255,110615,"Total costs and expenses",88118,111967,92834]
[null,null,null,null,null,null,null,null,null,null,null,null,"Earnings from continuing operations",14839,14392,13132,"Other costs and expenses",14971,16105,17671,"Other costs and expenses",14971,16105,17671,"Investment contracts, insurance losses and insurance annuity benefits","Investment contracts, insurance losses and insurance annuity benefits",0,0,0,"Investment contracts, insurance losses and insurance annuity benefits",0,0,0,"Costs and expenses",null,null,null,"Other income (Note 19)",2200,2317,1893]
[null,null,null,null,null,null,null,null,null,null,null,null,"Earnings (loss) from discontinued operations, net of taxes (Note 2)",-1038,-76,-969,"Total costs and expenses",98427,95068,94080,"Total costs and expenses",98427,95068,94080,"Other costs and expenses","Other costs and expenses",0,0,0,"Other costs and expenses",1165,0,0,"Selling, general and administrative expenses",17319,16406,15518,"GE Capital earnings (loss) from continuing operations",-530,-489,-6765]
[null,null,null,null,null,null,null,null,null,null,null,null,"Net earnings (loss)",13801,14316,12163,"Earnings from continuing operations before income taxes",16929,17090,16797,"Earnings from continuing operations before income taxes",16929,17090,16797,"Total costs and expenses","Total costs and expenses",103860,97447,98427,"Total costs and expenses",111072,103860,97447,"Interest and other financial charges",2708,2753,2026,"Earnings (loss) from continuing operations before income taxes",1271,-21101,-5476]
[null,null,null,null,null,null,null,null,null,null,null,null,"Less: net earnings (loss) attributable to noncontrollng interests",160,165,519,"Benefit (provision) for income taxes (Note 14)",-1634,-1668,-2013,"Benefit (provision) for income taxes (Note 14)",-1634,-1668,-2013,"Earnings (loss) from continuing operations before income taxes","Earnings (loss) from continuing operations before income taxes",9815,3252,11119,"Earnings (loss) from continuing operations before income taxes",-2922,9815,3252,"Investment contracts, insurance losses and insurance annuity benefits",0,0,0,"Benefit (provision) for income taxes (Note 15)",-1309,-467,-3493]
[null,null,null,null,null,null,null,null,null,null,null,null,"Net earnings (loss) attributable to the Company",13641,14151,11644,"Earnings from continuing operations",15295,15422,14784,"Earnings from continuing operations",15295,15422,14784,"Benefit (provision) for income taxes","Benefit (provision) for income taxes (Note 14)",-967,-1506,-1634,"Benefit (provision) for income taxes (Note 13)",-3259,-967,-1506,"Goodwill impairments (Note 8)",22136,1165,0,"Earnings (loss) from continuing operations",-38,-21568,-8970]
[null,null,null,null,null,null,null,null,null,null,null,null,"Preferred stock dividends declared",0,-1031,-300,"Earnings (loss) from discontinued operations, net of taxes (Note 2)",-112,-2120,-983,"Earnings (loss) from discontinued operations, net of taxes (Note 2)",-112,-2120,-983,"Earnings (loss) from continuing operations","Earnings (loss) from continuing operations",8849,1746,9485,"Earnings (loss) from continuing operations",-6181,8849,1746,"Non-operating benefit costs",2764,2385,2349,"Earnings (loss) from discontinued operations, net of taxes (Note 2)",-5335,-1363,-319]
[null,null,null,null,null,null,null,null,null,null,null,null,"Net earnings (loss) attributable to GE common shareowners",13641,13120,11344,"Net earnings",15183,13302,13801,"Net earnings",15183,13302,13801,"Earnings (loss) from discontinued operations, net of taxes (Note 2)","Earnings (loss) from discontinued operations, net of taxes (Note 2)",-952,-7807,5698,"Earnings (loss) from discontinued operations, net of taxes (Note 2)",-315,-952,-7807,"Other costs and expenses",0,0,0,"Net earnings (loss)",-5373,-22931,-9288]
[null,null,null,null,null,null,null,null,null,null,null,null,"Amounts attributable to the Company",null,null,null,"Less net earnings (loss) attributable to noncontrolling interests",-50,245,160,"Less net earnings (loss) attributable to noncontrolling interests",-50,245,160,"Net earnings (loss)","Net earnings (loss)",7896,-6061,15182,"Net earnings (loss)",-6496,7896,-6061,"Total costs and expenses",135656,111710,105774,"Less net earnings (loss) attributable to noncontrolling interests",66,-129,-368]
[null,null,null,null,null,null,null,null,null,null,null,null,"Earnings (loss) from continuing operations",14679,14227,12613,"Net earnings attributable to the Company",15233,13057,13641,"Net earnings attributable to the Company",15233,13057,13641,"Less net earnings (loss) attributable to noncontrolling interests","Less net earnings (loss) attributable to noncontrolling interests",-279,83,-50,"Less net earnings (loss) attributable to noncontrolling interests",-274,-279,83,"Other income (Note 18)",2255,1937,4227,"Net earnings (loss) attributable to the Company",-5439,-22802,-8920]
[null,null,null,null,null,null,null,null,null,null,null,null,"Earnings (loss) from discontinued operations, net of taxes",-1038,-76,-969,"Preferred stock dividends declared",0,0,0,"Preferred stock dividends declared",0,0,0,"Net earnings (loss) attributable to the Company","Net earnings (loss) attributable to the Company",8176,-6145,15233,"Net earnings (loss) attributable to the Company",-6222,8176,-6145,"GE Capital earnings (loss) from continuing operations",-489,-6765,-1251,"Preferred stock dividends",0,0,0]
[null,null,null,null,null,null,null,null,null,null,null,null,"Net earnings (loss) attributable to the Company",13641,14151,11644,"Net earnings attributable to GE common shareowners",15233,13057,13641,"Net earnings attributable to GE common shareowners",15233,13057,13641,"Preferred stock dividends declared","Preferred stock dividends",0,0,0,"Preferred stock dividends",0,0,0,"Earnings (loss) from continuing operations before income taxes",-20248,-5282,7817,"Net earnings (loss) attributable to GE common shareholders",-5439,-22802,-8920]
[null,null,null,null,null,null,null,null,null,null,null,null,"Subsidiaries GECC [Member]",null,null,null,"Amounts attributable to GE common shareowners",null,null,null,"Amounts attributable to GE common shareowners",null,null,null,"Net earnings (loss) attributable to GE common shareowners","Net earnings (loss) attributable to GE common shareowners",8176,-6145,15233,"Net earnings (loss) attributable to GE common shareowners",-6222,8176,-6145,"Benefit (provision) for income taxes (Note 14)",-957,-3691,-298,"Amounts attributable to GE common shareholders:"]
[null,null,null,null,null,null,null,null,null,null,null,null,"Revenues and other income",null,null,null,"Earnings from continuing operations",15295,15422,14784,"Earnings from continuing operations",15295,15422,14784,"Amounts attributable to GE common shareowners","Amounts attributable to GE common shareowners",null,null,null,"Amounts attributable to GE common shareowners:",null,null,null,"Earnings (loss) from continuing operations",-21205,-8973,7519,"Earnings (loss) from continuing operations",-38,-21568,-8970]
[null,null,null,null,null,null,null,null,null,null,null,null,"Sales of goods",119,148,533,"Less net earnings (loss) attributable to noncontrolling interests",-50,245,160,"Less net earnings (loss) attributable to noncontrolling interests",-50,245,160,"Earnings (loss) from continuing operations","Earnings (loss) from continuing operations",8849,1746,9485,"Earnings (loss) from continuing operations",-6181,8849,1746,"Earnings (loss) from discontinued operations, net of taxes (Note 2)",-1726,-315,-952,"Less net earnings (loss) attributable to noncontrolling interests, continuing operations",6,-130,-280]
[null,null,null,null,null,null,null,null,null,null,null,null,"Sales of services",0,0,0,"Earnings from continuing operations attributable to the Company",15345,15177,14624,"Earnings from continuing operations attributable to the Company",15345,15177,14624,"Less net earnings (loss) from continuing operations, attributable to noncontrolling interests","Less net earnings (loss) from continuing operations, attributable to noncontrolling interests",-279,83,-50,"Less net earnings (loss) attributable to noncontrolling interests, continuing operations",-274,-279,83,"Net earnings (loss)",-22931,-9288,6567,"Earnings (loss) from continuing operations attributable to the Company",-44,-21438,-8689]
[null,null,null,null,null,null,null,null,null,null,null,null,"Other income (Note 17)",0,0,0,"GECC preferred stock dividends declared",0,0,0,"GECC preferred stock dividends declared",0,0,0,"Earnings (loss) from continuing operations attributable to the Company","Earnings (loss) from continuing operations attributable to the Company",9128,1663,9535,"Earnings (loss) from continuing operations attributable to the Company",-5907,9128,1663,"Less net earnings (loss) attributable to noncontrolling interests",-129,-368,-278,"Preferred stock dividends",0,0,0]
[null,null,null,null,null,null,null,null,null,null,null,null,"GECC earnings from continuing operations",0,0,0,"Earnings from continuing operations attributable to GE common shareowners",15345,15177,14624,"Earnings from continuing operations attributable to GE common shareowners",15345,15177,14624,"Preferred stock dividends declared","Preferred stock dividends",0,0,0,"Preferred stock dividends",0,0,0,"Net earnings (loss) attributable to the Company",-22802,-8920,6845,"Earnings (loss) from continuing operations attributable to GE common shareholders",-44,-21438,-8689]
[null,null,null,null,null,null,null,null,null,null,null,null,"GECC revenues from services (Note 18)",45920,48920,49323,"Earnings (loss) from discontinued operations, net of taxes",-112,-2120,-983,"Earnings (loss) from discontinued operations, net of taxes",-112,-2120,-983,"Net earnings (loss) from continuing operations attributable to GE common shareowners","Net earnings (loss) from continuing operations attributable to GE common shareowners",9128,1663,9535,"Earnings (loss) from continuing operations attributable to GE common shareowners",-5907,9128,1663,"Preferred stock dividends",0,0,0,"Earnings (loss) from discontinued operations, net of taxes",-5335,-1363,-319]
[null,null,null,null,null,null,null,null,null,null,null,null,"Total revenues and other income",46039,49068,49856,"Net earnings attributable to GE common shareowners",15233,13057,13641,"Net earnings attributable to GE common shareowners",15233,13057,13641,"Earnings (loss) from discontinued operations, net of taxes","Earnings (loss) from discontinued operations, net of taxes",-952,-7807,5698,"Earnings (loss) from discontinued operations, net of taxes",-315,-952,-7807,"Net earnings (loss) attributable to GE common shareowners",-22802,-8920,6845,"Less net earnings (loss) attributable to noncontrolling interests, discontinued operations",60,1,-88]
[null,null,null,null,null,null,null,null,null,null,null,null,"Costs and expenses (Note 19)",null,null,null,"GECC",null,null,null,"GECC",null,null,null,"Net earnings (loss) attributable to GE common shareowners","Less net earnings (loss) attributable to noncontrolling interests, discontinued operations",0,0,0,"Less net earnings (loss) attributable to noncontrolling interests, discontinued operations",0,0,0,"Amounts attributable to GE common shareowners:",null,null,null,"Net earnings (loss) attributable to GE common shareholders",-5439,-22802,-8920]
[null,null,null,null,null,null,null,null,null,null,null,null,"Cost of goods sold",99,135,501,"Revenues and other income",null,null,null,"Revenues and other income",null,null,null,"GE Capital","Net earnings (loss) attributable to GE common shareowners",8176,-6145,15233,"Net earnings (loss) attributable to GE common shareowners",-6222,8176,-6145,"Earnings (loss) from continuing operations",-21205,-8973,7519,"GE | Goods"]
[null,null,null,null,null,null,null,null,null,null,null,null,"Cost of services sold",0,0,0,"Sales of goods",121,126,119,"Sales of goods",121,126,119,"Revenues and other income","GE Capital",null,null,null,"Financial Services (GE Capital)",null,null,null,"Less net earnings (loss) attributable to noncontrolling interests, continuing operations",-129,-368,-278,"Sales",59138,60147,62786]
[null,null,null,null,null,null,null,null,null,null,null,null,"Interest and other financial charges",11697,13866,14510,"Sales of services",0,0,0,"Sales of services",0,0,0,"Sales of goods","Revenues and other income",null,null,null,"Revenues and other income",null,null,null,"Earnings (loss) from continuing operations attributable to the Company",-21076,-8605,7797,"Cost of goods and services",48620,50265,52588]
[null,null,null,null,null,null,null,null,null,null,null,null,"Investment contracts, insurance losses and insurance annuity benefits",2984,3059,3197,"Other income (Note 17)",0,0,0,"Other income (Note 17)",0,0,0,"Sales of services","Sales of goods",115,79,121,"Sales of goods",130,115,79,"Preferred stock dividends",0,0,0,"GE | Services"]
[null,null,null,null,null,null,null,null,null,null,null,null,"Provision for losses on financing receivables (Notes 6 and 23)",3891,3951,7085,"GECC earnings from continuing operations",0,0,0,"GECC earnings from continuing operations",0,0,0,"Other income (Note 17)","Sales of services",0,0,0,"Sales of services",0,0,0,"Earnings (loss) from continuing operations attributable to GE common shareowners",-21076,-8605,7797,"Sales",28581,28891,29443]
[null,null,null,null,null,null,null,null,null,null,null,null,"Other costs and expenses",19413,20447,22412,"GECC revenues from services (Note 18)",42604,43941,45245,"GECC revenues from services (Note 18)",42604,43941,45245,"GE Capital earnings from continuing operations","Other income (Note 17)",0,0,0,"Other income (Note 17)",0,0,0,"Earnings (loss) from discontinued operations, net of taxes",-1726,-315,-952,"Cost of goods and services",19665,20611,21062]
[null,null,null,null,null,null,null,null,null,null,null,null,"Total costs and expenses",38084,41458,47705,"Total revenues and other income",42725,44067,45364,"Total revenues and other income",42725,44067,45364,"GE Capital revenues from services","GE Capital earnings (loss) from continuing operations",0,0,0,"GE Capital earnings (loss) from continuing operations",0,0,0,"Less net earnings (loss) attributable to noncontrolling interests, discontinued operations",0,0,0,"GE Capital"]
[null,null,null,null,null,null,null,null,null,null,null,null,"Earnings (loss) from continuing operations before income taxes",7955,7610,2151,"Costs and expenses (Note 19)",null,null,null,"Costs and expenses (Note 19)",null,null,null,"Total revenues and other income","GE Capital revenues from services",10790,10722,11199,"GE Capital revenues from services",8940,10790,10722,"Net earnings (loss) attributable to GE common shareowners",-22802,-8920,6845,"GE Capital revenues from services",8662,9430,8940]
[null,null,null,null,null,null,null,null,null,null,null,null,"Benefit (provision) for income taxes (Note 14)",-491,-899,985,"Cost of goods sold",104,108,99,"Cost of goods sold",104,108,99,"Costs and expenses","Total revenues and other income",10905,10801,11320,"Total revenues and other income",9070,10905,10801,"GE | Goods",null,null,null,"Total revenues (Note 26)",8741,9551,9070]
[null,null,null,null,null,null,null,null,null,null,null,null,"Earnings from continuing operations",7464,6711,3136,"Cost of services sold",0,0,0,"Cost of services sold",0,0,0,"Cost of goods sold","Costs and expenses (Note 27)",null,null,null,"Costs and expenses (Note 25)",null,null,null,"Revenues",null,null,null,"Selling, general and administrative expenses",931,1341,1662]
[null,null,null,null,null,null,null,null,null,null,null,null,"Earnings (loss) from discontinued operations, net of taxes (Note 2)",-1186,-74,-965,"Interest and other financial charges",8397,9267,11596,"Interest and other financial charges",8397,9267,11596,"Cost of services sold","Cost of goods sold",93,69,104,"Cost of goods sold",102,93,69,"Sales",74854,75068,76887,"Interest and other financial charges",2532,2982,3145]
[null,null,null,null,null,null,null,null,null,null,null,null,"Net earnings (loss)",6278,6637,2171,"Investment contracts, insurance losses and insurance annuity benefits",2678,2779,2984,"Investment contracts, insurance losses and insurance annuity benefits",2678,2779,2984,"Selling, general and administrative expenses","Cost of services sold",2238,2273,2394,"Cost of services sold",2196,2238,2273,"Costs and expenses",null,null,null,"Insurance losses and annuity benefits (Note 12)",3353,2849,12213]
[null,null,null,null,null,null,null,null,null,null,null,null,"Less: net earnings (loss) attributable to noncontrollng interests",63,127,16,"Provision for losses on financing receivables (Note 6)",3993,4818,3832,"Provision for losses on financing receivables (Note 6)",3993,4818,3832,"Interest and other financial charges","Selling, general and administrative expenses",2947,3512,2689,"Selling, general and administrative expenses",1676,2947,3512,"Cost of goods and services",63137,63180,62793,"Goodwill impairments (Note 8)",0,0,1386]
[null,null,null,null,null,null,null,null,null,null,null,null,"Net earnings (loss) attributable to the Company",6215,6510,2155,"Other costs and expenses",19912,19776,18924,"Other costs and expenses",19912,19776,18924,"Investment contracts, insurance losses and insurance annuity benefits","Interest and other financial charges",3790,2301,1638,"Interest and other financial charges",3145,3790,2301,"GE | Services",null,null,null,"Non-operating benefit costs",16,12,14]
[null,null,null,null,null,null,null,null,null,null,null,null,"Preferred stock dividends declared",-123,0,0,"Total costs and expenses",35084,36748,37435,"Total costs and expenses",35084,36748,37435,"Other costs and expenses","Investment contracts, insurance losses and insurance annuity benefits",2861,2737,2660,"Investment contracts, insurance losses and insurance annuity benefits",12213,2861,2737,"Revenues",null,null,null,"Other costs and expenses",480,558,986]
[null,null,null,null,null,null,null,null,null,null,null,null,"Net earnings (loss) attributable to GE common shareowners",6092,6510,2155,"Earnings from continuing operations before income taxes",7641,7319,7929,"Earnings from continuing operations before income taxes",7641,7319,7929,"Total costs and expenses","Other costs and expenses",1013,2647,1159,"Other costs and expenses",2371,1013,2647,"Sales",38788,36187,33729,"Total costs and expenses",9392,9926,21703]
[null,null,null,null,null,null,null,null,null,null,null,null,"Amounts attributable to the Company",null,null,null,"Benefit (provision) for income taxes (Note 14)",-138,992,-521,"Benefit (provision) for income taxes (Note 14)",-138,992,-521,"Earnings (loss) from continuing operations before income taxes","Total costs and expenses",12942,13539,10645,"Total costs and expenses",21703,12942,13539,"Costs and expenses",null,null,null,"Other income (Note 19)",0,0,0]
[null,null,null,null,null,null,null,null,null,null,null,null,"Earnings (loss) from continuing operations",7401,6584,3120,"Earnings from continuing operations",7503,8311,7408,"Earnings from continuing operations",7503,8311,7408,"Benefit (provision) for income taxes","Earnings (loss) from continuing operations before income taxes",-2037,-2739,676,"Earnings (loss) from continuing operations before income taxes",-12633,-2037,-2739,"Cost of goods and services",27591,25822,23088,"GE Capital earnings (loss) from continuing operations",0,0,0]
[null,null,null,null,null,null,null,null,null,null,null,null,"Earnings (loss) from discontinued operations, net of taxes",-1186,-74,-965,"Earnings (loss) from discontinued operations, net of taxes (Note 2)",-107,-2054,-1130,"Earnings (loss) from discontinued operations, net of taxes (Note 2)",-107,-2054,-1130,"Earnings (loss) from continuing operations","Benefit (provision) for income taxes (Note 14)",1431,4979,-861,"Benefit (provision) for income taxes (Note 13)",6302,1431,-4979,"Financial Services (GE Capital)",null,null,null,"Earnings (loss) from continuing operations before income taxes",-652,-375,-12633]
[null,null,null,null,null,null,null,null,null,null,null,null,"Net earnings (loss) attributable to the Company",6215,6510,2155,"Net earnings",7396,6257,6278,"Net earnings",7396,6257,6278,"Earnings (loss) from discontinued operations, net of taxes (Note 2)","Earnings (loss) from continuing operations",-606,-7718,1537,"Earnings (loss) from continuing operations",-6331,-606,-7718,"Revenues",null,null,null,"Benefit (provision) for income taxes (Note 15)",582,374,6302]
[null,null,null,null,null,null,null,null,null,null,null,null,null,null,null,null,"Less net earnings (loss) attributable to noncontrolling interests",162,53,63,"Less net earnings (loss) attributable to noncontrolling interests",162,53,63,"Net earnings (loss)","Earnings (loss) from discontinued operations, net of taxes (Note 2)",-954,-7485,5860,"Earnings (loss) from discontinued operations, net of taxes (Note 2)",-312,-954,-7485,"GE Capital revenues from services",9430,8940,10790,"Earnings (loss) from continuing operations",-69,-1,-6331]
[null,null,null,null,null,null,null,null,null,null,null,null,"[1]","(a) Represents the adding together of all affiliated companies except General Electric Capital Corporation (GECC or financial services), which is presented on a one-line basis See Note 1",null,null,"Net earnings attributable to the Company",7234,6204,6215,"Net earnings attributable to the Company",7234,6204,6215,"Less net earnings (loss) attributable to noncontrolling interests","Net earnings (loss)",-1560,-15202,7397,"Net earnings (loss)",-6643,-1560,-15202,"Total revenues (Note 9)",9551,9070,10905,"Earnings (loss) from discontinued operations, net of taxes (Note 2)",192,-1670,-312]
[null,null,null,null,null,null,null,null,null,null,null,null,null,null,null,null,"Preferred stock dividends declared",-322,-298,-123,"Preferred stock dividends declared",-322,-298,-123,"Net earnings (loss) attributable to the Company","Less net earnings (loss) attributable to noncontrolling interests",-12,248,162,"Less net earnings (loss) attributable to noncontrolling interests",4,-12,248,"Costs and expenses",null,null,null,"Net earnings (loss)",123,-1672,-6643]
[null,null,null,null,null,null,null,null,null,null,null,null,null,null,null,null,"Net earnings attributable to GE common shareowners",6912,5906,6092,"Net earnings attributable to GE common shareowners",6912,5906,6092,"Preferred stock dividends declared","Net earnings (loss) attributable to the Company",-1548,-15450,7234,"Net earnings (loss) attributable to the Company",-6647,-1548,-15450,"Selling, general and administrative expenses",1341,1662,2931,"Less net earnings (loss) attributable to noncontrolling interests",1,40,4]
[null,null,null,null,null,null,null,null,null,null,null,null,null,null,null,null,"Amounts attributable to GE common shareowners",null,null,null,"Amounts attributable to GE common shareowners",null,null,null,"Net earnings (loss) attributable to GE common shareowners","Preferred stock dividends",-656,-330,-322,"Preferred stock dividends",-436,-656,-330,"Interest and other financial charges",2982,3145,3790,"Net earnings (loss) attributable to the Company",122,-1712,-6647]
["GE",null,null,null,null,null,null,null,null,null,null,null,null,null,null,null,"Earnings from continuing operations",7503,8311,7408,"Earnings from continuing operations",7503,8311,7408,"Amounts attributable to GE common shareowners","Net earnings (loss) attributable to GE common shareowners",-2204,-15780,6912,"Net earnings (loss) attributable to GE common shareowners",-7083,-2204,-15780,"Investment contracts, insurance losses and insurance annuity benefits",2849,12213,2861,"Preferred stock dividends",-460,-447,-436]
["Revenues",null,null,null,null,null,null,null,"Subsidiaries [Member]",null,null,null,null,null,null,null,"Less net earnings (loss) attributable to noncontrolling interests",162,53,63,"Less net earnings (loss) attributable to noncontrolling interests",162,53,63,"Earnings (loss) from continuing operations","Amounts attributable to GE common shareowners",null,null,null,"Amounts attributable to GE common shareowners:",null,null,null,"Goodwill impairments (Note 8)",0,1386,0,"Net earnings (loss) attributable to GE common shareholders",-338,-2159,-7083]
["Sales of goods",64211,67637,60374,null,null,null,null,"Revenues",null,null,null,null,null,null,null,"Earnings from continuing operations attributable to the Company",7341,8258,7345,"Earnings from continuing operations attributable to the Company",7341,8258,7345,"Less net earnings (loss) from continuing operations, attributable to noncontrolling interests","Earnings (loss) from continuing operations",-606,-7718,1537,"Earnings (loss) from continuing operations",-6331,-606,-7718,"Non-operating benefit costs",12,14,16,"Amounts attributable to GE common shareholders:"]
["Sales of services",39246,44377,39422,null,null,null,null,"Sales of goods",67012,60345,64211,null,null,null,null,"GECC preferred stock dividends declared",-322,-298,-123,"GECC preferred stock dividends declared",-322,-298,-123,"Earnings (loss) from continuing operations attributable to the Company","Less net earnings (loss) from continuing operations, attributable to noncontrolling interests",-10,-64,5,"Less net earnings (loss) attributable to noncontrolling interests, continuing operations",-3,-10,-64,"Other costs and expenses",558,986,1013,"Earnings (loss) from continuing operations",-69,-1,-6331]
["Other income (Note 17)",1179,1965,3371,null,null,null,null,"Sales of services",28024,39875,39246,null,null,null,null,"Earnings from continuing operations attributable to GE common shareowners",7019,7960,7222,"Earnings from continuing operations attributable to GE common shareowners",7019,7960,7222,"Preferred stock dividends declared","Earnings (loss) from continuing operations attributable to the Company",-595,-7654,1532,"Earnings (loss) from continuing operations attributable to the Company",-6328,-595,-7654,"Total costs and expenses",9926,21703,12942,"Less net earnings (loss) attributable to noncontrolling interests, continuing operations",1,40,-3]
["GECS earnings from continuing operations",1590,7774,12417,null,null,null,null,"Other income (Note 17)",5269,1285,1179,null,null,null,null,"Earnings (loss) from discontinued operations, net of taxes",-107,-2054,-1130,"Earnings (loss) from discontinued operations, net of taxes",-107,-2054,-1130,"Net earnings (loss) from continuing operations attributable to GE common shareowners","Preferred stock dividends",-656,-330,-322,"Preferred stock dividends",-436,-656,-330,"Other income (Note 18)",0,0,0,"Earnings (loss) from continuing operations attributable to the Company",-70,-42,-6328]
["GECS revenues from services (Note 18)",0,0,0,null,null,null,null,"GECS earnings from continuing operations",6432,3023,1177,null,null,null,null,"Net earnings attributable to GE common shareowners",6912,5906,6092,"Net earnings attributable to GE common shareowners",6912,5906,6092,"Earnings (loss) from discontinued operations, net of taxes","Net earnings (loss) from continuing operations attributable to GE common shareowners",-1251,-7983,1209,"Earnings (loss) from continuing operations attributable to GE common shareowners",-6765,-1251,-7983,"GE Capital earnings (loss) from continuing operations",0,0,0,"Preferred stock dividends",-460,-447,-436]
["Total revenues",106226,121753,115584,null,null,null,null,"GECS revenues from services (Note 18)",0,0,0,null,null,null,null,null,null,null,null,null,null,null,null,"Net earnings (loss) attributable to GE common shareowners","Earnings (loss) from discontinued operations, net of taxes",-954,-7485,5860,"Earnings (loss) from discontinued operations, net of taxes",-312,-954,-7485,"Earnings (loss) from continuing operations before income taxes",-375,-12633,-2037,"Earnings (loss) from continuing operations attributable to GE common shareholders",-530,-489,-6765]
["Costs and expenses (Note 19)",null,null,null,null,null,null,null,"Total revenues",106737,104528,105813,null,null,null,null,"[1]","(a)Represents the adding together of all affiliated companies except General Electric Capital Corporation (GECC or Financial Services), which is presented on a one-line basis. See Note 1.",null,null,"[1]","(a)Represents the adding together of all affiliated companies except General Electric Capital Corporation (GECC or Financial Services), which is presented on a one-line basis. See Note 1.",null,null,null,"Less net earnings (loss) attributable to noncontrolling interests, discontinued operations",-1,312,157,"Less net earnings (loss) attributable to noncontrolling interests, discontinued operations",6,-1,312,"Benefit (provision) for income taxes (Note 14)",374,6302,1431,"Earnings (loss) from discontinued operations, net of taxes",192,-1670,-312]
["Cost of goods sold",49886,53395,47103,null,null,null,null,"Costs and expenses (Note 19)",null,null,null,null,null,null,null,null,null,null,null,null,null,null,null,"[1]","Net earnings (loss) attributable to GE common shareowners",-2204,-15780,6912,"Net earnings (loss) attributable to GE common shareowners",-7083,-2204,-15780,"Earnings (loss) from continuing operations",-1,-6331,-606,"Less net earnings (loss) attributable to noncontrolling interests, discontinued operations",0,0,6]
["Cost of services sold",25878,29878,26382,null,null,null,null,"Cost of goods sold",51605,45570,49886,null,null,null,null,null,null,null,null,null,null,null,null,null,null,null,null,null,null,null,null,null,"Earnings (loss) from discontinued operations, net of taxes (Note 2)",-1670,-312,-954,"Net earnings (loss) attributable to GE common shareholders",-338,-2159,-7083]
["Interest and other financial charges",1478,2153,1993,null,null,null,null,"Cost of services sold",17199,25958,25878,null,null,null,null,null,null,null,null,null,null,null,null,null,null,null,null,null,"[1]",null,null,null,"Net earnings (loss)",-1672,-6643,-1560,"GE Capital | Goods"]
["Investment contracts, insurance losses and insurance annuity benefits",0,0,0,null,null,null,null,"Interest and other financial charges",1299,1600,1478,null,null,null,null,null,null,null,null,null,null,null,null,null,null,null,null,null,null,null,null,null,"Less net earnings (loss) attributable to noncontrolling interests",40,4,-12,"Sales",79,121,130]
["Provision for losses on financing receivables (Note 6)",0,0,0,null,null,null,null,"Investment contracts, insurance losses and insurance annuity benefits",0,0,0,null,null,null,null,null,null,null,null,null,null,null,null,null,null,null,null,null,null,null,null,null,"Net earnings (loss) attributable to the Company",-1712,-6647,-1548,"Cost of goods and services",61,95,102]
["Other costs and expenses",14842,14401,14148,null,null,null,null,"Provision for losses on financing receivables (Notes 6 and 23)",0,0,0,null,null,null,null,null,null,null,null,null,null,null,null,null,null,null,null,null,null,null,null,null,"Preferred stock dividends",-447,-436,-656,"GE Capital | Services"]
["Total costs and expenses",92084,99827,89626,null,null,null,null,"Other costs and expenses",17556,16340,14841,null,null,null,null,null,null,null,null,null,null,null,null,null,null,null,null,null,null,null,null,null,"Net earnings (loss) attributable to GE common shareowners",-2159,-7083,-2204,"Sales",0,0,0]
["Earnings (loss) from continuing operations before income taxes",14142,21926,25958,null,null,null,null,"Total costs and expenses",87659,89468,92083,null,null,null,null,null,null,null,null,null,null,null,null,null,null,null,null,null,null,null,null,null,"Amounts attributable to GE common shareowners:",null,null,null,"Cost of goods and services",2019,2089,2196]
["Benefit (provision) for income taxes (Note 14)",-2739,-3427,-2794,null,null,null,null,"Earnings (loss) from continuing operations before income taxes",19078,15060,13730,null,null,null,null,null,null,null,null,null,null,null,null,null,null,null,null,null,null,null,null,null,"Earnings (loss) from continuing operations",-1,-6331,-606]
["Earnings from continuing operations",11403,18499,23164,null,null,null,null,"Benefit (provision) for income taxes (Note 14)",-4839,-2024,-2739,null,null,null,null,null,null,null,null,null,null,null,null,null,null,null,null,null,null,null,null,null,"Less net earnings (loss) attributable to noncontrolling interests, continuing operations",40,-3,-10,"[1]"]
["Loss from discontinued operations, net of taxes (Note 2)",-193,-679,-249,null,null,null,null,"Earnings from continuing operations",14239,13036,10991,null,null,null,null,null,null,null,null,null,null,null,null,null,null,null,null,null,null,null,null,null,"Earnings (loss) from continuing operations attributable to the Company",-42,-6328,-595]
["Net earnings",11210,17820,22915,null,null,null,null,"Earnings (loss) from discontinued operations, net of taxes (Note 2)",77,-873,219,null,null,null,null,null,null,null,null,null,null,null,null,null,null,null,null,null,null,null,null,null,"Preferred stock dividends",-447,-436,-656]
["Less net earnings attributable to noncontrolling interests",185,410,707,null,null,null,null,"Net earnings (loss)",14316,12163,11210,null,null,null,null,null,null,null,null,null,null,null,null,null,null,null,null,null,null,null,null,null,"Earnings (loss) from continuing operations attributable to GE common shareowners",-489,-6765,-1251]
["Net earnings attributable to the Company",11025,17410,22208,null,null,null,null,"Less net earnings (loss) attributable to noncontrollng interests",165,519,185,null,null,null,null,null,null,null,null,null,null,null,null,null,null,null,null,null,null,null,null,null,"Earnings (loss) from discontinued operations, net of taxes",-1670,-312,-954]
["Preferred stock dividends declared",-300,-75,0,null,null,null,null,"Net earnings (loss) attributable to the Company",14151,11644,11025,null,null,null,null,null,null,null,null,null,null,null,null,null,null,null,null,null,null,null,null,null,"Less net earnings (loss) attributable to noncontrolling interests, discontinued operations",0,6,-1]
["Net earnings attributable to GE common shareowners",10725,17335,22208,null,null,null,null,"Preferred stock dividends declared",-1031,-300,-300,null,null,null,null,null,null,null,null,null,null,null,null,null,null,null,null,null,null,null,null,null,"Net earnings (loss) attributable to GE common shareowners",-2159,-7083,-2204]
["Amounts attributable to the Company",null,null,null,null,null,null,null,"Net earnings (loss) attributable to GE common shareowners",13120,11344,10725,null,null,null,null,null,null,null,null,null,null,null,null,null,null,null,null,null,null,null,null,null,"Financial Services (GE Capital) | Goods"]
["Earnings from continuing operations",11218,18089,22457,null,null,null,null,"Amounts attributable to the Company",null,null,null,null,null,null,null,null,null,null,null,null,null,null,null,null,null,null,null,null,null,null,null,null,"Revenues"]
["Loss from discontinued operations, net of taxes",-193,-679,-249,null,null,null,null,"Earnings (loss) from continuing operations",14074,12517,10806,null,null,null,null,null,null,null,null,null,null,null,null,null,null,null,null,null,null,null,null,null,"Sales",121,130,115]
["Net earnings attributable to the Company",11025,17410,22208,null,null,null,null,"Earnings (loss) from discontinued operations, net of taxes",77,-873,219,null,null,null,null,null,null,null,null,null,null,null,null,null,null,null,null,null,null,null,null,null,"Costs and expenses"]
[null,null,null,null,null,null,null,null,"Net earnings (loss) attributable to the Company",14151,11644,11025]
[]
[]
[]
["Financial Services (GECS)",null,null,null,"Financial Services (GECS) [Member]",null,null,null,"Subsidiaries GECS [Member]",null,null,null,null,null,null,null,null,null,null,null,null,null,null,null,null,null,null,null,null,null,null,null,null,"Cost of goods and services",95,102,93]
["Revenues",null,null,null,"Revenues",null,null,null,"Revenues",null,null,null,null,null,null,null,null,null,null,null,null,null,null,null,null,null,null,null,null,null,null,null,null,"Financial Services (GE Capital) | Services"]
["Sales of goods",970,1773,718,"Sales of goods",533,970,1773,"Sales of goods",148,533,970,null,null,null,null,null,null,null,null,null,null,null,null,null,null,null,null,null,null,null,null,null,"Revenues"]
["Sales of services",0,0,0,"Sales of services",null,null,null,"Sales of services",0,0,0,null,null,null,null,null,null,null,null,null,null,null,null,null,null,null,null,null,null,null,null,null,"Sales",0,0,0]
["Other income (Note 17)",0,0,0,"Other income (Note 17)",null,null,null,"Other income (Note 17)",0,0,0,null,null,null,null,null,null,null,null,null,null,null,null,null,null,null,null,null,null,null,null,null,"Costs and expenses"]
["GECS earnings from continuing operations",0,0,0,"GECS earnings from continuing operations",null,null,null,"GECS earnings from continuing operations",0,0,0,null,null,null,null,null,null,null,null,null,null,null,null,null,null,null,null,null,null,null,null,null,"Cost of goods and services",2089,2196,2238]
["GECS revenues from services (Note 18)",53193,69514,71218,"GECS revenues from services (Note 18)",49966,51688,68580,"GECS revenues from services (Note 18)",48933,49348,50848]
["Total revenues",54163,71287,71936,"Total revenues",50499,52658,70353,"Total revenues",49081,49881,51818,null,null,null,null,null,null,null,null,null,null,null,null,null,null,null,null,null,null,null,null,null,"[1]"]
["Costs and expenses (Note 19)",null,null,null,"Costs and expenses (Note 19)",null,null,null,"Costs and expenses (Note 19)"]
["Cost of goods sold",808,1517,628,"Cost of goods sold",501,808,1517,"Cost of goods sold",135,501,808]
["Cost of services sold",0,0,0,"Cost of services sold",null,null,null,"Cost of services sold",0,0,0]
["Interest and other financial charges",17942,25116,22706,"Interest and other financial charges",14956,17482,24665,"Interest and other financial charges",13883,14526,16870]
["Investment contracts, insurance losses and insurance annuity benefits",3193,3421,3647,"Investment contracts, insurance losses and insurance annuity benefits",3197,3193,3421,"Investment contracts, insurance losses and insurance annuity benefits",3059,3197,3193]
["Provision for losses on financing receivables (Note 6)",10928,7518,4431,"Provision for losses on financing receivables (Notes 6 and 23)",7191,10627,7233,"Provision for losses on financing receivables (Notes 6 and 23)",4083,7176,10585]
["Other costs and expenses",23500,28085,26537,"Other costs and expenses",22482,23105,27899,"Other costs and expenses",20469,22433,23051]
["Total costs and expenses",56371,65657,57949,"Total costs and expenses",48327,55215,64735,"Total costs and expenses",41629,47833,54507]
["Earnings (loss) from continuing operations before income taxes",-2208,5630,13987,"Earnings (loss) from continuing operations before income taxes",2172,-2557,5618,"Earnings (loss) from continuing operations before income taxes",7452,2048,-2689]
["Benefit (provision) for income taxes (Note 14)",3829,2375,-1361,"Benefit (provision) for income taxes (Note 14)",974,3887,2325,"Benefit (provision) for income taxes (Note 14)",-893,991,3881]
["Earnings from continuing operations",1621,8005,12626,"Earnings from continuing operations",3146,1330,7943,"Earnings from continuing operations",6559,3039,1192]
["Loss from discontinued operations, net of taxes (Note 2)",-175,-719,-2116,"Earnings (loss) from discontinued operations, net of taxes (Note 2)",-975,100,-657,"Earnings (loss) from discontinued operations, net of taxes (Note 2)",78,-868,238]
["Net earnings",1446,7286,10510,"Net earnings",2171,1430,7286,"Net earnings (loss)",6637,2171,1430]
["Less net earnings attributable to noncontrolling interests",31,231,209,"Less net earnings attributable to noncontrolling interests",16,15,231,"Less net earnings (loss) attributable to noncontrollng interests",127,16,15]
["Net earnings attributable to the Company",1415,7055,10301,"Net earnings attributable to the Company",2155,1415,7055,"Net earnings (loss) attributable to the Company",6510,2155,1415]
["Preferred stock dividends declared",0,0,0,"Preferred stock dividends declared",null,null,null,"Preferred stock dividends declared",0,0,0]
["Net earnings attributable to GE common shareowners",1415,7055,10301,"Net earnings attributable to GE common shareowners",2155,1415,7055,"Net earnings (loss) attributable to GE common shareowners",6510,2155,1415]
["Amounts attributable to the Company",null,null,null,"Amounts attributable to the Company",null,null,null,"Amounts attributable to the Company"]
["Earnings from continuing operations",1590,7774,12417,"Earnings from continuing operations",3130,1315,7712,"Earnings (loss) from continuing operations",6432,3023,1177]
["Loss from discontinued operations, net of taxes",-175,-719,-2116,"Earnings (loss) from discontinued operations, net of taxes",-975,100,-657,"Earnings (loss) from discontinued operations, net of taxes",78,-868,238]
["Net earnings attributable to the Company",1415,7055,10301,"Net earnings attributable to the Company",2155,1415,7055,"Net earnings (loss) attributable to the Company",6510,2155,1415]
["[1]See Note 3 for other-than-temporary impairment amounts."]
[null,null,null,null,null,null,null,null,"[1]","(a) Represents the adding together of all affiliated companies except General Electric Capital Services, Inc. (GECS or financial services), which is presented on a one-line basis. See Note 1."]
[]
[]
[null,null,null,null,"GE [Member]"]
[null,null,null,null,"Revenues"]
[null,null,null,null,"Sales of goods",60345,64211,67637]
[null,null,null,null,"Sales of services",39875,39246,44377]
[null,null,null,null,"Other income (Note 17)",1285,1179,1965]
[null,null,null,null,"GECS earnings from continuing operations",3130,1315,7712]
[null,null,null,null,"GECS revenues from services (Note 18)"]
[null,null,null,null,"Total revenues",104635,105951,121691]
[null,null,null,null,"Costs and expenses (Note 19)"]
[null,null,null,null,"Cost of goods sold",45570,49886,53395]
[null,null,null,null,"Cost of services sold",25958,25878,29878]
[null,null,null,null,"Interest and other financial charges",1600,1478,2153]
[null,null,null,null,"Investment contracts, insurance losses and insurance annuity benefits"]
[null,null,null,null,"Provision for losses on financing receivables (Notes 6 and 23)"]
[null,null,null,null,"Other costs and expenses",16341,14842,14401]
[null,null,null,null,"Total costs and expenses",89469,92084,99827]
[null,null,null,null,"Earnings (loss) from continuing operations before income taxes",15166,13867,21864]
[null,null,null,null,"Benefit (provision) for income taxes (Note 14)",-2024,-2739,-3427]
[null,null,null,null,"Earnings from continuing operations",13142,11128,18437]
[null,null,null,null,"Earnings (loss) from discontinued operations, net of taxes (Note 2)",-979,82,-617]
[null,null,null,null,"Net earnings",12163,11210,17820]
[null,null,null,null,"Less net earnings attributable to noncontrolling interests",519,185,410]
[null,null,null,null,"Net earnings attributable to the Company",11644,11025,17410]
[null,null,null,null,"Preferred stock dividends declared",-300,-300,-75]
[null,null,null,null,"Net earnings attributable to GE common shareowners",11344,10725,17335]
[null,null,null,null,"Amounts attributable to the Company"]
[null,null,null,null,"Earnings from continuing operations",12623,10943,18027]
[null,null,null,null,"Earnings (loss) from discontinued operations, net of taxes",-979,82,-617]
[null,null,null,null,"Net earnings attributable to the Company",11644,11025,17410]
[]
[null,null,null,null,"[1]","Represents the adding together of all affiliated companies except General Electric Capital Services, Inc. (GECS or financial services), which is presented on a one-line basis. See Note 1."]

{"sheet":"Balance Sheet","index":3,"n_rows":156,"n_cols":41,"rows_kept":156,"cut":false,"hidden":false,"merged":[]}
["Statement of Financial Position (USD $)",null,null,"Statement of Financial Position (USD  $)","Dec. 31, 2010",null,"Dec. 31, 2009","Statement of Financial Position (USD $)","Dec. 31, 2011",null,"Dec. 31, 2010","Statement of Financial Position (USD $)","Dec. 31, 2012","Dec. 31, 2011","Statement of Financial Position (USD $)","Dec. 31, 2014","Dec. 31, 2013","Statement of Financial Position (USD $)","Dec. 31, 2014","Dec. 31, 2013","Statement of Financial Position - USD ($) in Millions","Dec. 31, 2015","Dec. 31, 2014","Statement of Financial Position - USD ($) in Millions",null,"Dec. 31, 2016","Dec. 31, 2015","STATEMENT OF FINANCIAL POSITION - USD ($) in Millions","Dec. 31, 2017","Dec. 31, 2016","STATEMENT OF FINANCIAL POSITION - USD ($) in Millions","Dec. 31, 2019","Dec. 31, 2018","STATEMENT OF FINANCIAL POSITION - USD ($) in Millions",null,"Dec. 31, 2020","Dec. 31, 2019","STATEMENT OF FINANCIAL POSITION - USD ($) in Millions",null,"Dec. 31, 2021","Dec. 31, 2020"]
["In Millions","Dec. 31, 2009\r\n","Dec. 31, 2008\r\n","In Millions",null,null,null,"In Millions, unless otherwise specified",null,null,null,"In Millions, unless otherwise specified",null,null,"In Millions, unless otherwise specified",null,null,"In Millions, unless otherwise specified",null,null,"Assets",null,null,"Assets",null,null,null,"Assets",null,null,"Cash, cash equivalents and restricted cash",36394,31124,"Cash, cash equivalents and restricted cash","[1]",36630,35811,"Statement of Financial Position [Abstract]"]
["Assets",null,null,"Assets",null,null,null,"Assets",null,null,null,"Assets",null,null,"Assets",null,null,"Assets",null,null,"Cash and equivalents",70483,70025,"Cash and equivalents",null,48129,70483,"Cash and equivalents",43299,48129,"Investment securities (Note 3)",48521,33508,"Investment securities (Note 3)",null,7319,9888,"Cash, cash equivalents and restricted cash","[1]",15770,36530]
["Cash and equivalents",72260,48187,"Cash and equivalents",78958,null,70488,"Cash and equivalents",84501,null,78943,"Cash and equivalents",77356,84501,"Cash and equivalents",90208,88555,"Cash and equivalents",90208,88555,"Investment securities (Note 3)",31973,35505,"Investment securities (Note 3)",null,44313,31973,"Investment securities (Note 3)",38696,44313,"Current receivables (Note 4)",16769,14645,"Current receivables (Note 4)",null,16691,16568,"Investment securities (Note 3)",null,12297,7319]
["Investment securities (Note 3)",51941,41446,"Investment securities (Note 3)",43938,null,51343,"Investment securities (Note 3)",47374,null,43938,"Investment securities (Note 3)",48510,47374,"Investment securities (Note 3)",47907,43981,"Investment securities (Note 3)",47907,43981,"Current receivables (Note 4)",27022,23237,"Current receivables (Note 4)",null,24076,27022,"Current receivables (Note 4)",24438,24076,"Financing receivables – net (Note 5)",3134,7699,"Financing receivables – net (Note 5)",null,1265,1077,"Current receivables (Note 4)",null,15620,16691]
["Current receivables (Note 4)",16458,21411,"Current receivables (Note 4)",18621,"[1]",16458,"Current receivables (Note 4)",19531,null,18621,"Current receivables (Note 4)",21500,20478,"Current receivables (Note 4)",23237,21388,"Current receivables (Note 4)",23237,21388,"Inventories (Note 5)",22515,17689,"Inventories (Note 5)",null,22354,22515,"Inventories (Note 5)",21923,22354,"Inventories (Note 6)",14104,13803,"Inventories, including deferred inventory costs (Note 6)",null,15890,17215,"Inventories, including deferred inventory costs (Note 5)",null,15847,15890]
["Inventories (Note 5)",11987,13674,"Inventories (Note 5)",11526,null,11987,"Inventories (Note 5)",13792,null,11526,"Inventories (Note 5)",15374,13792,"Inventories (Note 5)",17689,17325,"Inventories (Note 5)",17689,17325,"Financing receivables - net (Note 6)",12052,13445,"Financing receivables - net (Note 6)",null,12242,12052,"Financing receivables – net (Note 6)",10336,12242,"Other GE Capital receivables",7144,7143,"Other GE Capital receivables",null,3331,2635,"Current contract assets (Note 8)",null,4881,5764]
["Financing receivables - net (Note 6)",329232,365168,"Financing receivables - net (Notes 6 and 23)",310055,null,319247,"Financing receivables - net (Notes 6 and 23)",280378,null,303012,"Financing receivables - net (Notes 6 and 23)",258028,279918,"Financing receivables - net (Note 6 and 27)",224816,241940,"Financing receivables - net (Note 6 and 27)",224816,241940,"Other GE Capital Receivables",6782,6261,"Other GE Capital receivables",null,5944,6782,"Other GE Capital receivables",6301,5944,"Property, plant and equipment – net (Note 7)",43290,43611,"Receivable from GE Capital",null,0,0,"All other current assets (Note 9)",null,1933,2659]
["Other GECS receivables",14177,13439,"Other GECS receivables",8951,null,14056,"Other GECS receivables",7561,null,7571,"Other GECC receivables",7961,7561,"Other GECC receivables",9095,9114,"Other GECC receivables",9095,9114,"Property, plant and equipment - net (Note 7)",54095,48070,"Property, plant and equipment - net (Note 7)",null,50518,54095,"Property, plant and equipment – net (Note 7)",53874,50518,"Operating lease assets (Note 7)",2896,null,"Current contract assets (Note 9)",null,5764,7390,"Current assets",null,66348,84853]
["Property, plant and equipment - net (Note 7)",69212,78530,"Property, plant and equipment - net (Note 7)",66214,null,68970,"Property, plant and equipment - net (Note 7)",65739,null,66212,"Property, plant and equipment - net (Note 7)",69743,65739,"Property, plant and equipment - net (Note 7)",66387,68827,"Property, plant and equipment - net (Note 7)",66387,68827,"Receivables from GE Capital (debt assumption)",0,0,"Receivables from GE Capital (debt assumption)",null,0,0,"Receivable from GE Capital (debt assumption)(b)",0,0,"Receivable from GE Capital",0,0,"All other current assets (Note 10)",null,1522,3362,"Investment securities (Note 3)",null,42209,42549]
["Investment in GECS",0,0,"Investment in GECS",null,null,null,"Investment in GECS",0,null,0,"Investment in GECC",0,0,"Investment in GECC",0,0,"Investment in GECC",0,0,"Investment in GE Capital",0,0,"Investment in GE Capital",null,0,0,"Investment in GE Capital",0,0,"Investment in GE Capital",0,0,"Assets of businesses held for sale (Note 2)",null,0,9149,"Property, plant and equipment – net (Note 6)",null,15609,16699]
["Goodwill (Note 8)",65574,81759,"Goodwill(Note 8)",64473,null,65076,"Goodwill (Note 8)",72625,null,64388,"Goodwill (Note 8)",73447,72625,"Goodwill (Note 8)",76553,77648,"Goodwill (Note 8)",76553,77648,"Goodwill (Note 8)",65526,53207,"Goodwill (Note 8)",null,70438,65526,"Goodwill (Note 8)",83968,70438,"Goodwill (Note 8)",26734,33974,"Current assets",null,88412,103096,"Goodwill (Note 7)",null,26182,25524]
["Other intangible assets - net (Note 8)",11929,14977,"Other intangible assets - net (Note 8)",9973,null,11751,"Other intangible assets - net (Note 8)",12068,null,9971,"Other intangible assets - net (Note 8)",11987,12068,"Other intangible assets - net (Note 8)",14156,14310,"Other intangible assets - net (Note 8)",14156,14310,"Other intangible assets - net (Note 8)",16744,13182,"Other intangible assets - net (Note 8)",null,16436,17797,"Other intangible assets – net (Note 8)",20273,16436,"Other intangible assets – net (Note 8)",10653,12178,"Investment securities (Note 3)",null,42549,38632,"Other intangible assets – net (Note 7)",null,9330,9671]
["All other assets (Note 9)",103417,106899,"All other assets (Note 9)",96342,null,103286,"All other assets (Note 9)",111707,null,94299,"All other assets (Note 9)",100076,111701,"All other assets (Note 9)",68225,70808,"All other assets (Note 9)",68225,70808,"Contract Assets (Note 9)",21156,16960,"Contract assets (Note 9)",null,25162,21156,"Contract assets (Note 9)",28861,25162,"Contract and other deferred assets (Note 9)",16801,17431,"Financing receivables – net (Note 5)",null,1771,2057,"Contract and other deferred assets (Note 8)",null,6124,5888]
["Assets of businesses held for sale (Note 2)",34111,10556,"Assets of businesses held for sale (Note 2)",36887,null,34111,"Assets of businesses held for sale (Note 2)",711,null,36887,"Assets of businesses held for sale (Note 2)",211,711,"Deferred income taxes",2541,275,"Deferred income taxes",2541,275,"All other assets (Note 9)",37471,24836,"All other assets (Note 9)",null,27176,36797,"All other assets",29612,27176,"All other assets (Note 10)",16461,18357,"Other GE Capital receivables",null,4661,4509,"All other assets (Note 9)",null,19040,16025]
["Assets of discontinued operations (Note 2)",1520,1723,"Assets of discontinued operations (Note 2)",5278,null,15128,"Assets of discontinued operations (Note 2)",1255,null,12425,"Assets of discontinued operations (Note 2)",1135,1721,"Assets of businesses held for sale (Note 2)",6300,50,"Assets of businesses held for sale (Note 2)",6300,50,"Deferred income taxes (Note 14)",3105,6183,"Deferred income taxes (Note 14)",null,1833,3105,"Deferred income taxes (Note 13)",6207,1833,"Deferred income taxes (Note 15)",9889,12117,"Property, plant and equipment – net (Note 7)",null,44662,45879,"Deferred income taxes (Note 14)",null,10855,14253]
["Total assets",781818,797769,"Total assets",751216,"[2]",781901,"Total assets(a)",717242,"[1]",747793,"Total assets(a)",685328,718189,"Assets of discontinued operations (Note 2)",1235,2339,"Assets of discontinued operations (Note 2)",1235,2339,"Assets of businesses held for sale (Note 2)",2818,2826,"Assets of businesses held for sale (Note 2)",null,1745,2818,"Assets of businesses held for sale (Note 2)",4243,1745,"Assets of businesses held for sale (Note 2)",9149,1629,"Receivable from GE Capital",null,0,0,"Assets of discontinued operations (Note 2)",null,3177,40749]
["Liabilities and equity",null,null,"Liabilities and equity",null,null,null,"Liabilities and equity",null,null,null,"Liabilities and equity",null,null,"Total assets(a)",648349,656560,"Total assets(a)",648349,656560,"Assets of discontinued operations (Note 2)",120951,323529,"Assets of discontinued operations (Note 2)",null,14815,120951,"Assets of discontinued operations (Note 2)",5912,14815,"Assets of discontinued operations (Note 2)",4109,63853,"Goodwill (Note 8)",null,25524,26734,"Total assets",null,198874,256211]
["Short-term borrowings (Note 10)",133054,164061,"Short-term borrowings (Note 10)",117959,null,129869,"Short-term borrowings (Note 10)",137611,null,117959,"Short-term borrowings (Note 10)",101392,137611,"Liabilities and equity",null,null,"Liabilities and equity",null,null,"Total assets(a)",492692,654954,"Total assets","[1]",365183,493071,"Total assets",377945,365183,"Total assets",266048,311072,"Other intangible assets – net (Note 8)",null,9774,10653,"Short-term borrowings (Note 10)",null,4361,4713]
["Accounts payable, principally trade accounts",19703,20819,"Accounts payable, principally trade accounts",14657,null,19527,"Accounts payable, principally trade accounts",16400,null,14656,"Accounts payable, principally trade accounts",15675,16400,"Short-term borrowings (Note 10)",71789,77890,"Short-term borrowings (Note 10)",71789,77890,"Liabilities and equity",null,null,"Liabilities and equity",null,null,null,"Liabilities and equity",null,null,"Short-term borrowings (Note 11)",22072,12776,"Contract and other deferred assets (Note 9)",null,5888,5737,"Accounts payable and equipment project accruals",null,16243,16458]
["Progress collections and price adjustments accrued",12192,12536,"Progress collections and price adjustments accrued",11142,null,12192,"Progress collections and price adjustments accrued",10402,null,11142,"Progress collections and price adjustments accrued",10877,11349,"Accounts payable, principally trade accounts",16338,16471,"Accounts payable, principally trade accounts",16338,16471,"Short-term borrowings (Note 10)",49892,70425,"Short-term borrowings (Note 10)",null,30714,49860,"Short-term borrowings (Note 10)",24036,30714,"Short-term borrowings assumed by GE (Note 11)",0,0,"All other assets (Note 10)",null,14597,13882,"Progress collections and deferred income (Note 8)",null,17372,18371]
["Dividends payable",1141,3340,"Dividends payable",1563,null,1141,"Dividends payable",1797,null,1563,"Dividends payable",1980,1797,"Progress collections and price adjustments accrued",12537,13125,"Progress collections and price adjustments accrued",12537,13125,"Accounts payable, principally trade accounts",13680,12067,"Accounts payable, principally trade accounts",null,14435,13680,"Accounts payable, principally trade accounts",15153,14435,"Accounts payable, principally trade accounts",15926,13826,"Deferred income taxes (Note 15)",null,12081,9889,"All other current liabilities (Note 13)",null,13977,15071]
["Other GE current liabilities",13386,18220,"Other GE current liabilities",11396,null,13386,"Other GE current liabilities",14796,null,11396,"Other GE current liabilities",14895,14796,"Dividends payable",2317,2220,"Dividends payable",2317,2220,"Progress collections and price adjustments accrued",15776,12537,"Progress collections and price adjustments accrued",null,16760,15776,"Progress collections and price adjustments accrued",18462,16760,"Progress collections and deferred income (Note 9)",20508,18983,"Assets of discontinued operations (Note 2)",null,3532,4109,"Current liabilities",null,51953,54613]
["Bank deposits (Note 10)",38923,36854,"Non-recourse borrowings of consolidated securitization entities (Note 10)",30060,null,3883,"Non-recourse borrowings of consolidated securitization entities (Note 10)",29258,null,30018,"Non-recourse borrowings of consolidated securitization entities (Note 10)",30123,29258,"Other GE current liabilities",12682,13381,"Other GE current liabilities",12682,13381,"Dividends payable",2167,2317,"Dividends payable",null,2107,2167,"Dividends payable",1052,2107,"Other GE current liabilities (Note 14)",15753,14866,"Total assets",null,253452,265177,"Deferred income (Note 8)",null,1989,1801]
["Long-term borrowings (Note 10)",338215,322847,"Bank deposits (Note 10)",37298,null,33519,"Bank deposits (Note 10)",43115,null,37298,"Bank deposits (Note 10)",46461,43115,"Non-recourse borrowings of consolidated securitization entities (Note 10)",29938,30124,"Non-recourse borrowings of consolidated securitization entities (Note 10)",29938,30124,"Other GE current liabilities",23597,14323,"Other GE current liabilities",null,17564,23597,"Other GE current liabilities",18697,17564,"Non-recourse borrowings of consolidated securitization entities (Note 11)",1655,1875,"Short-term borrowings (Note 11)",null,4778,23641,"Long-term borrowings (Note 10)",null,30824,70189]
["Investment contracts, insurance liabilities and insurance annuity benefits (Note 11)",31641,34032,"Long-term borrowings (Note 10)",293323,null,336172,"Long-term borrowings (Note 10)",243459,null,293323,"Long-term borrowings (Note 10)",236084,243459,"Bank deposits (Note 10)",62839,53361,"Bank deposits (Note 10)",62839,53361,"Non-recourse borrowings of consolidated securitization entities (Note 10)",3083,4403,"Non-recourse borrowings of consolidated securitization entities (Note 10)",null,417,3083,"Non-recourse borrowings of consolidated securitization entities (Note 10)",1980,417,"Long-term borrowings (Note 11)",67155,88949,"Short-term borrowings assumed by GE (Note 11)",null,0,0,"Insurance liabilities and annuity benefits (Note 11)",null,37166,42191]
["All other liabilities (Note 13)",58861,64796,"Investment contracts, insurance liabilities and insurance annuity benefits (Note 11)",29582,null,31641,"Investment contracts, insurance liabilities and insurance annuity benefits (Note 11)",29774,null,29582,"Investment contracts, insurance liabilities and insurance annuity benefits (Note 11)",28268,29774,"Long-term borrowings (Note 10)",200414,221665,"Long-term borrowings (Note 10)",200414,221665,"Long-term borrowings (Note 10)",145301,186596,"Long-term borrowings (Note 10)",null,105080,144659,"Long-term borrowings (Note 10)",108575,105080,"Long-term borrowings assumed by GE (Note 11)",0,0,"Accounts payable and equipment project accruals",null,16476,17357,"Non-current compensation and benefits",null,21202,29677]
["Deferred income taxes (Note 14)",2173,4584,"All other liabilities (Note 13)",58844,null,58776,"All other liabilities (Note 13)",70647,null,55271,"All other liabilities (Note 13)",68676,70653,"Investment contracts, insurance liabilities and insurance annuity benefits (Note 11)",27578,26544,"Investment contracts, insurance liabilities and insurance annuity benefits (Note 11)",27578,26544,"Investment contracts, insurance liabilities and insurance annuity benefits (Note 11)",25692,27432,"Investment contracts, insurance liabilities and insurance annuity benefits (Note 11)",null,26086,25692,"Investment contracts, insurance liabilities and insurance annuity benefits (Note 11)",38136,26086,"Operating lease liabilities (Note 7)",3162,null,"Progress collections and deferred income",null,18215,18389,"All other liabilities (Note 13)",null,13240,14781]
["Liabilities of businesses held for sale (Note 2)",6092,636,"Deferred income taxes (Note 14)",2840,null,2081,"Deferred income taxes (Note 14)",-131,null,2753,"Deferred income taxes (Note 14)",-75,-131,"All other liabilities (Note 13)",70484,61057,"All other liabilities (Note 13)",70484,61057,"Deferred income taxes",0,0,"Non-current compensation and benefits",null,43780,40487,"Non-current compensation and benefits",41630,43780,"Insurance liabilities and annuity benefits (Note 12)",39826,35562,"All other current liabilities (Note 14)",null,16600,17821,"Liabilities of discontinued operations (Note 2)",null,887,5886]
["Liabilities of discontinued operations (Note 2)",1301,1432,"Liabilities of businesses held for sale (Note 2)",16047,null,6092,"Liabilities of businesses held for sale (Note 2)",345,null,16047,"Liabilities of businesses held for sale (Note 2)",157,345,"Liabilities of businesses held for sale (Note 2)",3375,6,"Liabilities of businesses held for sale (Note 2)",3375,6,"Non-current compensation and benefits",40487,42238,"All other liabilities (Note 13)",null,22912,23611,"All other liabilities",22795,22912,"Non-current compensation and benefits",31687,31928,"Liabilities of businesses held for sale (Note 2)",null,0,1658,"Total liabilities",null,157262,219138]
["Total liabilities",656682,684157,"Liabilities of discontinued operations (Note 2)",2307,null,8486,"Liabilities of discontinued operations (Note 2)",1635,null,2587,"Liabilities of discontinued operations (Note 2)",2345,1629,"Liabilities of discontinued operations (Note 2)",1225,3933,"Liabilities of discontinued operations (Note 2)",1225,3933,"All other liabilities (Note 13)",22558,16511,"Liabilities of businesses held for sale (Note 2)",null,656,861,"Liabilities of businesses held for sale (Note 2)",1339,656,"All other liabilities (Note 14)",16583,20839,"Current liabilities",null,56069,78865,"Preferred stock (5,939,875 shares outstanding at both December 31, 2021\u2028 and December 31, 2020)",null,6,6]
["Preferred stock (30,000 shares outstanding at both year-end 2009 and 2008)",0,0,"Total liabilities",627018,"[2]",656765,"Total liabilities(a)",599108,"[1]",623595,"Total liabilities(a)",556858,600055,"Total liabilities(a)",511516,519777,"Total liabilities(a)",511516,519777,"Liabilities of businesses held for sale (Note 2)",861,941,"Liabilities of discontinued operations (Note 2)",null,4158,46487,"Liabilities of discontinued operations (Note 2)",706,4158,"Liabilities of businesses held for sale (Note 2)",1658,708,"Deferred income (Note 9)",null,1801,1555,"Common stock (1,099,027,213 and 1,095,686,581 shares outstanding \u2028 at December 31, 2021 and December 31, 2020, respectively)","[2]",15,702]
["Common stock (10,663,075,000 and 10,536,897,000 shares outstanding at year-end 2009 and 2008, respectively)",702,702,"Preferred stock (30,000 shares outstanding at both year-end 2010 and 2009)",null,null,null,"Preferred stock (0 and 30,000 shares outstanding at year-end 2011 and 2010, respectively)",0,null,0,"GECC preferred stock (40,000 and 0 shares outstanding at year-end 2012 and 2011, respectively)",0,0,"GECC preferred stock (50,000 shares outstanding at both year-end 2014 and 2013)",0,0,"GECC preferred stock (50,000 shares outstanding at both year-end 2014 and 2013)",0,0,"Liabilities of discontinued operations (Note 2)",46487,128233,"Total liabilities","[1]",284668,389961,"Total liabilities",292561,284668,"Liabilities of discontinued operations (Note 2)",203,19281,"Long-term borrowings (Note 11)",null,70288,67241,"Accumulated other comprehensive income (loss) – net attributable to GE",null,1582,-9749]
["Accumulated other comprehensive income - net",null,null,"Common stock (10,615,376,000 and 10,663,075,000 shares outstanding at year-end 2010 and 2009, respectively)",702,null,702,"Common stock (10,573,017,000 and 10,615,376,000 shares outstanding at year-end 2011 and 2010, respectively)",702,null,702,"Common stock (10,405,625,000 and 10,573,017,000 shares outstanding at year-end 2012 and 2011, respectively)",702,702,"Common stock (10,057,380,000 and 10,060,881,000 shares outstanding at year-end 2014 and 2013, respectively)",702,702,"Common stock (10,057,380,000 and 10,060,881,000 shares outstanding at year-end 2014 and 2013, respectively)",702,702,"Total liabilities(a)",389582,518023,"Redeemable noncontrolling interest (Note 15)",null,3025,2972,"Redeemable noncontrolling interests (Note 14)",3399,3025,"Total liabilities",236187,259591,"Long-term borrowings assumed by GE (Note 11)",null,0,0,"Other capital",null,34691,34307]
["Investment securities",-435,-3094,"Accumulated other comprehensive income - net (b)",null,null,null,"Accumulated other comprehensive income - net(b)",null,null,null,"Accumulated other comprehensive income attributable to GE(b)",null,null,"Accumulated other comprehensive income (loss) - attributable to GE(b)",null,null,"Accumulated other comprehensive income (loss) - attributable to GE(b)",null,null,"Redeemable noncontrolling interest (Note 15)",2972,98,"Preferred stock value (5,944,250 shares outstanding at December 31, 2016 and December 31, 2015)",null,6,6,"Preferred stock (5,939,874 and 5,944,250 and shares outstanding at December 31, 2017 and December 31, 2016, respectively)",6,6,"Preferred stock (5,939,875 shares outstanding at both December 31, 2019 and December 31, 2018)",6,6,"Insurance liabilities and annuity benefits (Note 12)",null,42191,39826,"Retained earnings",null,85110,92247]
["Currency translation adjustments",3836,-299,"Investment securities",-636,"[3]",-435,"Investment securities",-30,"[2]",-636,"Investment securities",677,-30,"Investment securities",1013,307,"Investment securities",1013,307,"Preferred stock value (5,944,250 shares outstanding at year-end 2015 and no shares outstanding at year-end 2014)",6,0,"Common stock (8,742,614,000 and 9,379,288,000 shares outstanding at December 31, 2016 and December 31, 2015, respectively)",null,702,702,"Common stock (8,680,571,000 and 8,742,614,000 shares outstanding at December 31, 2017 and December 31, 2016, respectively)",702,702,"Common stock (8,738,434,000 and 8,702,227,000 shares outstanding at December 31, 2019 and December 31, 2018, respectively)",702,702,"Non-current compensation and benefits",null,29752,31687,"Less common stock held in treasury",null,-81093,-81961]
["Cash flow hedges",-1734,-3332,"Currency translation adjustments",-86,"[3]",3836,"Currency translation adjustments",133,"[2]",-86,"Currency translation adjustments",412,133,"Currency translation adjustments",-2427,126,"Currency translation adjustments",-2427,126,"GECC preferred stock value (no shares outstanding at year-end 2015 and 50,000 shares outstanding at year-end 2014)",0,0,"Accumulated other comprehensive income (loss) - attributable to GE(b)",null,null,null,"Accumulated other comprehensive income (loss) – net attributable to GE",null,null,"Accumulated other comprehensive income (loss) – net attributable to GE",-11732,-14414,"All other liabilities (Note 14)",null,16077,15938,"Total GE shareholders’ equity",null,40310,35552]
["Benefit plans",-16932,-15128,"Cash flow hedges",-1280,"[3]",-1734,"Cash flow hedges",-1176,"[2]",-1280,"Cash flow hedges",-722,-1176,"Cash flow hedges",-180,-257,"Cash flow hedges",-180,-257,"Common stock (9,379,288,000 and 10,057,380,000 shares outstanding at year-end 2015 and 2014)",702,702,"Investment securities","[2]",674,460,"Investment securities",-102,674,"Other capital",34405,35504,"Liabilities of discontinued operations (Note 2)",null,200,203,"Noncontrolling interests (Note 15)",null,1302,1522]
["Other capital",37729,40390,"Benefit plans",-15853,"[3]",-16932,"Benefit plans",-22901,"[2]",-15853,"Benefit plans",-20597,-22901,"Benefit plans",-16578,-9296,"Benefit plans",-16578,-9296,"Accumulated other comprehensive income (loss) - attributable to GE(b)",null,null,"Currency translation adjustments","[2]",-6816,-5499,"Currency translation adjustments",-4653,-6816,"Retained earnings",87732,93109,"Total liabilities",null,216378,235316,"Total equity",null,41612,37073]
["Retained earnings",126363,122123,"Other capital",36890,null,37729,"Other capital",33693,null,36890,"Other capital",33070,33693,"Other capital",32889,32494,"Other capital",32889,32494,"Investment securities",460,1013,"Cash flow hedges","[2]",12,-80,"Cash flow hedges",62,12,"Less common stock held in treasury",-82797,-83925,"Preferred stock (5,939,875 shares outstanding at both December 31, 2020 and December 31, 2019)",null,6,6,"Total liabilities and equity",null,198874,256211]
["Less common stock held in treasury",-32238,-36697,"Retained earnings",131137,null,126363,"Retained earnings",137786,null,131137,"Retained earnings",144055,137786,"Retained earnings",155333,149051,"Retained earnings",155333,149051,"Currency translation adjustments",-5499,-2428,"Benefit plans","[2]",-12469,-11410,"Benefit plans",-9702,-12469,"Total GE shareholders’ equity",28316,30981,"Common stock (8,765,493,000 and 8,738,434,000 shares outstanding at December 31, 2020 and December 31, 2019, respectively)",null,702,702]
["Total GE shareowners' equity",117291,104665,"Less common stock held in treasury",-31938,null,-32238,"Less common stock held in treasury",-31769,null,-31938,"Less common stock held in treasury",-34571,-31769,"Treasury Stock, Value",-42593,-42561,"Treasury Stock, Value",-42593,-42561,"Cash flow hedges",-80,-180,"Other capital",null,37224,37613,"Other capital",37171,37224,"Noncontrolling interests (Note 16)",1545,20500,"Accumulated other comprehensive income (loss) – net attributable to GE",null,-9749,-11732,"[1]","Excluded $353 million and $455 million at December 31, 2021 and December 31, 2020, respectively, in our run-off Insurance business, which is subject to regulatory restrictions. This balance is included in All other assets. See Note 9 for further information."]
["Noncontrolling interests",7845,8947,"Total GE shareowners' equity",118936,null,117291,"Total GE shareowners' equity",116438,null,118936,"Total GE shareowners' equity",123026,116438,"Total GE shareowners' equity",128159,130566,"Total GE shareowners' equity",128159,130566,"Benefit plans",-11410,-16578,"Retained earnings",null,139532,140020,"Retained earnings",125682,139532,"Total equity",29861,51481,"Other capital",null,34307,34405,"[2]","Reduction of $687 million in common stock represents the change in par value of issued shares from $0.06 to $0.01 with the offsetting change in Other capital."]
["Total equity (Notes 15 and 16)",125136,113612,"Noncontrolling interests",5262,"[4],[5]",7845,"Noncontrolling interests(c)",1696,"[3],[4]",5262,"Noncontrolling interests(c)",5444,1696,"Noncontrolling interests(c)",8674,6217,"Noncontrolling interests(c)",8674,6217,"Other capital",37613,32889,"Less common stock held in treasury",null,-83038,-63539,"Less common stock held in treasury",-84902,-83038,"Total liabilities and equity",266048,311072,"Retained earnings",null,92247,87732]
["Total liabilities and equity",781818,797769,"Total equity (Notes 15 and 16)",124198,null,125136,"Total equity (Notes 15 and 16)",118134,null,124198,"Total equity (Notes 15 and 16)",128470,118134,"Total equity (Note 15 and 16)",136833,136783,"Total equity (Note 15 and 16)",136833,136783,"Retained earnings",140020,155333,"Total GE shareowners' equity",null,75828,98274,"Total GE shareowners’ equity",64263,75828,"GE",null,null,"Less common stock held in treasury",null,-81961,-82797]
[null,null,null,"Total liabilities and equity",751216,null,781901,"Total liabilities and equity",717242,null,747793,"Total liabilities and equity",685328,718189,"Total liabilities and equity",648349,656560,"Total liabilities and equity",648349,656560,"Less common stock held in treasury",-63539,-42593,"Noncontrolling interests (Note 15)","[3]",1663,1864,"Noncontrolling interests (Note 14)",17723,1663,"Cash, cash equivalents and restricted cash",17613,16632,"Total GE shareholders’ equity",null,35552,28316]
[null,null,null,"Financial Services (GECS) [Member]",null,null,null,"Subsidiaries [Member]",null,null,null,"Subsidiaries [Member]",null,null,"GE",null,null,"GE",null,null,"Total GE shareowners' equity",98274,128159,"Total equity (Note 15)",null,77491,100138,"Total equity (Note 14)",81986,77491,"Investment securities (Note 3)",10008,187,"Noncontrolling interests (Note 16)",null,1522,1545]
[null,null,null,"Assets",null,null,null,"Assets",null,null,null,"Assets",null,null,"Assets",null,null,"Assets",null,null,"Noncontrolling interests(c) (Note 15)",1864,8674,"Total liabilities, redeemable noncontrolling interests and equity",null,365183,493071,"Total liabilities, redeemable noncontrolling interests and equity",377945,365183,"Current receivables (Note 4)",13883,10262,"Total equity","[2]",37073,29861]
[null,null,null,"Cash and equivalents",60272,null,62584,"Cash and equivalents",8382,"[5]",19241,"Cash and equivalents",15509,8382,"Cash and equivalents",15916,13682,"Cash and equivalents",15916,13682,"Total equity",100138,136833,"GE",null,null,null,"GE",null,null,"Financing receivables – net (Note 5)",0,0,"Total liabilities and equity",null,253452,265177]
[null,null,null,"Investment securities (Note 3)",43921,null,51315,"Investment securities (Note 3)",18,"[5]",19,"Investment securities (Note 3)",74,18,"Investment securities (Note 3)",84,323,"Investment securities (Note 3)",84,323,"Total liabilities, redeemable noncontrolling interests and equity",492692,654954,"Assets",null,null,null,"Assets",null,null,"Inventories (Note 6)",14104,13803,"GE Industrial"]
[null,null,null,"Current receivables (Note 4)",null,null,null,"Current receivables (Note 4)",11807,"[5]",10383,"Current receivables (Note 4)",10872,11807,"Current receivables (Note 4)",11513,10970,"Current receivables (Note 4)",11513,10970,"GE",null,null,"Cash and equivalents","[4]",10525,10372,"Cash and equivalents",18211,10525,"Other GE Capital receivables",0,0,"Cash, cash equivalents and restricted cash",null,23209,17613]
[null,null,null,"Inventories (Note 5)",66,null,71,"Inventories (Note 5)",13741,"[5]",11460,"Inventories (Note 5)",15295,13741,"Inventories (Note 5)",17639,17257,"Inventories (Note 5)",17639,17257,"Assets",null,null,"Investment securities (Note 3)","[4]",137,151,"Investment securities (Note 3)",569,137,"Property, plant and equipment – net (Note 7)",14370,14828,"Investment securities (Note 3)",null,7319,9888]
[null,null,null,"Financing receivables - net (Notes 6 and 23)",319277,"[6]",326941,"Financing receivables - net (Notes 6 and 23)",0,"[5]",0,"Financing receivables - net (Notes 6 and 23)",0,0,"Financing receivables - net (Note 6 and 27)",0,0,"Financing receivables - net (Note 6 and 27)",0,0,"Cash and equivalents",10372,15916,"Current receivables (Note 4)","[4]",12715,14707,"Current receivables (Note 4)",14867,12715,"Operating lease assets (Note 7)",3077,null,"Current receivables (Note 4)",null,13442,13682]
[null,null,null,"Other GECS receivables",14299,null,18631,"Other GECS receivables",0,"[5]",0,"Other GECC receivables",0,0,"Other GECC receivables",0,0,"Other GECC receivables",0,0,"Investment securities (Note 3)",151,84,"Inventories (Note 5)","[4]",22263,22449,"Inventories (Note 5)",21848,22263,"Receivable from GE Capital",19142,22513,"Financing receivables – net (Note 5)",null,0,0]
[null,null,null,"Property, plant and equipment - net (Note 7)",53770,"[7]",56475,"Property, plant and equipment - net (Note 7)",14283,"[5]",12444,"Property, plant and equipment - net (Note 7)",16033,14283,"Property, plant and equipment - net (Note 7)",17207,17574,"Property, plant and equipment - net (Note 7)",17207,17574,"Current receivables (Note 4)",14707,11513,"Financing receivables - net (Note 6)","[4]",0,0,"Financing receivables – net (Note 6)",0,0,"Investment in GE Capital",15299,11412,"Inventories, including deferred inventory costs (Note 6)",null,15890,17215]
[null,null,null,"Investment in GECS",null,null,null,"Investment in GECS",77110,"[5]",68984,"Investment in GECC",77930,77110,"Investment in GECC",82549,77745,"Investment in GECC",82549,77745,"Inventories (Note 5)",22449,17639,"Other GE Capital receivables","[4]",0,0,"Other GE Capital receivables",0,0,"Goodwill (Note 8)",25895,33070,"Other GE Capital receivables",null,0,0]
[null,null,null,"Goodwill(Note 8)",27593,null,28463,"Goodwill (Note 8)",45395,"[5]",36880,"Goodwill (Note 8)",46143,45395,"Goodwill (Note 8)",51527,51453,"Goodwill (Note 8)",51527,51453,"Financing receivables - net (Note 6)",0,0,"Property, plant and equipment - net (Note 7)","[4]",19103,20145,"Property, plant and equipment – net (Note 7)",23963,19103,"Other intangible assets – net (Note 8)",10461,11942,"Receivable from GE Capital",null,2432,2104]
[null,null,null,"Other intangible assets - net (Note 8)",1885,null,3301,"Other intangible assets - net (Note 8)",10522,"[5]",8088,"Other intangible assets - net (Note 8)",10700,10522,"Other intangible assets - net (Note 8)",12984,13180,"Other intangible assets - net (Note 8)",12984,13180,"Other GE Capital Receivables",0,0,"Receivables from GE Capital (debt assumption)","[4]",58780,84704,"Receivable from GE Capital (debt assumption)(b)",39844,58780,"Contract and other deferred assets (Note 9)",16833,17431,"Current contract assets (Note 9)",null,5764,7390]
[null,null,null,"All other assets (Note 9)",79240,null,87340,"All other assets (Note 9)",36675,"[5]",17454,"All other assets (Note 9)",37936,36675,"All other assets (Note 9)",24680,23708,"All other assets (Note 9)",24680,23708,"Property, plant and equipment - net (Note 7)",20145,17207,"Investment in GE Capital","[4]",24677,46227,"Investment in GE Capital",13493,24677,"All other assets (Note 10)",8399,8578,"All other current assets (Note 10)",null,835,852]
[null,null,null,"Assets of businesses held for sale (Note 2)",3127,null,125,"Assets of businesses held for sale (Note 2)",0,"[5]",33760,"Assets of businesses held for sale (Note 2)",0,0,"Deferred income taxes",8772,5061,"Deferred income taxes",8772,5061,"Receivables from GE Capital (debt assumption)",85114,0,"Goodwill (Note 8)","[4]",68070,63157,"Goodwill (Note 8)",82985,68070,"Deferred income taxes (Note 15)",8189,10176,"Assets of businesses held for sale (Note 2)",null,0,8626]
[null,null,null,"Assets of discontinued operations (Note 2)",5228,null,15078,"Assets of discontinued operations (Note 2)",52,"[5]",50,"Assets of discontinued operations (Note 2)",9,52,"Assets of businesses held for sale (Note 2)",2805,0,"Assets of businesses held for sale (Note 2)",2805,0,"Investment in GE Capital",46227,82549,"Other intangible assets - net (Note 8)","[4]",16131,17365,"Other intangible assets – net (Note 8)",20014,16131,"Assets of businesses held for sale (Note 2)",8626,1524,"Current assets",null,68892,77371]
[null,null,null,"Total assets",608678,null,650324,"Total assets(a)",217985,"[5]",218763,"Total assets(a)",230501,217985,"Assets of discontinued operations (Note 2)",10,9,"Assets of discontinued operations (Note 2)",10,9,"Goodwill (Note 8)",63157,51526,"Contract assets (Note 9)","[4]",25162,21156,"Contract assets (Note 9)",28861,25162,"Assets of discontinued operations (Note 2)",202,59169,"Investment securities (Note 3)",null,36,120]
[null,null,null,"Liabilities and equity",null,null,null,"Liabilities and equity",null,null,null,"Liabilities and equity",null,null,"Total assets(a)",245686,230962,"Total assets(a)",245686,230962,"Other intangible assets - net (Note 8)",16312,12984,"All other assets (Note 9)","[4]",12007,12813,"All other assets",14035,12007,"Total assets",186100,231526,"Financing receivables – net (Note 5)",null,0,0]
[null,null,null,"Short-term borrowings (Note 10)",118797,null,130754,"Short-term borrowings (Note 10)",2184,"[5]",456,"Short-term borrowings (Note 10)",6041,2184,"Liabilities and equity",null,null,"Liabilities and equity",null,null,"Contract Assets (Note 9)",21156,16960,"Deferred income taxes (Note 14)","[4]",6666,7666,"Deferred income taxes (Note 13)",5204,6666,"Short-term borrowings (Note 11)",5606,5147,"Other GE Capital receivables",null,0,0]
[null,null,null,"Accounts payable, principally trade accounts",7036,null,13099,"Accounts payable, principally trade accounts",14209,"[5]",11620,"Accounts payable, principally trade accounts",14259,14209,"Short-term borrowings (Note 10)",3872,1841,"Short-term borrowings (Note 10)",3872,1841,"All other assets (Note 9)",13281,7722,"Assets of businesses held for sale (Note 2)","[4]",1629,2818,"Assets of businesses held for sale (Note 2)",3877,1629,"Short-term borrowings assumed by GE (Note 11)",5473,4207,"Property, plant and equipment – net (Note 7)",null,16433,17447]
[null,null,null,"Progress collections and price adjustments accrued",null,null,null,"Progress collections and price adjustments accrued",11349,"[5]",11841,"Progress collections and price adjustments accrued",10877,11349,"Accounts payable, principally trade accounts",16511,16353,"Accounts payable, principally trade accounts",16511,16353,"Deferred income taxes (Note 14)",7666,8772,"Assets of discontinued operations (Note 2)","[4]",9,9,"Assets of discontinued operations (Note 2)",0,9,"Accounts payable, principally trade accounts",17702,17579,"Receivable from GE Capital",null,16780,17038]
[null,null,null,"Dividends payable",null,null,null,"Dividends payable",1797,"[5]",1563,"Dividends payable",1980,1797,"Progress collections and price adjustments accrued",12550,13152,"Progress collections and price adjustments accrued",12550,13152,"Assets of businesses held for sale (Note 2)",2818,2805,"Total assets","[4]",277874,323737,"Total assets",287770,277874,"Progress collections and deferred income (Note 9)",20694,19239,"Goodwill (Note 8)",null,25524,25895]
[null,null,null,"Other GE current liabilities",null,null,null,"Other GE current liabilities",14796,"[5]",11396,"Other GE current liabilities",14896,14796,"Dividends payable",2317,2220,"Dividends payable",2317,2220,"Assets of discontinued operations (Note 2)",9,9,"Liabilities and equity",null,null,null,"Liabilities and equity",null,null,"Other GE current liabilities (Note 14)",16833,16444,"Other intangible assets – net (Note 8)",null,9632,10461]
[null,null,null,"Non-recourse borrowings of consolidated securitization entities (Note 10)",30060,null,3883,"Non-recourse borrowings of consolidated securitization entities (Note 10)",0,"[5]",0,"Non-recourse borrowings of consolidated securitization entities (Note 10)",0,0,"Other GE current liabilities",12681,13381,"Other GE current liabilities",12681,13381,"Total assets(a)",323562,245686,"Short-term borrowings (Note 10)","[4],[5]",20482,19792,"Short-term borrowings (Note 10)",14548,20482,"Non-recourse borrowings of consolidated securitization entities (Note 11)",0,0,"Contract and other deferred assets (Note 9)",null,5921,5769]
[null,null,null,"Bank deposits (Note 10)",37298,null,33519,"Bank deposits (Note 10)",0,"[5]",0,"Bank deposits (Note 10)",0,0,"Non-recourse borrowings of consolidated securitization entities (Note 10)",0,0,"Non-recourse borrowings of consolidated securitization entities (Note 10)",0,0,"Liabilities and equity",null,null,"Accounts payable, principally trade accounts","[4]",20876,19250,"Accounts payable, principally trade accounts",21634,20876,"Long-term borrowings (Note 11)",15085,20804,"All other assets (Note 10)",null,7948,7748]
[null,null,null,"Long-term borrowings (Note 10)",284407,null,325429,"Long-term borrowings (Note 10)",9405,"[5]",9656,"Long-term borrowings (Note 10)",11428,9405,"Bank deposits (Note 10)",0,0,"Bank deposits (Note 10)",0,0,"Short-term borrowings (Note 10)",19799,3872,"Progress collections and price adjustments accrued","[4]",16838,15776,"Progress collections and price adjustments accrued",18566,16838,"Long-term borrowings assumed by GE (Note 11)",25895,32054,"Deferred income taxes (Note 15)",null,9350,8189]
[null,null,null,"Investment contracts, insurance liabilities and insurance annuity benefits (Note 11)",29993,null,32009,"Investment contracts, insurance liabilities and insurance annuity benefits (Note 11)",0,"[5]",0,"Investment contracts, insurance liabilities and insurance annuity benefits (Note 11)",0,0,"Long-term borrowings (Note 10)",12468,11515,"Long-term borrowings (Note 10)",12468,11515,"Accounts payable, principally trade accounts",19250,16511,"Dividends payable","[4]",2107,2167,"Dividends payable",1052,2107,"Operating lease liabilities (Note 7)",3369,null,"Assets of discontinued operations (Note 2)",null,144,202]
[null,null,null,"All other liabilities (Note 13)",21127,null,23671,"All other liabilities (Note 13)",53826,"[5]",37815,"All other liabilities (Note 13)",53093,53826,"Investment contracts, insurance liabilities and insurance annuity benefits (Note 11)",0,0,"Investment contracts, insurance liabilities and insurance annuity benefits (Note 11)",0,0,"Progress collections and price adjustments accrued",15776,12550,"Other GE current liabilities","[4]",17564,23595,"Other GE current liabilities",18697,17564,"Insurance liabilities and annuity benefits (Note 12)",0,0,"Total assets",null,160658,170238]
[null,null,null,"Deferred income taxes (Note 14)",7077,null,6701,"Deferred income taxes (Note 14)",-7183,"[5]",-4237,"Deferred income taxes (Note 14)",-5946,-7183,"All other liabilities (Note 13)",54662,40955,"All other liabilities (Note 13)",54662,40955,"Dividends payable",2167,2317,"Non-recourse borrowings of consolidated securitization entities (Note 10)","[4]",0,0,"Non-recourse borrowings of consolidated securitization entities (Note 10)",0,0,"Non-current compensation and benefits",31208,31461,"Short-term borrowings (Note 11)",null,918,5606]
[null,null,null,"Liabilities of businesses held for sale (Note 2)",592,null,55,"Liabilities of businesses held for sale (Note 2)",0,"[5]",15455,"Liabilities of businesses held for sale (Note 2)",0,0,"Liabilities of businesses held for sale (Note 2)",1504,0,"Liabilities of businesses held for sale (Note 2)",1504,0,"Other GE current liabilities",23595,14322,"Long-term borrowings (Note 10)","[4],[5]",58810,83309,"Long-term borrowings (Note 10)",67040,58810,"All other liabilities (Note 14)",12787,14881,"Short-term borrowings assumed by GE (Note 11)",null,2432,5473]
[null,null,null,"Liabilities of discontinued operations (Note 2)",2143,null,8323,"Liabilities of discontinued operations (Note 2)",158,"[5]",164,"Liabilities of discontinued operations (Note 2)",70,158,"Liabilities of discontinued operations (Note 2)",137,143,"Liabilities of discontinued operations (Note 2)",137,143,"Non-recourse borrowings of consolidated securitization entities (Note 10)",0,0,"Investment contracts, insurance liabilities and insurance annuity benefits (Note 11)","[4]",0,0,"Investment contracts, insurance liabilities and insurance annuity benefits (Note 11)",0,0,"Liabilities of businesses held for sale (Note 2)",1620,748,"Accounts payable and equipment project accruals",null,16380,19134]
[null,null,null,"Total liabilities",538530,null,577443,"Total liabilities(a)",100541,"[5]",95729,"Total liabilities(a)",106698,100541,"Total liabilities(a)",116702,99560,"Total liabilities(a)",116702,99560,"Long-term borrowings (Note 10)",83770,12468,"Non-current compensation and benefits","[4]",42770,39472,"Non-current compensation and benefits",40820,42770,"Liabilities of discontinued operations (Note 2)",106,17481,"Progress collections and deferred income",null,18371,18575]
[null,null,null,"Preferred stock (30,000 shares outstanding at both year-end 2010 and 2009)",null,null,null,"Preferred stock (0 and 30,000 shares outstanding at year-end 2011 and 2010, respectively)",0,"[5]",0,"GECC preferred stock (40,000 and 0 shares outstanding at year-end 2012 and 2011, respectively)",0,0,"GECC preferred stock (50,000 shares outstanding at both year-end 2014 and 2013)",0,0,"GECC preferred stock (50,000 shares outstanding at both year-end 2014 and 2013)",0,0,"Investment contracts, insurance liabilities and insurance annuity benefits (Note 11)",0,0,"All other liabilities (Note 13)","[4]",17506,16217,"All other liabilities",18884,17506,"Total liabilities",156379,180045,"All other current liabilities (Note 14)",null,14131,15251]
[null,null,null,"Common stock (10,615,376,000 and 10,663,075,000 shares outstanding at year-end 2010 and 2009, respectively)",1,null,1,"Common stock (10,573,017,000 and 10,615,376,000 shares outstanding at year-end 2011 and 2010, respectively)",702,"[5]",702,"Common stock (10,405,625,000 and 10,573,017,000 shares outstanding at year-end 2012 and 2011, respectively)",702,702,"Common stock (10,057,380,000 and 10,060,881,000 shares outstanding at year-end 2014 and 2013, respectively)",702,702,"Common stock (10,057,380,000 and 10,060,881,000 shares outstanding at year-end 2014 and 2013, respectively)",702,702,"Deferred income taxes",0,0,"Liabilities of businesses held for sale (Note 2)","[4]",656,1409,"Liabilities of businesses held for sale (Note 2)",1339,656,"Preferred stock (5,939,875 shares outstanding at both December 31, 2019 and December 31, 2018)",6,6,"Liabilities of businesses held for sale (Note 2)",null,0,1620]
[null,null,null,"Accumulated other comprehensive income - net (b)",null,null,null,"Accumulated other comprehensive income - net(b)",null,null,null,"Accumulated other comprehensive income attributable to GE(b)",null,null,"Accumulated other comprehensive income (loss) - attributable to GE(b)",null,null,"Accumulated other comprehensive income (loss) - attributable to GE(b)",null,null,"Non-current compensation and benefits",39472,41494,"Liabilities of discontinued operations (Note 2)","[4]",35,128,"Liabilities of discontinued operations (Note 2)",23,35,"Common stock (8,738,434,000 and 8,702,227,000 shares outstanding at December 31, 2019 and December 31, 2018, respectively)",702,702,"Current liabilities",null,52232,65660]
[null,null,null,"Investment securities",-639,null,-436,"Investment securities",-30,"[5]",-636,"Investment securities",677,-30,"Investment securities",1013,307,"Investment securities",1013,307,"All other liabilities (Note 13)",15573,11429,"Total liabilities","[4]",197644,221115,"Total liabilities",202602,197644,"Accumulated other comprehensive income (loss) – net attributable to GE",-11732,-14414,"Deferred income (Note 9)",null,1801,1555]
[null,null,null,"Currency translation adjustments",-1411,null,1372,"Currency translation adjustments",133,"[5]",-86,"Currency translation adjustments",412,133,"Currency translation adjustments",-2427,126,"Currency translation adjustments",-2427,126,"Liabilities of businesses held for sale (Note 2)",1409,1504,"Redeemable noncontrolling interest (Note 15)","[4]",3025,2972,"Redeemable noncontrolling interests (Note 14)",3399,3025,"Other capital",34405,35504,"Long-term borrowings (Note 11)",null,19428,15085]
[null,null,null,"Cash flow hedges",-1281,null,-1769,"Cash flow hedges",-1176,"[5]",-1280,"Cash flow hedges",-722,-1176,"Cash flow hedges",-180,-257,"Cash flow hedges",-180,-257,"Liabilities of discontinued operations (Note 2)",128,137,"Preferred stock value (5,944,250 shares outstanding at December 31, 2016 and December 31, 2015)","[4]",6,6,"Preferred stock (5,939,874 and 5,944,250 and shares outstanding at December 31, 2017 and December 31, 2016, respectively)",6,6,"Retained earnings",87732,93109,"Long-term borrowings assumed by GE (Note 11)",null,19957,25895]
[null,null,null,"Benefit plans",-380,null,-434,"Benefit plans",-22901,"[5]",-15853,"Benefit plans",-20597,-22901,"Benefit plans",-16578,-9296,"Benefit plans",-16578,-9296,"Total liabilities(a)",220938,116604,"Common stock (8,742,614,000 and 9,379,288,000 shares outstanding at December 31, 2016 and December 31, 2015, respectively)","[4]",702,702,"Common stock (8,680,571,000 and 8,742,614,000 shares outstanding at December 31, 2017 and December 31, 2016, respectively)",702,702,"Less common stock held in treasury",-82797,-83925,"Insurance liabilities and annuity benefits (Note 12)",null,0,0]
[null,null,null,"Other capital",27626,null,27591,"Other capital",33693,"[5]",36890,"Other capital",33070,33693,"Other capital",32889,32494,"Other capital",32889,32494,"Redeemable noncontrolling interest (Note 15)",2972,98,"Accumulated other comprehensive income (loss) - attributable to GE(b)",null,null,null,"Accumulated other comprehensive income (loss) – net attributable to GE",null,null,"Total GE shareholders’ equity",28316,30981,"Non-current compensation and benefits",null,29291,31208]
[null,null,null,"Retained earnings",45068,null,44508,"Retained earnings",137786,"[5]",131137,"Retained earnings",144055,137786,"Retained earnings",155333,149051,"Retained earnings",155333,149051,"Preferred stock value (5,944,250 shares outstanding at year-end 2015 and no shares outstanding at year-end 2014)",6,0,"Investment securities","[4]",674,460,"Investment securities",-102,674,"Noncontrolling interests (Note 16)",1406,20499,"All other liabilities (Note 14)",null,16440,16306]
[null,null,null,"Less common stock held in treasury",null,null,null,"Less common stock held in treasury",-31769,"[5]",-31938,"Less common stock held in treasury",-34571,-31769,"Treasury Stock, Value",-42593,-42561,"Treasury Stock, Value",-42593,-42561,"GECC preferred stock value (no shares outstanding at year-end 2015 and 50,000 shares outstanding at year-end 2014)",0,0,"Currency translation adjustments","[4]",-6816,-5499,"Currency translation adjustments",-4653,-6816,"Total equity",29721,51480,"Liabilities of discontinued operations (Note 2)",null,139,106]
[null,null,null,"Total GE shareowners' equity",68984,null,70833,"Total GE shareowners' equity",116438,"[5]",118936,"Total GE shareowners' equity",123026,116438,"Total GE shareowners' equity",128159,130566,"Total GE shareowners' equity",128159,130566,"Common stock (9,379,288,000 and 10,057,380,000 shares outstanding at year-end 2015 and 2014)",702,702,"Cash flow hedges","[4]",12,-80,"Cash flow hedges",62,12,"Total liabilities and equity",186100,231526,"Total liabilities",null,139289,155815]
[null,null,null,"Noncontrolling interests",1164,null,2048,"Noncontrolling interests(c)",1006,"[5]",4098,"Noncontrolling interests(c)",777,1006,"Noncontrolling interests(c)",825,836,"Noncontrolling interests(c)",825,836,"Accumulated other comprehensive income (loss) - attributable to GE(b)",null,null,"Benefit plans","[4]",-12469,-11410,"Benefit plans",-9702,-12469,"GE Capital",null,null,"Preferred stock (5,939,875 shares outstanding at both December 31, 2020 and December 31, 2019)",null,6,6]
[null,null,null,"Total equity (Notes 15 and 16)",70148,null,72881,"Total equity (Notes 15 and 16)",117444,"[5]",123034,"Total equity (Notes 15 and 16)",123803,117444,"Total equity (Note 15 and 16)",128984,131402,"Total equity (Note 15 and 16)",128984,131402,"Investment securities",460,1013,"Other capital","[4]",37224,37613,"Other capital",37171,37224,"Cash, cash equivalents and restricted cash",18781,14492,"Common stock (8,765,493,000 and 8,738,434,000 shares outstanding at December 31, 2020 and December 31, 2019, respectively)",null,702,702]
[null,null,null,"Total liabilities and equity",608678,null,650324,"Total liabilities and equity",217985,"[5]",218763,"Total liabilities and equity",230501,217985,"Total liabilities and equity",245686,230962,"Total liabilities and equity",245686,230962,"Currency translation adjustments",-5499,-2428,"Retained earnings","[4]",139532,140020,"Retained earnings",125682,139532,"Investment securities (Note 3)",38514,33393,"Accumulated other comprehensive income (loss) – net attributable to GE",null,-8945,-10881]
[null,null,null,"GE [Member]",null,null,null,"Subsidiaries GECS [Member]",null,null,null,"Subsidiaries GECC [Member]",null,null,"GECC",null,null,"GECC",null,null,"Cash flow hedges",-80,-180,"Less common stock held in treasury","[4]",-83038,-63539,"Less common stock held in treasury",-84902,-83038,"Current receivables (Note 4)",0,0,"Other capital",null,15294,17398]
[null,null,null,"Assets",null,null,null,"Assets",null,null,null,"Assets",null,null,"Assets",null,null,"Assets",null,null,"Benefit plans",-11410,-16578,"Total GE shareowners' equity","[4]",75828,98274,"Total GE shareowners’ equity",64263,75828,"Financing receivables – net (Note 5)",6979,13628,"Retained earnings",null,94910,88589]
[null,null,null,"Cash and equivalents",19241,"[8]",8654,"Cash and equivalents",76702,null,60257,"Cash and equivalents",61941,76702,"Cash and equivalents",74292,74873,"Cash and equivalents",74292,74873,"Other capital",37613,32889,"Noncontrolling interests (Note 15)","[4]",1378,1378,"Noncontrolling interests (Note 14)",17506,1378,"Inventories (Note 6)",0,0,"Less common stock held in treasury",null,-81961,-82797]
[null,null,null,"Investment securities (Note 3)",19,"[8]",30,"Investment securities (Note 3)",47359,null,43921,"Investment securities (Note 3)",48439,47359,"Investment securities (Note 3)",47827,43662,"Investment securities (Note 3)",47827,43662,"Retained earnings",140020,155333,"Total equity (Note 15)","[4]",77205,99651,"Total equity (Note 14)",81769,77205,"Other GE Capital receivables",11767,15361,"Total GE shareholders’ equity",null,20006,13017]
[null,null,null,"Current receivables (Note 4)",10383,"[8]",9818,"Current receivables (Note 4)",0,null,0,"Current receivables (Note 4)",0,0,"Current receivables (Note 4)",0,0,"Current receivables (Note 4)",0,0,"Less common stock held in treasury",-63539,-42593,"Total liabilities, redeemable noncontrolling interests and equity","[4]",277874,323737,"Total liabilities, redeemable noncontrolling interests and equity",287770,277874,"Property, plant and equipment – net (Note 7)",29649,29510,"Noncontrolling interests (Note 16)",null,1363,1406]
[null,null,null,"Inventories (Note 5)",11460,"[8]",11916,"Inventories (Note 5)",51,null,66,"Inventories (Note 5)",79,51,"Inventories (Note 5)",50,68,"Inventories (Note 5)",50,68,"Total GE shareowners' equity",98274,128159,"GE Capital",null,null,null,"Financial Services (GE Capital)",null,null,"Operating lease assets (Note 7)",237,null,"Total equity",null,21369,14423]
[null,null,null,"Financing receivables - net (Notes 6 and 23)",null,"[8]",null,"Financing receivables - net (Notes 6 and 23)",289307,null,312234,"Financing receivables - net (Notes 6 and 23)",268951,288847,"Financing receivables - net (Note 6 and 27)",237018,253029,"Financing receivables - net (Note 6 and 27)",237018,253029,"Noncontrolling interests(c) (Note 15)",1378,825,"Assets",null,null,null,"Assets",null,null,"Receivable from GE Capital",0,0,"Total liabilities and equity",null,160658,170238]
[null,null,null,"Other GECS receivables",null,"[8]",null,"Other GECS receivables",13390,null,12919,"Other GECC receivables",13988,13390,"Other GECC receivables",16683,16513,"Other GECC receivables",16683,16513,"Total equity",99651,128984,"Cash and equivalents",null,37604,60111,"Cash and equivalents",25088,37604,"Investment in GE Capital",0,0,"GE Capital"]
[null,null,null,"Property, plant and equipment - net (Note 7)",12444,"[8]",12495,"Property, plant and equipment - net (Note 7)",51419,null,53768,"Property, plant and equipment - net (Note 7)",53673,51419,"Property, plant and equipment - net (Note 7)",49570,51607,"Property, plant and equipment - net (Note 7)",49570,51607,"Total liabilities, redeemable noncontrolling interests and equity",323562,245686,"Investment securities (Note 3)",null,44180,31827,"Investment securities (Note 3)",38231,44180,"Goodwill (Note 8)",839,904,"Cash, cash equivalents and restricted cash",null,13421,18198]
[null,null,null,"Investment in GECS",68984,"[8]",70833,"Investment in GECS",0,null,0,"Investment in GECC",0,0,"Investment in GECC",0,0,"Investment in GECC",0,0,"GE Capital",null,null,"Current receivables (Note 4)",null,0,0,"Current receivables (Note 4)",0,0,"Other intangible assets – net (Note 8)",192,236,"Investment securities (Note 3)",null,0,0]
[null,null,null,"Goodwill(Note 8)",36880,"[8]",36613,"Goodwill (Note 8)",27230,null,27508,"Goodwill (Note 8)",27304,27230,"Goodwill (Note 8)",25026,26195,"Goodwill (Note 8)",25026,26195,"Assets",null,null,"Inventories (Note 5)",null,91,66,"Inventories (Note 5)",75,91,"Contract and other deferred assets (Note 9)",0,0,"Current receivables (Note 4)",null,0,0]
[null,null,null,"Other intangible assets - net (Note 8)",8088,"[8]",8450,"Other intangible assets - net (Note 8)",1546,null,1883,"Other intangible assets - net (Note 8)",1294,1546,"Other intangible assets - net (Note 8)",1176,1136,"Other intangible assets - net (Note 8)",1176,1136,"Cash and equivalents",60111,54109,"Financing receivables - net (Note 6)",null,26041,25003,"Financing receivables – net (Note 6)",21967,26041,"All other assets (Note 10)",8648,9869,"Financing receivables – net (Note 5)",null,5110,4922]
[null,null,null,"All other assets (Note 9)",17454,"[8]",17097,"All other assets (Note 9)",75618,null,77197,"All other assets (Note 9)",62217,75612,"All other assets (Note 9)",43875,47366,"All other assets (Note 9)",43875,47366,"Investment securities (Note 3)",31827,35425,"Other GE Capital receivables",null,15576,15455,"Other GE Capital receivables",16945,15576,"Deferred income taxes (Note 15)",1700,1936,"Inventories, including deferred inventory costs (Note 6)",null,0,0]
[null,null,null,"Assets of businesses held for sale (Note 2)",33760,"[8]",33986,"Assets of businesses held for sale (Note 2)",711,null,3127,"Assets of businesses held for sale (Note 2)",211,711,"Deferred income taxes",-6231,-4786,"Deferred income taxes",-6231,-4786,"Current receivables (Note 4)",0,0,"Property, plant and equipment - net (Note 7)",null,32225,34781,"Property, plant and equipment – net (Note 7)",30595,32225,"Assets of businesses held for sale (Note 2)",241,0,"Other GE Capital receivables",null,5069,6881]
[null,null,null,"Assets of discontinued operations (Note 2)",50,"[8]",50,"Assets of discontinued operations (Note 2)",1203,null,12375,"Assets of discontinued operations (Note 2)",1126,1669,"Assets of businesses held for sale (Note 2)",3474,50,"Assets of businesses held for sale (Note 2)",3474,50,"Inventories (Note 5)",66,50,"Receivables from GE Capital (debt assumption)",null,0,0,"Receivable from GE Capital (debt assumption)(b)",0,0,"Assets of discontinued operations (Note 2)",3907,4610,"Receivable from GE Capital",null,0,0]
[null,null,null,"Total assets",218763,"[8]",209942,"Total assets(a)",584536,null,605255,"Total assets(a)",539223,584536,"Assets of discontinued operations (Note 2)",1225,2330,"Assets of discontinued operations (Note 2)",1225,2330,"Financing receivables - net (Note 6)",25003,25647,"Investment in GE Capital",null,0,0,"Investment in GE Capital",0,0,"Total assets",121454,123939,"Current contract assets (Note 9)",null,0,0]
[null,null,null,"Liabilities and equity",null,null,null,"Liabilities and equity",null,null,null,"Liabilities and equity",null,null,"Total assets(a)",493985,512043,"Total assets(a)",493985,512043,"Other GE Capital Receivables",15865,13848,"Goodwill (Note 8)",null,2368,2370,"Goodwill (Note 8)",984,2368,"Short-term borrowings (Note 11)",12030,4999,"All other current assets (Note 10)",null,1021,2936]
[null,null,null,"Short-term borrowings (Note 10)",456,"[8]",504,"Short-term borrowings (Note 10)",136333,null,118797,"Short-term borrowings (Note 10)",95940,136333,"Liabilities and equity",null,null,"Liabilities and equity",null,null,"Property, plant and equipment - net (Note 7)",34781,31253,"Other intangible assets - net (Note 8)",null,305,435,"Other intangible assets – net (Note 8)",259,305,"Short-term borrowings assumed by GE (Note 11)",2104,2684,"Assets of businesses held for sale (Note 2)",null,0,241]
[null,null,null,"Accounts payable, principally trade accounts",11620,"[8]",10373,"Accounts payable, principally trade accounts",7239,null,7035,"Accounts payable, principally trade accounts",6277,7239,"Short-term borrowings (Note 10)",68780,77298,"Short-term borrowings (Note 10)",68780,77298,"Receivables from GE Capital (debt assumption)",0,0,"Contract assets (Note 9)",null,0,0,"Contract assets (Note 9)",0,0,"Accounts payable, principally trade accounts",886,1171,"Current assets",null,24621,33177]
[null,null,null,"Progress collections and price adjustments accrued",11841,"[8]",12957,"Progress collections and price adjustments accrued",0,null,0,"Progress collections and price adjustments accrued",0,0,"Accounts payable, principally trade accounts",6177,6549,"Accounts payable, principally trade accounts",6177,6549,"Investment in GE Capital",0,0,"All other assets (Note 9)",null,14608,25081,"All other assets",15662,14608,"Progress collections and deferred income (Note 9)",0,0,"Investment securities (Note 3)",null,42515,38514]
[null,null,null,"Dividends payable",1563,"[8]",1141,"Dividends payable",0,null,0,"Dividends payable",0,0,"Progress collections and price adjustments accrued",0,0,"Progress collections and price adjustments accrued",0,0,"Goodwill (Note 8)",2370,1680,"Deferred income taxes (Note 14)",null,-4833,-4561,"Deferred income taxes (Note 13)",999,null,"Other GE current liabilities (Note 14)",0,0,"Financing receivables – net (Note 5)",null,1771,2057]
[null,null,null,"Other GE current liabilities",11396,"[8]",13386,"Other GE current liabilities",0,null,0,"Other GE current liabilities",0,0,"Dividends payable",0,0,"Dividends payable",0,0,"Other intangible assets - net (Note 8)",435,202,"Assets of businesses held for sale (Note 2)",null,0,0,"Deferred income taxes (Note 13)",null,-4833,"Non-recourse borrowings of consolidated securitization entities (Note 11)",1655,1875,"Other GE Capital receivables",null,5076,4886]
[null,null,null,"Non-recourse borrowings of consolidated securitization entities (Note 10)",null,"[8]",null,"Non-recourse borrowings of consolidated securitization entities (Note 10)",29258,null,30018,"Non-recourse borrowings of consolidated securitization entities (Note 10)",30123,29258,"Other GE current liabilities",0,0,"Other GE current liabilities",0,0,"Contract Assets (Note 9)",0,0,"Assets of discontinued operations (Note 2)",null,14806,120942,"Assets of businesses held for sale (Note 2)",0,0,"Long-term borrowings (Note 11)",26175,36154,"Property, plant and equipment – net (Note 7)",null,29600,29886]
[null,null,null,"Bank deposits (Note 10)",null,"[8]",null,"Bank deposits (Note 10)",43115,null,37298,"Bank deposits (Note 10)",46461,43115,"Non-recourse borrowings of consolidated securitization entities (Note 10)",29938,30124,"Non-recourse borrowings of consolidated securitization entities (Note 10)",29938,30124,"All other assets (Note 9)",25287,17445,"Total assets",null,182970,311508,"Assets of discontinued operations (Note 2)",5912,14806,"Long-term borrowings assumed by GE (Note 11)",17038,19828,"Receivable from GE Capital",null,0,0]
[null,null,null,"Long-term borrowings (Note 10)",9656,"[8]",11681,"Long-term borrowings (Note 10)",234391,null,284407,"Long-term borrowings (Note 10)",224776,234391,"Bank deposits (Note 10)",62839,53361,"Bank deposits (Note 10)",62839,53361,"Deferred income taxes (Note 14)",-4561,-2590,"Liabilities and equity",null,null,null,"Total assets",156716,182970,"Operating lease liabilities (Note 7)",238,null,"Goodwill (Note 8)",null,0,839]
[null,null,null,"Investment contracts, insurance liabilities and insurance annuity benefits (Note 11)",null,"[8]",null,"Investment contracts, insurance liabilities and insurance annuity benefits (Note 11)",30198,null,29993,"Investment contracts, insurance liabilities and insurance annuity benefits (Note 11)",28696,30198,"Long-term borrowings (Note 10)",187991,210279,"Long-term borrowings (Note 10)",187991,210279,"Assets of businesses held for sale (Note 2)",0,0,"Short-term borrowings (Note 10)","[5]",23443,48617,"Liabilities and equity",null,null,"Insurance liabilities and annuity benefits (Note 12)",40232,35994,"Other intangible assets – net (Note 8)",null,143,192]
[null,null,null,"All other liabilities (Note 13)",37815,"[8]",35232,"All other liabilities (Note 13)",17328,null,17554,"All other liabilities (Note 13)",16050,17334,"Investment contracts, insurance liabilities and insurance annuity benefits (Note 11)",28027,26979,"Investment contracts, insurance liabilities and insurance annuity benefits (Note 11)",28027,26979,"Assets of discontinued operations (Note 2)",120942,323520,"Accounts payable, principally trade accounts",null,1605,1745,"Short-term borrowings (Note 10)",19602,23443,"Non-current compensation and benefits",472,459,"Contract and other deferred assets (Note 9)",null,0,0]
[null,null,null,"Deferred income taxes (Note 14)",-4237,"[8]",-4620,"Deferred income taxes (Note 14)",7052,null,6990,"Deferred income taxes (Note 14)",5871,7052,"All other liabilities (Note 13)",16313,20531,"All other liabilities (Note 13)",16313,20531,"Total assets(a)",312125,500589,"Progress collections and price adjustments accrued",null,0,0,"Accounts payable, principally trade accounts",1853,1605,"All other liabilities (Note 14)",5040,7562,"All other assets (Note 10)",null,7068,6294]
[null,null,null,"Liabilities of businesses held for sale (Note 2)",15455,"[8]",6037,"Liabilities of businesses held for sale (Note 2)",345,null,592,"Liabilities of businesses held for sale (Note 2)",157,345,"Liabilities of businesses held for sale (Note 2)",2434,6,"Liabilities of businesses held for sale (Note 2)",2434,6,"Liabilities and equity",null,null,"Dividends payable",null,0,0,"Progress collections and price adjustments accrued",0,0,"Liabilities of businesses held for sale (Note 2)",52,0,"Deferred income taxes (Note 15)",null,2731,1700]
[null,null,null,"Liabilities of discontinued operations (Note 2)",164,"[8]",163,"Liabilities of discontinued operations (Note 2)",1477,null,2423,"Liabilities of discontinued operations (Note 2)",2275,1471,"Liabilities of discontinued operations (Note 2)",1088,3790,"Liabilities of discontinued operations (Note 2)",1088,3790,"Short-term borrowings (Note 10)",48650,67416,"Other GE current liabilities",null,0,0,"Dividends payable",0,0,"Liabilities of discontinued operations (Note 2)",97,1800,"Assets of discontinued operations (Note 2)",null,3388,3907]
[null,null,null,"Total liabilities",95729,"[8]",86854,"Total liabilities(a)",506736,null,535107,"Total liabilities(a)",456626,506736,"Total liabilities(a)",403587,428917,"Total liabilities(a)",403587,428917,"Accounts payable, principally trade accounts",1745,1905,"Non-recourse borrowings of consolidated securitization entities (Note 10)",null,417,3083,"Other GE current liabilities",0,0,"Total liabilities",106016,112527,"Total assets",null,116914,121454]
[null,null,null,"Preferred stock (30,000 shares outstanding at both year-end 2010 and 2009)",null,"[8]",null,"Preferred stock (0 and 30,000 shares outstanding at year-end 2011 and 2010, respectively)",0,null,0,"GECC preferred stock (40,000 and 0 shares outstanding at year-end 2012 and 2011, respectively)",0,0,"GECC preferred stock (50,000 shares outstanding at both year-end 2014 and 2013)",0,0,"GECC preferred stock (50,000 shares outstanding at both year-end 2014 and 2013)",0,0,"Progress collections and price adjustments accrued",0,0,"Long-term borrowings (Note 10)","[5]",93443,128478,"Non-recourse borrowings of consolidated securitization entities (Note 10)",1980,417,"Preferred stock (5,939,875 shares outstanding at both December 31, 2019 and December 31, 2018)",6,6,"Short-term borrowings (Note 11)",null,2028,13598]
[null,null,null,"Common stock (10,615,376,000 and 10,663,075,000 shares outstanding at year-end 2010 and 2009, respectively)",702,"[8]",702,"Common stock (10,573,017,000 and 10,615,376,000 shares outstanding at year-end 2011 and 2010, respectively)",1,null,1,"Common stock (10,405,625,000 and 10,573,017,000 shares outstanding at year-end 2012 and 2011, respectively)",0,0,"Common stock (10,057,380,000 and 10,060,881,000 shares outstanding at year-end 2014 and 2013, respectively)",0,0,"Common stock (10,057,380,000 and 10,060,881,000 shares outstanding at year-end 2014 and 2013, respectively)",0,0,"Dividends payable",0,0,"Investment contracts, insurance liabilities and insurance annuity benefits (Note 11)",null,26546,26155,"Long-term borrowings (Note 10)",73614,93443,"Common stock (8,738,434,000 and 8,702,227,000 shares outstanding at December 31, 2019 and December 31, 2018, respectively)",0,0,"Short-term borrowings assumed by GE (Note 11)",null,2432,2104]
[null,null,null,"Accumulated other comprehensive income - net (b)",null,null,null,"Accumulated other comprehensive income - net(b)",null,null,null,"Accumulated other comprehensive income attributable to GE(b)",null,null,"Accumulated other comprehensive income (loss) - attributable to GE(b)",null,null,"Accumulated other comprehensive income (loss) - attributable to GE(b)",null,null,"Other GE current liabilities",0,0,"Non-current compensation and benefits",null,1001,1006,"Investment contracts, insurance liabilities and insurance annuity benefits (Note 11)",38587,26546,"Accumulated other comprehensive income (loss) – net attributable to GE",-852,-783,"Accounts payable and equipment project accruals",null,947,886]
[null,null,null,"Investment securities",-636,"[8]",-435,"Investment securities",-33,null,-639,"Investment securities",673,-33,"Investment securities",1010,309,"Investment securities",1010,309,"Non-recourse borrowings of consolidated securitization entities (Note 10)",3083,4403,"All other liabilities (Note 13)",null,7430,9351,"Non-current compensation and benefits",801,1001,"Other capital",17001,12883,"Progress collections and deferred income",null,0,0]
[null,null,null,"Currency translation adjustments",-86,"[8]",3836,"Currency translation adjustments",-399,null,-1411,"Currency translation adjustments",-131,-399,"Currency translation adjustments",-838,-687,"Currency translation adjustments",-838,-687,"Long-term borrowings (Note 10)",129062,174174,"Liabilities of businesses held for sale (Note 2)",null,0,0,"All other liabilities",5886,7430,"Retained earnings",-857,-694,"All other current liabilities (Note 14)",null,3890,4052]
[null,null,null,"Cash flow hedges",-1280,"[8]",-1734,"Cash flow hedges",-1101,null,-1281,"Cash flow hedges",-746,-1101,"Cash flow hedges",-172,-293,"Cash flow hedges",-172,-293,"Investment contracts, insurance liabilities and insurance annuity benefits (Note 11)",26155,27881,"Liabilities of discontinued operations (Note 2)",null,4123,46359,"Liabilities of businesses held for sale (Note 2)",0,0,"Less common stock held in treasury",0,0,"Liabilities of businesses held for sale (Note 2)",null,0,52]
[null,null,null,"Benefit plans",-15853,"[8]",-16932,"Benefit plans",-563,null,-380,"Benefit plans",-736,-563,"Benefit plans",-577,-363,"Benefit plans",-577,-363,"Deferred income taxes",0,0,"Total liabilities",null,158008,264795,"Liabilities of discontinued operations (Note 2)",683,4123,"Total GE shareholders’ equity",15299,11412,"Current liabilities",null,9297,20691]
[null,null,null,"Other capital",36890,"[8]",37729,"Other capital",27627,null,27626,"Other capital",31586,27628,"Other capital",32999,32563,"Other capital",32999,32563,"Non-current compensation and benefits",1006,734,"Redeemable noncontrolling interest (Note 15)",null,0,0,"Total liabilities",143007,158008,"Noncontrolling interests (Note 16)",139,1,"Deferred income (Note 9)",null,0,0]
[null,null,null,"Retained earnings",131137,"[8]",126363,"Retained earnings",51578,null,45068,"Retained earnings",51244,51578,"Retained earnings",55077,51165,"Retained earnings",55077,51165,"All other liabilities (Note 13)",9351,5583,"Preferred stock value (5,944,250 shares outstanding at December 31, 2016 and December 31, 2015)",null,6,6,"Redeemable noncontrolling interests (Note 14)",0,0,"Total equity",15438,11412,"Long-term borrowings (Note 11)",null,30902,26261]
[null,null,null,"Less common stock held in treasury",-31938,"[8]",-32238,"Less common stock held in treasury",0,null,0,"Less common stock held in treasury",0,0,"Treasury Stock, Value",0,0,"Treasury Stock, Value",0,0,"Liabilities of businesses held for sale (Note 2)",0,0,"Common stock (8,742,614,000 and 9,379,288,000 shares outstanding at December 31, 2016 and December 31, 2015, respectively)",null,0,0,"Preferred stock (5,939,874 and 5,944,250 and shares outstanding at December 31, 2017 and December 31, 2016, respectively)",6,6,"Total liabilities and equity",121454,123939,"Long-term borrowings assumed by GE (Note 11)",null,16780,17038]
[null,null,null,"Total GE shareowners' equity",118936,"[8]",117291,"Total GE shareowners' equity",77110,null,68984,"Total GE shareowners' equity",81890,77110,"Total GE shareowners' equity",87499,82694,"Total GE shareowners' equity",87499,82694,"Liabilities of discontinued operations (Note 2)",46359,128096,"Accumulated other comprehensive income (loss) - attributable to GE(b)",null,null,null,"Common stock (8,680,571,000 and 8,742,614,000 shares outstanding at December 31, 2017 and December 31, 2016, respectively)",0,0,null,null,null,"Insurance liabilities and annuity benefits (Note 12)",null,42565,40232]
[null,null,null,"Noncontrolling interests",4098,"[8]",5797,"Noncontrolling interests(c)",690,null,1164,"Noncontrolling interests(c)",707,690,"Noncontrolling interests(c)",2899,432,"Noncontrolling interests(c)",2899,432,"Total liabilities(a)",265411,410191,"Investment securities",null,656,456,"Accumulated other comprehensive income (loss) – net attributable to GE",null,null,"[1]",null,null,"Non-current compensation and benefits",null,453,472]
[null,null,null,"Total equity (Notes 15 and 16)",123034,"[8]",123088,"Total equity (Notes 15 and 16)",77800,null,70148,"Total equity (Notes 15 and 16)",82597,77800,"Total equity (Note 15 and 16)",90398,83126,"Total equity (Note 15 and 16)",90398,83126,"Redeemable noncontrolling interest (Note 15)",0,0,"Currency translation adjustments",null,-740,-898,"Investment securities",-99,656,"[2]",null,null,"All other liabilities (Note 14)",null,1151,1226]
[null,null,null,"Total liabilities and equity",218763,"[8]",209942,"Total liabilities and equity",584536,null,605255,"Total liabilities and equity",539223,584536,"Total liabilities and equity",493985,512043,"Total liabilities and equity",493985,512043,"Preferred stock value (5,944,250 shares outstanding at year-end 2015 and no shares outstanding at year-end 2014)",6,0,"Cash flow hedges",null,43,-112,"Currency translation adjustments",-225,-740,null,null,null,"Liabilities of discontinued operations (Note 2)",null,61,97]
[null,null,null,null,null,null,null,null,null,null,null,null,null,null,null,null,null,null,null,null,"GECC preferred stock value (no shares outstanding at year-end 2015 and 50,000 shares outstanding at year-end 2014)",0,0,"Benefit plans",null,-622,-540,"Cash flow hedges",54,43,null,null,null,"Total liabilities",null,101210,106016]
[null,null,null,"[1]","Included GE industrial customer receivables factored through a GECS affiliate and reported as financing receivables by GECS. See Note 27.",null,null,"[1]","(a) Our consolidated assets at December 31, 2011 include total assets of $45,514 million of certain variable interest entities (VIEs) that can only be used to settle the liabilities of those VIEs. These assets include net financing receivables of $37,120 million and investment securities of $5,320 million. Our consolidated liabilities at December 31, 2011 include liabilities of certain VIEs for which the VIE creditors do not have recourse to GE. These liabilities include non-recourse borrowings of consolidated securitization entities (CSEs) of $28,758 million. See Note 24.",null,null,"[1]","(a) Our consolidated assets at December 31, 2012 include total assets of $46,064 million of certain variable interest entities (VIEs) that can only be used to settle the liabilities of those VIEs. These assets include net financing receivables of $40,287 million and investment securities of $3,419 million. Our consolidated liabilities at December 31, 2012 include liabilities of certain VIEs for which the VIE creditors do not have recourse to GE. These liabilities include non-recourse borrowings of consolidated securitization entities (CSEs) of $29,123 million. See Note 24.",null,"[1]","(a) Our consolidated assets at December 31, 2014 included total assets of $50,453 million of certain variable interest entities (VIEs) that can only be used to settle the liabilities of those VIEs. These assets included net financing receivables of $43,620 million and investment securities of $3,374 million. Our consolidated liabilities at December 31, 2014 included liabilities of certain VIEs for which the VIE creditors do not have recourse to GE. These liabilities included non-recourse borrowings of consolidated securitization entities (CSEs) of $28,664 million. See Note 23. ",null,"[1]","(a) Our consolidated assets at December 31, 2014 included total assets of $50,453 million of certain variable interest entities (VIEs) that can only be used to settle the liabilities of those VIEs. These assets included net financing receivables of $43,620 million and investment securities of $3,374 million. Our consolidated liabilities at December 31, 2014 included liabilities of certain VIEs for which the VIE creditors do not have recourse to GE. These liabilities included non-recourse borrowings of consolidated securitization entities (CSEs) of $28,664 million. See Note 23. ",null,"Common stock (9,379,288,000 and 10,057,380,000 shares outstanding at year-end 2015 and 2014)",0,0,"Other capital",null,12669,12326,"Benefit plans",-524,-622,null,null,null,"Preferred stock (5,939,875 shares outstanding at both December 31, 2020 and December 31, 2019)",null,6,6]
[null,null,null,"[2]","Our consolidated assets at December 31, 2010 include total assets of  $49,295 million of certain variable interest entities (VIEs) that can only be used to settle the liabilities of those VIEs. These assets include net financing receivables of  $38,612 million and investment securities of  $6,669 million. Our consolidated liabilities at December 31, 2010 include liabilities of certain VIEs for which the VIE creditors do not have recourse to GE. These liabilities include non-recourse borrowings of consolidated securitization entities (CSEs) of  $29,477 million. See Note 23.",null,null,"[2]","(b) The sum of accumulated other comprehensive income - net was $(23,974) million and $(17,855) million at December 31, 2011 and 2010, respectively.",null,null,"[2]","(b) The sum of accumulated other comprehensive income attributable to GE was $(20,230) million and $(23,974) million at December 31, 2012 and 2011, respectively.",null,"[2]","(b) The sum of accumulated other comprehensive income (loss) (AOCI) attributable to the Company was $(18,172) million and $(9,120) million at December 31, 2014 and 2013, respectively.",null,"[2]","(b) The sum of accumulated other comprehensive income (loss) (AOCI) attributable to the Company was $(18,172) million and $(9,120) million at December 31, 2014 and 2013, respectively.",null,"Accumulated other comprehensive income (loss) - attributable to GE(b)",null,null,"Retained earnings",null,12664,34988,"Other capital",12806,12669,null,null,null,"Common stock (8,765,493,000 and 8,738,434,000 shares outstanding at December 31, 2020 and December 31, 2019, respectively)",null,0,0]
[null,null,null,"[3]","The sum of accumulated other comprehensive income - net was  $(17,855) million and  $(15,265) million at December 31, 2010 and 2009, respectively.",null,null,"[3]","(b) See Note 15 for an explanation of the changes in noncontrolling interests.",null,null,"[3]","(c) Included accumulated other comprehensive income attributable to noncontrolling interests of $(155) million and $(168) million at December 31, 2012 and 2011, respectively.",null,"[3]","(c) Included AOCI attributable to noncontrolling interests of $(194) million and $(180) million at December 31, 2014 and 2013, respectively.",null,"[3]","(c) Included AOCI attributable to noncontrolling interests of $(194) million and $(180) million at December 31, 2014 and 2013, respectively.",null,"Investment securities",456,1010,"Less common stock held in treasury",null,0,0,"Retained earnings",1476,12664,null,null,null,"Accumulated other comprehensive income (loss) – net attributable to GE",null,-804,-852]
[null,null,null,"[4]","Included accumulated other comprehensive income - net attributable to noncontrolling interests of  $(153) million and  $(188) million at December 31, 2010 and 2009, respectively.",null,null,"[4]","(c) Included accumulated other comprehensive income - net attributable to noncontrolling interests of $(168) million and $(153) million at December 31, 2011 and 2010, respectively.",null,null,"[4]","(a) Represents the adding together of all affiliated companies except General Electric Capital Corporation (GECC or financial services), which is presented on a one-line basis See Note 1",null,"[4]","(a)Represents the adding together of all affiliated companies except General Electric Capital Corporation (GECC or Financial Services), which is presented on a one-line basis. See Note 1.",null,"[4]","(a)Represents the adding together of all affiliated companies except General Electric Capital Corporation (GECC or Financial Services), which is presented on a one-line basis. See Note 1.",null,"Currency translation adjustments",-898,-839,"Total GE shareowners' equity",null,24677,46227,"Less common stock held in treasury",0,0,null,null,null,"Other capital",null,19007,17001]
[null,null,null,"[5]","See Note 15 for an explanation of the change in noncontrolling interests for 2010 and 2009.",null,null,"[5]","(a) Represents the adding together of all affiliated companies except General Electric Capital Services, Inc. (GECS or financial services), which is presented on a one-line basis. See Note 1.",null,null,null,null,null,null,null,null,null,null,null,"Cash flow hedges",-112,-172,"Noncontrolling interests (Note 15)",null,285,486,"Total GE shareowners’ equity",13493,24677,null,null,null,"Retained earnings",null,-2663,-857]
[null,null,null,"[6]","Financing receivables at December 31, 2010 and December 31, 2009 included  $1,503 million and  $2,635 million, respectively, relating to loans that had been acquired in a transfer but have been subject to credit deterioration since origination per ASC 310, Receivables.",null,null,null,null,null,null,null,null,null,null,null,null,null,null,null,"Benefit plans",-540,-577,"Total equity (Note 15)",null,24962,46713,"Noncontrolling interests (Note 14)",217,285,null,null,null,"Less common stock held in treasury",null,0,0]
[null,null,null,"[7]","Included  $1,571 million and  $1,609 million of original cost of assets leased to GE with accumulated amortization of  $531 million and  $572 million at December 31, 2010 and 2009, respectively.",null,null,null,null,null,null,null,null,null,null,null,null,null,null,null,"Other capital",12326,32999,"Total liabilities, redeemable noncontrolling interests and equity",null,182970,311508,"Total equity (Note 14)",13709,24962,null,null,null,"Total GE shareholders’ equity",null,15545,15299]
[null,null,null,"[8]","Represents the adding together of all affiliated companies except General Electric Capital Services, Inc. (GECS or financial services), which is presented on a one-line basis. See Note 1.",null,null,null,null,null,null,null,null,null,null,null,null,null,null,null,"Retained earnings",34988,55077,null,null,null,null,"Total liabilities, redeemable noncontrolling interests and equity",156716,182970,null,null,null,"Noncontrolling interests (Note 16)",null,159,139]
[null,null,null,null,null,null,null,null,null,null,null,null,null,null,null,null,null,null,null,null,"Less common stock held in treasury",0,0,"[1]","Our consolidated assets at December 31, 2016 included total assets of $6,332 million of certain variable interest entities (VIEs) that can only be used to settle the liabilities of those VIEs. These assets included current receivables and net financing receivables of $1,722 million and investment securities of $982 million wit hin continuing operations and assets of discontinued operations of $692 million. Our consolidated liabilities at December 31, 2016 included liabilities of certain VIEs for which the VIE creditors do not have recourse to GE. These liabilities included no n-recourse borrowings of consolidated securitization entities (CSEs) of $(417) million within continuing operations. See Note 21.",null,null,null,null,null,null,null,null,"Total equity",null,15704,15438]
[null,null,null,null,null,null,null,null,null,null,null,null,null,null,null,null,null,null,null,null,"Total GE shareowners' equity",46227,87499,"[2]","The sum of accumulated other comprehensive income (loss) (AOCI) attributable to the Company was $(18,598) milli on and $(16,529) million at December 31, 2016 and December 31, 2015 , respectively.",null,null,"[1]",null,null,null,null,null,"Total liabilities and equity",null,116914,121454]
[null,null,null,null,null,null,null,null,null,null,null,null,null,null,null,null,null,null,null,null,"Noncontrolling interests(c) (Note 15)",486,2899,"[3]","Included AOCI attributable to noncontrolling interests of $(278) million and $(264) million at December 31, 2016 and December 31, 2015 , respectively.",null,null,"[2]",null,null,null,null,null,"Restricted cash subject to regulatory restrictions",null,455,583]
[null,null,null,null,null,null,null,null,null,null,null,null,null,null,null,null,null,null,null,null,"Total equity",46713,90398,"[4]","Represents the adding together of all affiliated companies except GE Capital, which is presented on a one-line basis. See Note 1.",null,null,"[3]"]
[null,null,null,null,null,null,null,null,null,null,null,null,null,null,null,null,null,null,null,null,"Total liabilities, redeemable noncontrolling interests and equity",312125,500589,"[5]","On December 2, 2015, senior unsecured notes and commercial paper was assumed by GE upon its merger with GE Capital resulting in an intercompany payable to GE. The short-term borrowings were 11,696 million (which includes a loan amount of 1,329 million from GE Capital to GE) and $17,642 million and t he long-term borrowings were $47,084 million and $67,062 million at December 31 , 2016 and December 31, 2015, respectively. See Note 10 for additional information.",null,null,"[4]",null,null,null,null,null,"[1]","Excluded $455 million and $583 million at December 31, 2020 and 2019, respectively, in GE Capital insurance entities, which is subject to regulatory restrictions. This balance is included in All other assets. See Note 10 for further information."]
[null,null,null,null,null,null,null,null,null,null,null,null,null,null,null,null,null,null,null,null,null,null,null,null,null,null,null,"[5]",null,null,null,null,null,"[2]","Total equity balance decreased by $(14,408) million from December 31, 2018, primarily due to reduction of noncontrolling interest balance of $(19,239) million attributable to Baker Hughes Class A shareholders at December 31, 2018, after-tax loss of $(8,238) million in discontinued operations due to deconsolidation of Baker Hughes in 2019, and after-tax net realized and unrealized loss on our remaining interest in Baker Hughes of $(936) million in 2019 and 2020, partially offset by after-tax gain of $11,213 million due to the sale of our BioPharma business within our Healthcare segment, and after-tax gain of $2,508 million in discontinued operations due to spin-off and subsequent merger of our Transportation business with Wabtec in 2019."]
[null,null,null,null,null,null,null,null,null,null,null,null,null,null,null,null,null,null,null,null,"[1]"]
[null,null,null,null,null,null,null,null,null,null,null,null,null,null,null,null,null,null,null,null,"[2]"]
[null,null,null,null,null,null,null,null,null,null,null,null,null,null,null,null,null,null,null,null,"[3]"]
[null,null,null,null,null,null,null,null,null,null,null,null,null,null,null,null,null,null,null,null,"[4]"]
[null,null,null,null,null,null,null,null,null,null,null,null,null,null,null,null,null,null,null,null,"[5]"]

{"sheet":"Cash Flow","index":4,"n_rows":187,"n_cols":49,"rows_kept":187,"cut":false,"hidden":false,"merged":[]}
["Statement of Cash Flows (USD $)",null,null,null,null,null,"Statement of Cash Flows (USD  $)","12 Months Ended","Statement of Cash Flows (USD $)","12 Months Ended",null,null,null,null,"Statement of Cash Flows (USD $)","12 Months Ended",null,null,"Statement of Cash Flows (USD $)","12 Months Ended",null,null,"Statement of Cash Flows (USD $)","12 Months Ended",null,null,"Statement of Cash Flows - USD ($) in Millions","12 Months Ended",null,"Statement of Cash Flows - USD ($) in Millions","12 Months Ended",null,null,"STATEMENT OF CASH FLOWS in Millions","12 Months Ended",null,null,"STATEMENT OF CASH FLOWS in Millions","12 Months Ended",null,null,"STATEMENT OF CASH FLOWS - USD ($) in Millions","12 Months Ended",null,null,"STATEMENT OF CASH FLOWS - USD ($) in Millions","12 Months Ended"]
["In Millions","12 Months Ended\r\nDec. 31, 2009\r\n",null,"12 Months Ended\r\nDec. 31, 2008\r\n",null,"12 Months Ended\r\nDec. 31, 2007\r\n","In Millions","Dec. 31, 2010","In Millions, unless otherwise specified","Dec. 31, 2011",null,"Dec. 31, 2010",null,"Dec. 31, 2009","In Millions, unless otherwise specified","Dec. 31, 2012","Dec. 31, 2011","Dec. 31, 2010","In Millions, unless otherwise specified","Dec. 31, 2014","Dec. 31, 2013","Dec. 31, 2012","In Millions, unless otherwise specified","Dec. 31, 2014","Dec. 31, 2013","Dec. 31, 2012",null,"Dec. 31, 2015","Dec. 31, 2014",null,"Dec. 31, 2016","Dec. 31, 2015","Dec. 31, 2014",null,"Dec. 31, 2017USD ($)","Dec. 31, 2016USD ($)","Dec. 31, 2015USD ($)",null,"Dec. 31, 2019USD ($)","Dec. 31, 2018USD ($)","Dec. 31, 2017USD ($)",null,"Dec. 31, 2020","Dec. 31, 2019","Dec. 31, 2018",null,"Dec. 31, 2021","Dec. 31, 2020","Dec. 31, 2019"]
["Cash flows - operating activities",null,null,null,null,null,"Cash flows - operating activities",null,"Cash flows - operating activities",null,null,null,null,null,"Cash flows - operating activities",null,null,null,"Cash flows - operating activities",null,null,null,"Cash flows - operating activities",null,null,null,"Cash flows - operating activities",null,null,"Cash flows - operating activities",null,null,null,"Cash flows – operating activities",null,null,null,"Cash flows – operating activities",null,null,null,"Cash flows – operating activities",null,null,null,"Cash flows – operating activities"]
["Net earnings",11241,"[1]",18051,"[1]",23124,"Net earnings",12179,"Net earnings",14443,null,12179,null,11225,"Net earnings",13864,14443,12179,"Net earnings",15345,13355,13864,"Net earnings",15345,13355,13864,"Net earnings (loss)",-5795,15345,"Net earnings (loss)",8540,-5795,15345,"Net earnings (loss)",-6056,8540,-5795,"Net earnings (loss)",-4912,-22443,-8849,"Net earnings (loss)",5546,-4912,-22443,"Net earnings (loss)",-6591,5546,-4912]
["Less net earnings attributable to noncontrolling interests",216,"[1]",641,"[1]",916,"Less net earnings attributable to noncontrolling interests",535,"Less net earnings (loss) attributable to noncontrollng interests",292,null,535,null,200,"Less: net earnings (loss) attributable to noncontrollng interests",223,292,535,"Less net earnings (loss) attributable to noncontrolling interests",112,298,223,"Less net earnings (loss) attributable to noncontrolling interests",112,298,223,"Less net earnings (loss) attributable to noncontrolling interests",332,112,"Less net earnings (loss) attributable to noncontrolling interests",-291,332,112,"Less net earnings (loss) attributable to noncontrolling interests",-270,-291,332,"(Earnings) loss from discontinued operations",5335,1363,312,"(Earnings) loss from discontinued operations",125,5335,1363,"(Earnings) loss from discontinued operations",3195,911,4306]
["Net earnings attributable to the Company",11025,"[1]",17410,"[1]",22208,"Net earnings attributable to the Company",11644,"Net earnings (loss) attributable to the Company",14151,null,11644,null,11025,"Net earnings (loss) attributable to the Company",13641,14151,11644,"Net earnings attributable to GE common shareowners for per-share calculation, Basic",15233,13057,13641,"Net earnings attributable to GE common shareowners for per-share calculation, Basic",15233,13057,13641,"Net earnings (loss) attributable to the Company",-6126,15233,"Net earnings (loss) attributable to the Company",8831,-6126,15233,"Net earnings (loss) attributable to the Company",-5786,8831,-6126,"Adjustments to reconcile net earnings (loss) to cash provided from operating activities:",null,null,null,"Adjustments to reconcile net earnings (loss) to cash provided from operating activities:",null,null,null,"Adjustments to reconcile net earnings (loss) to cash provided from operating activities"]
["Loss from discontinued operations",193,"[1]",679,"[1]",249,"(Earnings) loss from discontinued operations",979,"(Earnings) loss from discontinued operations, net of taxes",-77,null,873,null,-219,"(Earnings) loss from discontinued operations",1038,76,969,"(Earnings) loss from discontinued operations, net of taxes",112,2120,983,"(Earnings) loss from discontinued operations, net of taxes",112,2120,983,"(Earnings) loss from discontinued operations, net of taxes",7495,-5855,"(Earnings) loss from discontinued operations",954,7495,-5855,"(Earnings) loss from discontinued operations",309,954,7495,"Depreciation and amortization of property, plant and equipment (Note 7)",4026,4419,4332,"Depreciation and amortization of property, plant and equipment (Note 7)",4636,4026,4419,"Depreciation and amortization of property, plant and equipment",1871,2128,2018]
["Adjustments to reconcile net earnings attributable to the Company to cash provided from operating activities",null,null,null,null,null,"Adjustments to reconcile net earnings attributable to the Company to cash provided from operating activities",null,"Adjustments to reconcile net earnings attributable to the Company to cash provided from operating activities",null,null,null,null,null,"Adjustments to reconcile net earnings attributable to the Company to cash provided from operating activities",null,null,null,"Adjustments to reconcile net earnings attributable to the Company to cash provided from operating activities",null,null,null,"Adjustments to reconcile net earnings attributable to the Company to cash provided from operating activities",null,null,null,"Adjustments to reconcile net earnings (loss) attributable to the Company to cash provided from operating activities",null,null,"Adjustments to reconcile net earnings attributable to the Company to cash provided from operating activities",null,null,null,"Adjustments to reconcile net earnings attributable to the Company to cash provided from operating activities:",null,null,null,"Amortization of intangible assets (Note 8)",1569,2163,1862,"Amortization of intangible assets (Note 8)",1382,1569,2163,"Amortization of intangible assets",1138,1336,1523]
["Depreciation and amortization of property, plant and equipment",10636,null,11492,null,10275,"Depreciation and amortization of property, plant and equipment",10013,"Depreciation and amortization of property, plant and equipment",9185,null,9786,null,10617,"Depreciation and amortization of property, plant and equipment",9346,9185,9786,"Depreciation and amortization of property, plant and equipment",9283,9762,9192,"Depreciation and amortization of property, plant and equipment",9283,9762,9192,"Depreciation and amortization of property, plant and equipment",4847,4953,"Depreciation and amortization of property, plant and equipment",4997,4847,4953,"Depreciation and amortization of property, plant and equipment",5139,4997,4847,"Goodwill impairments (Note 8)",1486,22136,2550,"Goodwill impairments (Note 8)",1717,1486,22136,"Goodwill impairments (Note 7)",0,877,1486]
["Earnings from continuing operations retained by GECS",0,null,0,null,0,"Earnings from continuing operations retained by GECS",null,"Earnings from continuing operations retained by GECS",0,null,0,null,0,"Earnings from continuing operations retained by GECC",0,0,0,"Earnings from continuing operations retained by GECC(b)",0,0,0,"Earnings from continuing operations retained by GECC(b)",0,0,0,"Earnings from continuing operations retained by GE Capital(b)",0,0,"Earnings from continuing operations retained by GE Capital",0,0,0,"(Earnings) loss from continuing operations retained by GE Capital",0,0,0,"(Earnings) loss from continuing operations retained by GE Capital",0,0,0,"(Gains) losses on purchases and sales of business interests (Note 19)",-12526,-53,-1522,"(Gains) losses on purchases and sales of business interests (Note 18)",40,-12469,14]
["Deferred income taxes",-2705,null,-1284,null,657,"Deferred income taxes",1046,"Deferred income taxes",-203,null,930,null,-2778,"Deferred income taxes",-1171,-203,930,"Deferred income taxes",-1186,-3295,-1152,"Deferred income taxes",-1186,-3295,-1152,"Deferred income taxes",383,-882,"Deferred income taxes",814,383,-882,"Deferred income taxes",-4845,814,383,"(Gains) losses on purchases and sales of business interests (Note 19)",-53,-1522,-1024,"(Gains) losses on equity securities (Note 19)",2105,-693,-166,"(Gains) losses on equity securities (Note 18)",-1656,2085,-696]
["Decrease (increase) in GE current receivables",3273,null,-24,null,-868,"Decrease (increase) in GE current receivables",-126,"Decrease (increase) in GE current receivables",-466,null,-126,null,3273,"Decrease (increase) in GE current receivables",-774,-714,-60,"Decrease (increase) in GE current receivables",-1913,-485,-879,"Decrease (increase) in GE current receivables",-1913,-485,-879,"Decrease (increase) in GE current receivables",-52,-1913,"Decrease (increase) in GE current receivables",1514,-52,-1913,"Decrease (increase) in GE current receivables",1551,1514,-52,"Principal pension plans cost (Note 13)",3878,4226,3687,"Principal pension plans cost (Note 13)",3559,3878,4226,"Debt extinguishment costs (Note 10)",6524,301,256]
["Decrease (increase) in inventories",1101,null,-719,null,-1562,"Decrease (increase) in inventories",342,"Decrease (increase) in inventories",-1168,null,342,null,1101,"Decrease (increase) in inventories",-1274,-1168,342,"Increase (Decrease) in Inventories",-872,-1368,-1274,"Increase (Decrease) in Inventories",-872,-1368,-1274,"Decrease (increase) in inventories",-314,-872,"Decrease (increase) in inventories",-1389,-314,-872,"Decrease (increase) in inventories",747,-1389,-314,"Principal pension plans employer contributions (Note 13)",-298,-6283,-1978,"Principal pension plans employer contributions (Note 13)",-2806,-298,-6283,"Principal pension plans cost (Note 12)",2650,3559,3878]
["Increase (decrease) in accounts payable",-480,null,-1078,null,-997,"Increase (decrease) in accounts payable",805,"Increase (decrease) in accounts payable",1235,null,883,null,-464,"Increase (decrease) in accounts payable",-424,1235,883,"Increase (decrease) in accounts payable",305,360,-437,"Increase (decrease) in accounts payable",305,360,-437,"Increase (decrease) in accounts payable",-541,565,"Increase (decrease) in accounts payable",1198,-541,565,"Increase (decrease) in accounts payable",-335,1198,-541,"Other postretirement benefit plans (net) (Note 13)",-1228,-1033,-888,"Other postretirement benefit plans (net) (Note 13)",-893,-1228,-1033,"Principal pension plans employer contributions (Note 12)",-326,-2806,-298]
["Increase (decrease) in GE progress collections",-500,null,2827,null,4622,"Increase (decrease) in GE progress collections",-1177,"Increase (decrease) in GE progress collections",-1394,null,-1177,null,-500,"Increase (decrease) in GE progress collections",-920,-1146,-1243,"Increase (decrease) in GE progress collections",-515,1893,-920,"Increase (decrease) in GE progress collections",-515,1893,-920,"Increase (decrease) in GE progress collections",-996,-515,"Increase (decrease) in GE progress collections",1836,-996,-515,"Increase (decrease) in GE progress collections",1322,1836,-996,"Provision (benefit) for income taxes (Note 15)",726,93,-2808,"Provision (benefit) for income taxes (Note 15)",-474,726,93,"Other postretirement benefit plans (net) (Note 12)",-1144,-893,-1228]
["Provision for losses on financing receivables (Note 6)",10928,"[1]",7518,"[1]",4431,"Provision for losses on GECS financing receivables",7191,"Provision for losses on GECS financing receivables",4083,null,7176,null,10585,"Provision for losses on GECC financing receivables",3891,3951,7085,"Provision for losses on GECC financing receivables",3993,4818,3832,"Provision for losses on GECC financing receivables",3993,4818,3832,"All other operating activities",7160,5318,"All other operating activities",-12655,7160,5318,"All other operating activities",13291,-12655,7160,"Cash recovered (paid) during the year for income taxes",-1950,-1404,-1924,"Cash recovered (paid) during the year for income taxes (Note 15)",-1441,-1950,-1404,"Provision (benefit) for income taxes (Note 14)",-286,-487,552]
["All other operating activities (Note 25)",-8747,null,11020,null,927,"All other operating activities (Note 25)",5075,"All other operating activities",7255,null,5925,null,-9828,"All other operating activities",7899,7255,5921,"All other operating activities",3075,2175,8029,"All other operating activities",3075,2175,8029,"Cash from (used for) operating activities - continuing operations",11856,16033,"Cash from (used for) operating activities - continuing operations",6099,11856,16033,"Cash from (used for) operating activities – continuing operations",11394,6099,11856,"Decrease (increase) in contract and other deferred assets",62,-81,-1243,"Changes in operating working capital:",null,null,null,"Cash recovered (paid) during the year for income taxes",-1165,-1441,-1950]
["Cash from (used for) operating activities - continuing operations",24724,null,47841,null,39942,"Cash from (used for) operating activities - continuing operations",35792,"Cash from (used for) operating activities - continuing operations",32601,null,36256,null,22812,"Cash from (used for) operating activities - continuing operations",31252,32622,36257,"Cash from (used for) operating activities - continuing operations",27515,29037,31015,"Cash from (used for) operating activities - continuing operations",27515,29037,31015,"Cash from (used for) operating activities - discontinued operations",8034,11676,"Cash from (used for) operating activities - discontinued operations",-6343,8034,11676,"Cash from (used for) operating activities – discontinued operations",-968,-6343,8034,"Decrease (increase) in GE current receivables",-2851,-358,-3902,"Decrease (increase) in current receivables",-1319,-2851,-358,"Changes in operating working capital:"]
["Cash from (used for) operating activities - discontinued operations",-131,null,760,null,3380,"Cash from (used for) operating activities - discontinued operations",331,"Cash from (used for) operating activities - discontinued operations",758,null,-132,null,1605,"Cash from (used for) operating activities - discontinued operations",79,737,-133,"Cash from (used for) operating activities - discontinued operations",195,-458,316,"Cash from (used for) operating activities - discontinued operations",195,-458,316,"Cash from (used for) operating activities",19891,27709,"Cash from (used for) operating activities",-244,19891,27709,"Cash from (used for) operating activities",10426,-244,19891,"Decrease (increase) in inventories",-1109,-356,324,"Decrease (increase) in inventories, including deferred inventory costs",1105,-1581,-573,"Decrease (increase) in current receivables",-177,-1319,-2851]
["Cash from (used for) operating activities",24593,null,48601,null,43322,"Cash from (used for) operating activities",36123,"Cash from (used for) operating activities",33359,null,36124,null,24417,"Cash from (used for) operating activities",31331,33359,36124,"Cash from (used for) operating activities",27710,28579,31331,"Cash from (used for) operating activities",27710,28579,31331,"Cash flows - investing activities",null,null,"Cash flows - investing activities",null,null,null,"Cash flows – investing activities",null,null,null,"Increase (decrease) in accounts payable",2977,1545,169,"Decrease (increase) in current contract assets",1631,891,751,"Decrease (increase) in inventories, including deferred inventory costs",-702,1105,-1581]
["Cash flows - investing activities",null,null,null,null,null,"Cash flows - investing activities",null,"Cash flows - investing activities",null,null,null,null,null,"Cash flows - investing activities",null,null,null,"Cash flows - investing activities",null,null,null,"Cash flows - investing activities",null,null,null,"Additions to property, plant and equipment",-7309,-7134,"Additions to property, plant and equipment",-7199,-7309,-7134,"Additions to property, plant and equipment",-7371,-7199,-7309,"Increase (decrease) in GE progress collections",1373,-571,1912,"Increase (decrease) in accounts payable and equipment project accruals",-575,2674,666,"Decrease (increase) in current contract assets",1031,1631,891]
["Additions to property, plant and equipment",-8634,null,-16010,null,-17803,"Additions to property, plant and equipment",-9800,"Additions to property, plant and equipment",-12650,null,-9800,null,-8636,"Additions to property, plant and equipment",-15126,-12650,-9800,"Additions to property, plant and equipment",-13727,-13458,-15119,"Additions to property, plant and equipment",-13727,-13458,-15119,"Dispositions of property, plant and equipment",3020,2923,"Dispositions of property, plant and equipment",4424,3020,2923,"Dispositions of property, plant and equipment",5746,4424,3020,"All other operating activities",1388,1317,13308,"Increase (decrease) in progress collections and current deferred income",-216,1531,-563,"Increase (decrease) in accounts payable and equipment project accruals",-2,-582,2679]
["Dispositions of property, plant and equipment",6479,null,10975,null,8457,"Dispositions of property, plant and equipment",7208,"Dispositions of property, plant and equipment",5896,null,7208,null,6479,"Dispositions of property, plant and equipment",6200,5896,7208,"Dispositions of property, plant and equipment",6262,5883,6184,"Dispositions of property, plant and equipment",6262,5883,6184,"Net decrease (increase) in GE Capital financing receivables",1043,1260,"Net decrease (increase) in GE Capital financing receivables",200,1043,1260,"Additions to internal-use software",-549,-749,-778,"Cash from (used for) operating activities – continuing operations",10419,3210,5840,"All other operating activities",2040,1869,1739,"Increase (decrease) in progress collections and current deferred income",-1052,-247,1476]
["Net decrease (increase) in GECS financing receivables",43690,null,-17484,null,-44237,"Net decrease (increase) in GECS financing receivables",25010,"Net decrease (increase) in GECS financing receivables",14652,null,21773,null,36665,"Net decrease (increase) in GECC financing receivables",6872,14630,21758,"Net decrease (increase) in GECC financing receivables",-4267,2715,6979,"Net decrease (increase) in GECC financing receivables",-4267,2715,6979,"Proceeds from sales of discontinued operations",79615,232,"Proceeds from sale of discontinued operations",59890,79615,232,"Net decrease (increase) in GE Capital financing receivables",805,200,1043,"Cash from (used for) operating activities – discontinued operations",-1647,1768,714,"Cash from (used for) operating activities – continuing operations",3597,10419,3210,"Financial services derivatives net collateral/settlement",-1143,1897,1278]
["Proceeds from sales of discontinued operations",0,null,5423,null,11574,"Proceeds from sales of discontinued operations",2510,"Proceeds from sales of discontinued operations",8950,null,2510,null,0,"Proceeds from sales of discontinued operations",227,8950,2510,"Proceeds from sales of discontinued operations",232,528,227,"Proceeds from sales of discontinued operations",232,528,227,"Proceeds from principal business dispositions",2283,630,"Proceeds from principal business dispositions",5357,2283,630,"Proceeds from sale of discontinued operations",1464,59890,79615,"Cash from (used for) operating activities",8772,4978,6554,"Cash from (used for) operating activities – discontinued operations",0,-1647,1768,"All other operating activities",-1317,-109,2000]
["Proceeds from principal business dispositions",9978,null,4986,null,2746,"Proceeds from principal business dispositions",3062,"Proceeds from principal business dispositions",8877,null,3062,null,9978,"Proceeds from principal business dispositions",3618,8877,3062,"Proceeds from principal business dispositions",2950,3324,3618,"Proceeds from principal business dispositions",2950,3324,3618,"Proceeds from sale of equity interest in NBCU LLC",0,0,"Net cash from (payments for) principal businesses purchased",-2271,-12027,-2091,"Proceeds from principal business dispositions",3228,5357,2283,"Cash flows – investing activities",null,null,null,"Cash from (used for) operating activities",3597,8772,4978,"Cash from (used for) operating activities – continuing operations",888,1025,8838]
["Payments for principal businesses purchased",-6130,null,-28110,null,-17215,"Payments for principal businesses purchased",-1212,"Payments for principal businesses purchased",-11202,null,-1212,null,-7842,"Payments for principal businesses purchased",-1456,-11202,-1212,"Proceeds from sale of equity interest in NBCU LLC",0,16699,0,"Proceeds from sale of equity interest in NBCU LLC",0,16699,0,"Net cash from (payments for) principal businesses purchased",-12027,-2091,"All other investing activities",2212,-5013,23410,"Net cash from (payments for) principal businesses purchased",-6087,-2271,-12027,"Additions to property, plant and equipment",-5813,-6627,-6642,"Cash flows – investing activities",null,null,null,"Cash from (used for) operating activities – discontinued operations",2444,2543,-104]
["Capital contribution from GE to GECS",0,null,0,null,0,"Capital contribution from GE to GECS",null,"Capital contribution from GE to GECS",0,null,0,null,0,"All other investing activities",11064,6095,10262,"Net cash from (payments for) principal businesses purchased",2639,1642,1456,"Net cash from (payments for) principal businesses purchased",2639,1642,1456,"All other investing activities",-5013,23410,"Cash from (used for) investing activities - continuing operations",62613,61613,19229,"All other investing activities",6704,2960,-4235,"Dispositions of property, plant and equipment",3718,4093,5530,"Additions to property, plant and equipment",-3252,-5813,-6627,"Cash from (used for) operating activities",3332,3568,8734]
["All other investing activities",-2520,null,5695,null,-9910,"All other investing activities",7703,"All other investing activities",6094,null,10249,null,3758,"Cash from (used for) investing activities - continuing operations",11399,20596,33788,"Payments for proceeds from other investing activities",6447,14625,11157,"Payments for proceeds from other investing activities",6447,14625,11157,"Cash from (used for) investing activities - continuing operations",61613,19229,"Cash from (used for) investing activities - discontinued operations",-13412,-2125,-24263,"Cash from (used for) investing activities – continuing operations",3940,62613,61613,"Additions to internal-use software",-282,-320,-454,"Dispositions of property, plant and equipment",1644,3718,4093,"Cash flows – investing activities"]
["Cash from (used for) investing activities - continuing operations",42863,null,-34525,null,-66388,"Cash from (used for) investing activities - continuing operations",34481,"Cash from (used for) investing activities - continuing operations",20617,null,33790,null,40402,"Cash from (used for) investing activities - discontinued operations",-97,-714,-1352,"Cash from (used for) investing activities - continuing operations",-4742,28674,11590,"Cash from (used for) investing activities - continuing operations",-4742,28674,11590,"Cash from (used for) investing activities - discontinued operations",-2125,-24263,"Cash from (used for) investing activities",49202,59488,-5034,"Cash from (used for) investing activities – discontinued operations",-1618,-13412,-2125,"Net decrease (increase) in GE Capital financing receivables",1117,1796,805,"Additions to internal-use software",-151,-282,-320,"Additions to property, plant and equipment",-1250,-1579,-2216]
["Cash from (used for) investing activities - discontinued operations",134,null,-876,null,-3116,"Cash from (used for) investing activities - discontinued operations",-2045,"Cash from (used for) investing activities - discontinued operations",-735,null,-1354,null,1976,"Cash from (used for) investing activities",11302,19882,32436,"Cash from (used for) investing activities - discontinued operations",-288,443,-288,"Cash from (used for) investing activities - discontinued operations",-288,443,-288,"Cash from (used for) investing activities",59488,-5034,"Cash flows - financing activities",null,null,null,"Cash from (used for) investing activities",2322,49202,59488,"Net cash from (payments for) principal businesses purchased",-68,-1,-2722,"Net decrease (increase) in GE Capital financing receivables",-20,1117,1796,"Dispositions of property, plant and equipment",167,203,379]
["Cash from (used for) investing activities",42997,null,-35401,null,-69504,"Cash from (used for) investing activities",32436,"Cash from (used for) investing activities",19882,null,32436,null,42378,"Cash flows - financing activities",null,null,null,"Cash from (used for) investing activities",-5030,29117,11302,"Cash from (used for) investing activities",-5030,29117,11302,"Cash flows - financing activities",null,null,"Net increase (decrease) in borrowings (maturities of 90 days or less)",-1135,-24459,-6409,"Cash flows – financing activities",null,null,null,"Capital contribution from GE to GE Capital",0,0,0,"Net cash from (payments for) principal businesses purchased",-85,-68,-1,"Additions to internal-use software",-111,-151,-282]
["Cash flows - financing activities",null,null,null,null,null,"Cash flows - financing activities",null,"Cash flows - financing activities",null,null,null,null,null,"Net increase (decrease) in borrowings (maturities of 90 days or less)",-2231,5951,-1228,"Cash flows - financing activities",null,null,null,"Cash flows - financing activities",null,null,null,"Net increase (decrease) in borrowings (maturities of 90 days or less)",-24459,-6409,"Newly issued debt (maturities longer than 90 days)",1492,13951,14629,"Net increase (decrease) in borrowings (maturities of 90 days or less)",1794,-1135,-24459,"All other investing activities",1466,11530,5538,"Capital contribution from GE Industrial to GE Capital",0,0,0,"Proceeds from sale of discontinued operations",22356,0,5864]
["Net increase (decrease) in borrowings (maturities of 90 days or less)",-25741,null,-48454,null,308,"Net increase (decrease) in borrowings (maturities of 90 days or less)",-1228,"Net increase (decrease) in borrowings (maturities of 90 days or less)",5951,null,-1228,null,-26114,"Net increase (decrease) in bank deposits",2432,6748,4603,"Net increase (decrease) in borrowings (maturities of 90 days or less)",-6112,-14230,-2231,"Net increase (decrease) in borrowings (maturities of 90 days or less)",-6112,-14230,-2231,"Newly issued debt (maturities longer than 90 days)",13951,14629,"Repayments and other debt reductions (maturities longer than 90 days)",-58768,-47038,-38410,"Newly issued debt (maturities longer than 90 days)",14876,1492,13951,"Cash from (used for) investing activities – continuing operations",10684,18925,6728,"Sales of retained ownership interests",417,3383,0,"Proceeds from principal business dispositions",1,20562,1124]
["Net increase (decrease) in bank deposits",-3986,null,20623,null,2144,"Net increase (decrease) in bank deposits",4603,"Net increase (decrease) in bank deposits",6748,null,4603,null,-3784,"Newly issued debt (maturities longer than 90 days)",63019,43847,47643,"Net increase (decrease) in bank deposits",13286,2197,2450,"Net increase (decrease) in bank deposits",13286,2197,2450,"Repayments and other reductions (maturities longer than 90 days)",-47038,-38410,"Proceeds from issuance of GE Capital preferred stock",0,0,0,"Repayments and other reductions (maturities longer than 90 days)",-25622,-58768,-47038,"Cash from (used for) investing activities – discontinued operations",-1745,-645,-1349,"Net (purchases) dispositions of GE Capital investment securities (Note 3)",-1352,-1616,2534,"Net cash from (payments for) principal businesses purchased",-1550,-85,-68]
["Newly issued debt (maturities longer than 90 days)",82959,null,116569,null,100528,"Newly issued debt (maturities longer than 90 days)",47642,"Newly issued debt (maturities longer than 90 days)",43847,null,47643,null,82846,"Repayments and other reductions (maturities longer than 90 days)",-103942,-85706,-99933,"Newly issued debt (maturities longer than 90 days)",37548,45392,63019,"Newly issued debt (maturities longer than 90 days)",37548,45392,63019,"Proceeds from issuance of GE Capital preferred stock",0,0,"Net dispositions (purchases) of GE shares for treasury",-21429,-1099,-1218,"Net dispositions (purchases) of GE shares for treasury",-2550,-21429,-1099,"Cash from (used for) investing activities",8939,18280,5379,"All other investing activities",-1019,-301,8995,"Sales of retained ownership interests",4145,417,3383]
["Repayments and other reductions (maturities longer than 90 days)",-85178,null,-69050,null,-49874,"Repayments and other reductions (maturities longer than 90 days)",-100154,"Repayments and other reductions (maturities longer than 90 days)",-85706,null,-99933,null,-83290,"Proceeds from issuance of GECC preferred stock",3960,0,0,"Repayments and other reductions (maturities longer than 90 days)",-53380,-61461,-103942,"Repayments and other reductions (maturities longer than 90 days)",-53380,-61461,-103942,"Net dispositions (purchases) of GE shares for treasury",-1099,-1218,"Dividends paid to shareowners",-8806,-9295,-8852,"Dividends paid to shareowners",-8650,-8806,-9295,"Cash flows – financing activities",null,null,null,"Cash from (used for) investing activities – continuing operations",16778,10684,18925,"Net (purchases) dispositions of insurance investment securities",-1290,-1352,-1600]
["Proceeds from issuance of preferred stock and warrants",0,null,2965,null,0,"Proceeds from issuance of preferred stock and warrants",null,"Repayment of preferred stock",-3300,null,0,null,0,"Repayment of preferred stock",0,-3300,0,"Proceeds from issuance of preferred stock",0,990,3960,"Proceeds from issuance of preferred stock",0,990,3960,"Dividends paid to shareowners",-9295,-8852,"All other financing activities",-1274,-1605,-652,"All other financing activities",-903,-1274,-1605,"Net increase (decrease) in borrowings (maturities of 90 days or less)",280,-4343,1699,"Cash from (used for) investing activities – discontinued operations",-136,-1745,-645,"All other investing activities",1237,1280,5613]
["Proceeds from issuance of common stock",0,null,12006,null,0,"Proceeds from issuance of common stock",null,"Net dispositions (purchases) of GE shares for treasury",-1456,null,-1263,null,623,"Net dispositions (purchases) of GE shares for treasury",-4164,-1456,-1263,"Net dispositions (purchases) of GE shares for treasury",-1218,-9278,-4164,"Net dispositions (purchases) of GE shares for treasury",-1218,-9278,-4164,"All other financing activities",-1605,-652,"Cash from (used for) financing activities - continuing operations",-89920,-69547,-40912,"Cash from (used for) financing activities – continuing operations",-21055,-89920,-69547,"Newly issued debt (maturities longer than 90 days)",2185,3120,10879,"Cash from (used for) investing activities",16642,8939,18280,"Cash from (used for) investing activities – continuing operations",23705,19297,12197]
["Net dispositions (purchases) of GE shares for treasury",623,null,-1249,null,-12319,"Net dispositions (purchases) of GE shares for treasury",-1263,"Dividends paid to shareowners",-6458,null,-4790,null,-8986,"Dividends paid to shareowners",-7189,-6458,-4790,"Dividends paid to shareowners",-8851,-7821,-7189,"Dividends paid to shareowners",-8851,-7821,-7189,"Cash from (used for) financing activities - continuing operations",-69547,-40912,"Cash from (used for) financing activities - discontinued operations",789,-6507,23956,"Cash from (used for) financing activities – discontinued operations",1909,789,-6507,"Repayments and other reductions (maturities longer than 90 days)",-16567,-20319,-25220,"Cash flows – financing activities",null,null,null,"Cash from (used for) investing activities – discontinued operations",-2397,-2626,-3220]
["Dividends paid to shareowners",-8986,null,-12408,null,-11492,"Dividends paid to shareowners",-4790,"Capital contribution from GE to GECS",0,null,0,null,0,"Purchase of subsidiary shares from noncontrolling interest",0,-4578,-2633,"Proceeds from initial public offering of Synchrony Financial",2842,0,0,"Proceeds from initial public offering of Synchrony Financial",2842,0,0,"Cash from (used for) financing activities - discontinued operations",-6507,23956,"Cash from (used for) financing activities",-89131,-76054,-16956,"Cash from (used for) financing activities",-19146,-89131,-76054,"Capital contribution from GE to GE Capital",0,0,0,"Net increase (decrease) in borrowings (maturities of 90 days or less)",-4168,280,-4343,"Cash from (used for) investing activities",21308,16671,8977]
["Capital contribution from GE to GECS",0,null,0,null,0,"Capital contribution from GE to GECS",null,"Purchase of subsidiary shares from noncontrolling interest",-4578,null,-2633,null,0,"All other financing activities",-2959,-1867,-3648,"All other financing activities",-1067,-1418,-2958,"All other financing activities",-1067,-1418,-2958,"Cash from (used for) financing activities",-76054,-16956,"Effect of currency exchange rate changes on cash and equivalents",-1146,-3464,-3492,"Effect of currency exchange rate changes on cash and equivalents",891,-1146,-3464,"Net dispositions (purchases) of GE shares for treasury",29,-17,-2550,"Newly issued debt (maturities longer than 90 days)",15028,2185,3120,"Cash flows – financing activities"]
["All other financing activities",-3204,null,-1862,null,-1204,"Purchases of subsidiary shares from noncontrolling interests",-2633,"All other financing activities",-1867,null,-3648,null,-3204,"Cash from (used for) financing activities - continuing operations",-51074,-46819,-61249,"Cash from (used for) financing activities - continuing operations",-16952,-45629,-51055,"Cash from (used for) financing activities - continuing operations",-16952,-45629,-51055,"Effect of currency exchange rate changes on cash and equivalents",-3464,-3492,"Increase (decrease) in cash and equivalents",-41319,-138,2224,"Increase (decrease) in cash and equivalents",-5507,-41319,-138,"Dividends paid to shareholders",-649,-4474,-8650,"Repayments and other reductions (maturities longer than 90 days)",-29876,-16567,-20319,"Net increase (decrease) in borrowings (maturities of 90 days or less)",-710,-4168,280]
["Cash from (used for) financing activities - continuing operations",-43513,null,19140,null,28091,"All other financing activities",-3647,"Cash from (used for) financing activities - continuing operations",-46819,null,-61249,null,-41909,"Cash from (used for) financing activities - discontinued operations",0,-44,-337,"Cash from (used for) financing activities - discontinued operations",-6,56,-19,"Cash from (used for) financing activities - discontinued operations",-6,56,-19,"Increase (decrease) in cash and equivalents",-138,2224,"Cash and equivalents at beginning of year",90879,91017,88792,"Cash and equivalents at beginning of year",49558,90879,91017,"All other financing activities",-1043,-1312,-85,"Capital contribution from GE Industrial to GE Capital",0,0,0,"Newly issued debt (maturities longer than 90 days)",364,15028,2185]
["Cash from (used for) financing activities - discontinued operations",0,null,-4,null,-154,"Cash from (used for) financing activities - continuing operations",-61470,"Cash from (used for) financing activities - discontinued operations",-44,null,-337,null,-1604,"Cash from (used for) financing activities",-51074,-46863,-61586,"Cash from (used for) financing activities",-16958,-45573,-51074,"Cash from (used for) financing activities",-16958,-45573,-51074,"Cash and equivalents at beginning of year",91017,88792,"Cash and equivalents at December 31",49558,90879,91017,"Cash and equivalents at end of year",44051,49558,90879,"Cash from (used for) financing activities – continuing operations",-15764,-27345,-23927,"Dividends paid to shareholders",-648,-649,-4474,"Repayments and other debt reductions (maturities longer than 90 days)",-36521,-29632,-16307]
["Cash from (used for) financing activities",-43513,null,19136,null,27937,"Cash from (used for) financing activities - discontinued operations",-116,"Cash from (used for) financing activities",-46863,null,-61586,null,-43513,"Effect of currency exchange rate changes on cash and equivalents",1278,-841,-333,"Effect of currency exchange rate changes on cash and equivalents",-3492,-795,1278,"Effect of currency exchange rate changes on cash and equivalents",-3492,-795,1278,"Cash and equivalents at end of year",90879,91017,"Less cash and equivalents of discontinued operations at December 31",1429,20395,20991,"Less cash and equivalents of discontinued operations at end of year",752,1429,20395,"Cash from (used for) financing activities – discontinued operations",-368,-4462,5443,"All other financing activities",-188,-1013,-1328,"Dividends paid to shareholders",-575,-648,-649]
["Increase (decrease) in cash and equivalents",24077,null,32336,null,1755,"Cash from (used for) financing activities",-61586,"Effect of currency exchange rate changes on cash and equivalents",-841,null,-333,null,795,"Increase (decrease) in cash and equivalents",-7163,5537,6641,"Increase (decrease) in cash and equivalents",2230,11328,-7163,"Increase (decrease) in cash and equivalents",2230,11328,-7163,"Less cash and equivalents of discontinued operations at December 31",20395,20991,"Cash and equivalents of continuing operations at December 31",48129,70483,70025,"Cash and equivalents of continuing operations at end of year",43299,48129,70483,"Cash from (used for) financing activities",-16133,-31807,-18484,"Cash from (used for) financing activities – continuing operations",-19853,-15764,-27345,"Cash paid for debt extinguishment costs",-7196,-335,-255]
["Cash and equivalents at beginning of year",48367,null,16031,null,14276,"Effect of exchange rate changes on cash and equivalents",-333,"Increase (decrease) in cash and equivalents",5537,null,6641,null,24077,"Cash and equivalents at beginning of year",84622,79085,72444,"Cash and equivalents at beginning of year",88787,77459,84622,"Cash and equivalents at beginning of year",88787,77459,84622,"Cash and equivalents of continuing operations at end of year",70483,70025,"Cash paid during the year for interest",-5779,-8764,-9539,"Supplemental disclosure of cash flows information",null,null,null,"Effect of currency exchange rate changes on cash, cash equivalents and restricted cash",-50,-628,891,"Cash from (used for) financing activities – discontinued operations",1,-368,-4462,"All other financing activities",-658,-6,-941]
["Cash and equivalents at end of year",72444,null,48367,null,16031,"Increase (decrease) in cash and equivalents",6640,"Cash and equivalents at beginning of year",79085,null,72444,null,48367,"Cash and equivalents at end of year",77459,84622,79085,"Cash and equivalents at end of year",91017,88787,77459,"Cash and equivalents at end of year",91017,88787,77459,"Cash paid during the year for interest",-9558,-9560,"Cash recovered (paid) during the year for income taxes",-7469,-2486,-2955,"Cash paid during the year for interest",-5049,-5779,-8764,"Increase (decrease) in cash, cash equivalents and restricted cash",1529,-9176,-5659,"Cash from (used for) financing activities",-19852,-16133,-31806,"Cash from (used for) financing activities – continuing operations",-45296,-19762,-15686]
["Less cash and equivalents of discontinued operations at end of year",184,null,180,null,300,"Cash and equivalents at beginning of year",72444,"Cash and equivalents at end of year",84622,null,79085,null,72444,"Less cash and equivalents of discontinued operations at end of year",103,121,142,"Less cash and equivalents of discontinued operations at December 31",133,232,191,"Less cash and equivalents of discontinued operations at December 31",133,232,191,"Cash recovered (paid) during the year for income taxes",-2486,-2955,"GE",null,null,null,"Cash recovered (paid) during the year for income taxes",-2436,-7469,-2486,"Cash, cash equivalents and restricted cash at beginning of year",35548,44724,50384,"Effect of currency exchange rate changes on cash, cash equivalents and restricted cash",145,-50,-628,"Cash from (used for) financing activities – discontinued operations",119,-90,-446]
["Cash and equivalents of continuing operations at end of year",72260,null,48187,null,15731,"Cash and equivalents at end of year",79084,"Less cash and equivalents of discontinued operations at end of year",121,null,142,null,1965,"Cash and equivalents of continuing operations at end of year",77356,84501,78943,"Cash and equivalents of continuing operations at end of year",90884,88555,77268,"Cash and equivalents of continuing operations at end of year",90884,88555,77268,"GE",null,null,"Cash flows - operating activities",null,null,null,"GE",null,null,null,"Cash, cash equivalents and restricted cash at end of year",37077,35548,44724,"Increase (decrease) in cash, cash equivalents and restricted cash",531,1529,-9176,"Cash from (used for) financing activities",-45177,-19852,-16133]
["Supplemental disclosure of cash flows information",null,null,null,null,null,"Less cash and equivalents of discontinued operations at end of year",126,"Cash and equivalents of continuing operations at end of year",84501,null,78943,null,70479,"Supplemental disclosure of cash flows information",null,null,null,"Cash paid during the year for interest",-9560,-8988,-12717,"Cash paid during the year for interest",-9560,-8988,-12717,"Cash flows - operating activities",null,null,"Net earnings (loss)",7896,-6061,15182,"Cash flows – operating activities",null,null,null,"Less cash, cash equivalents and restricted cash of discontinued operations at end of year",638,4424,7901,"Cash, cash equivalents and restricted cash at beginning of year",37077,35548,44724,"Effect of currency exchange rate changes on cash, cash equivalents and restricted cash",-213,145,-50]
["Cash paid during the year for interest",-19601,null,-25853,null,-23340,"Cash and equivalents of continuing operations at end of year",78958,"Supplemental disclosure of cash flows information",null,null,null,null,null,"Cash paid during the year for interest",-12717,-15571,-17132,"Cash recovered (paid) during the year for income taxes",-2955,-2487,-3237,"Cash recovered (paid) during the year for income taxes",-2955,-2487,-3237,"Net earnings (loss)",-6061,15182,"Less net earnings (loss) attributable to noncontrolling interests",-279,83,-50,"Net earnings (loss)",-6496,7896,-6061,"Cash, cash equivalents and restricted cash of continuing operations at end of year",36439,31124,36823,"Cash, cash equivalents and restricted cash at end of year",37608,37077,35548,"Increase (decrease) in cash, cash equivalents and restricted cash",-20750,531,1529]
["Cash recovered (paid) during the year for income taxes",-2535,null,-3237,null,-2912,"Supplemental Cash Flows Information",null,"Cash paid during the year for interest",-15571,null,-17132,null,-19601,"Cash recovered (paid) during the year for income taxes",-3237,-2919,-2671,"GE",null,null,null,"GE",null,null,null,"Less net earnings (loss) attributable to noncontrolling interests",83,-50,"Net earnings (loss) attributable to the Company",8176,-6145,15233,"Less net earnings (loss) attributable to noncontrolling interests",-274,-279,83,"Supplemental disclosure of cash flows information",null,null,null,"Less cash, cash equivalents and restricted cash of discontinued operations at end of year",524,638,4424,"Cash, cash equivalents and restricted cash at beginning of year",37608,37077,35548]
["GE",null,null,null,null,null,"Cash paid during the year for interest",-17132,"Cash recovered (paid) during the year for income taxes",-2919,null,-2671,null,-2535,"Subsidiaries [Member]",null,null,null,"Cash flows - operating activities",null,null,null,"Cash flows - operating activities",null,null,null,"Net earnings (loss) attributable to the Company",-6145,15233,"(Earnings) loss from discontinued operations",952,7807,-5698,"Net earnings (loss) attributable to the Company",-6222,8176,-6145,"Cash paid during the year for interest",-3816,-4409,-4211,"Cash, cash equivalents and restricted cash of continuing operations at end of year",37085,36439,31124,"Cash, cash equivalents and restricted cash at December 31",16859,37608,37077]
["Cash flows - operating activities",null,null,null,null,null,"Cash recovered (paid) during the year for income taxes",-2671,"Subsidiaries [Member]",null,null,null,null,null,"Cash flows - operating activities",null,null,null,"Net earnings",15183,13302,13801,"Net earnings",15183,13302,13801,"(Earnings) loss from discontinued operations, net of taxes",7807,-5698,"Adjustments to reconcile net earnings attributable to the Company to cash provided from operating activities",null,null,null,"(Earnings) loss from discontinued operations",315,952,7807,"GE Capital",null,null,null,"Supplemental disclosure of cash flows information",null,null,null,"Less cash, cash equivalents and restricted cash of discontinued operations at December 31",736,623,774]
["Net earnings",11210,null,17820,null,22915,"Financial Services (GECS) [Member]",null,"Cash flows - operating activities",null,null,null,null,null,"Net earnings",13801,14316,12163,"Less net earnings (loss) attributable to noncontrolling interests",-50,245,160,"Less net earnings (loss) attributable to noncontrolling interests",-50,245,160,"Adjustments to reconcile net earnings (loss) attributable to the Company to cash provided from operating activities",null,null,"Depreciation and amortization of property, plant and equipment",2597,2473,2508,"Adjustments to reconcile net earnings attributable to the Company to cash provided from operating activities:",null,null,null,"Cash flows – operating activities",null,null,null,"Cash paid during the year for interest",-2976,-4101,-4508,"Cash, cash equivalents and restricted cash of continuing operations at December 31",16123,36985,36303]
["Less net earnings attributable to noncontrolling interests",185,null,410,null,707,"Cash flows - operating activities",null,"Net earnings",14316,"[1]",12163,"[1]",11210,"Less: net earnings (loss) attributable to noncontrollng interests",160,165,519,"Net earnings attributable to GE common shareowners for per-share calculation, Basic",15233,13057,13641,"Net earnings attributable to GE common shareowners for per-share calculation, Basic",15233,13057,13641,"Depreciation and amortization of property, plant and equipment",2473,2508,"Earnings from continuing operations retained by GE Capital",21345,12284,1625,"Depreciation and amortization of property, plant and equipment",2857,2597,2473,"Net earnings (loss)",123,-1672,-6643,"GE Capital",null,null,null,"Supplemental disclosure of cash flows information"]
["Net earnings attributable to the Company",11025,null,17410,null,22208,"Net earnings",2171,"Less net earnings (loss) attributable to noncontrollng interests",165,"[1]",519,"[1]",185,"Net earnings (loss) attributable to the Company",13641,14151,11644,"(Earnings) loss from discontinued operations, net of taxes",112,2120,983,"(Earnings) loss from discontinued operations, net of taxes",112,2120,983,"Earnings from continuing operations retained by GE Capital(b)",12284,1625,"Deferred income taxes",1107,-1800,-476,"(Earnings) loss from continuing operations retained by GE Capital",10781,21345,12284,"(Earnings) loss from discontinued operations",-192,1670,312,"Cash flows – operating activities",null,null,null,"Cash paid during the year for interest",-2536,-2976,-4101]
["Loss from discontinued operations",193,null,679,null,249,"Less net earnings attributable to noncontrolling interests",16,"Net earnings (loss) attributable to the Company",14151,"[1]",11644,"[1]",11025,"(Earnings) loss from discontinued operations",1038,76,969,"Adjustments to reconcile net earnings attributable to the Company to cash provided from operating activities",null,null,null,"Adjustments to reconcile net earnings attributable to the Company to cash provided from operating activities",null,null,null,"Deferred income taxes",-1800,-476,"Decrease (increase) in GE current receivables",929,666,-473,"Deferred income taxes",449,1107,-1800,"Adjustments to reconcile net earnings (loss) to cash provided from operating activities:",null,null,null,"Net earnings (loss)",-1322,123,-1672]
["Adjustments to reconcile net earnings attributable to the Company to cash provided from operating activities",null,null,null,null,null,"Net earnings attributable to the Company",2155,"(Earnings) loss from discontinued operations, net of taxes",-77,"[1]",873,"[1]",-219,"Adjustments to reconcile net earnings attributable to the Company to cash provided from operating activities",null,null,null,"Depreciation and amortization of property, plant and equipment",2508,2449,2291,"Depreciation and amortization of property, plant and equipment",2508,2449,2291,"Decrease (increase) in GE current receivables",666,-473,"Decrease (increase) in inventories",-1337,-282,-877,"Decrease (increase) in GE current receivables",297,929,666,"Depreciation and amortization of property, plant and equipment (Note 7)",2026,2110,2277,"(Earnings) loss from discontinued operations",90,-192,1670]
["Depreciation and amortization of property, plant and equipment",2311,null,2162,null,2149,"(Earnings) loss from discontinued operations",975,"Adjustments to reconcile net earnings attributable to the Company to cash provided from operating activities",null,null,null,null,null,"Depreciation and amortization of property, plant and equipment",2291,2068,2034,"Earnings from continuing operations retained by GECC(b)",-4341,-2273,919,"Earnings from continuing operations retained by GECC(b)",-4341,-2273,919,"Decrease (increase) in inventories",-282,-877,"Increase (decrease) in accounts payable",1716,276,884,"Decrease (increase) in inventories",764,-1337,-282,"Amortization of intangible assets (Note 8)",57,53,65,"Adjustments to reconcile net earnings (loss) to cash provided from operating activities:"]
["Earnings from continuing operations retained by GECS",-1590,null,-5423,null,-5126,"Adjustments to reconcile net earnings attributable to the Company to cash provided from operating activities",null,"Depreciation and amortization of property, plant and equipment",2068,"[1]",2034,"[1]",2311,"Earnings from continuing operations retained by GECC",-975,-6584,-3120,"Deferred income taxes",-476,-2571,-294,"Deferred income taxes",-476,-2571,-294,"Increase (decrease) in accounts payable",276,884,"Increase (decrease) in GE progress collections",1913,-1010,-528,"Increase (decrease) in accounts payable",-370,1716,276,"Goodwill impairments (Note 8)",0,0,1386,"Depreciation and amortization of property, plant and equipment (Note 7)",2534,2026,2110]
["Deferred income taxes",-460,null,-417,null,564,"Depreciation and amortization of property, plant and equipment",7753,"Earnings from continuing operations retained by GECS",-6432,"[1]",-3023,"[1]",-1177,"Deferred income taxes",-294,-327,-377,"Decrease (increase) in GE current receivables",-473,-1432,1105,"Decrease (increase) in GE current receivables",-473,-1432,1105,"Increase (decrease) in GE progress collections",-1010,-528,"All other operating activities",-7438,2083,2973,"Increase (decrease) in GE progress collections",1349,1913,-1010,"(Earnings) loss from continuing operations retained by GE Capital",0,0,0,"Amortization of intangible assets (Note 8)",57,57,53]
["Decrease (increase) in GE current receivables",3056,null,-168,null,14,"Earnings from continuing operations retained by GECS",null,"Deferred income taxes",-327,"[1]",-377,"[1]",-460,"Decrease (increase) in GE current receivables",1210,-390,-963,"Increase (Decrease) in Inventories",-877,-1351,-1204,"Increase (Decrease) in Inventories",-877,-1351,-1204,"All other operating activities",2083,2973,"Cash from (used for) operating activities - continuing operations",29960,16354,15171,"All other operating activities",822,-7438,2083,"(Gains) losses on purchases and sales of business interests (Note 19)",-50,-288,0,"Goodwill impairments (Note 8)",839,0,0]
["Decrease (increase) in inventories",1188,null,-524,null,-1496,"Deferred income taxes",1423,"Decrease (increase) in GE current receivables",-390,"[1]",-963,"[1]",3056,"Decrease (increase) in inventories",-1204,-1122,409,"Increase (decrease) in accounts payable",884,809,158,"Increase (decrease) in accounts payable",884,809,158,"Cash from (used for) operating activities - continuing operations",16354,15171,"Cash from (used for) operating activities - discontinued operations",-90,-12,-2,"Cash from (used for) operating activities – continuing operations",11040,29960,16354,"Principal pension plans cost (Note 13)",0,0,0,"(Gains) losses on purchases and sales of business interests (Note 19)",-58,-50,-288]
["Increase (decrease) in accounts payable",-918,null,233,null,-1073,"Decrease (increase) in GE current receivables",null,"Decrease (increase) in inventories",-1122,"[1]",409,"[1]",1188,"Increase (decrease) in accounts payable",158,1938,1052,"Increase (decrease) in GE progress collections",-528,1919,-920,"Increase (decrease) in GE progress collections",-528,1919,-920,"Cash from (used for) operating activities - discontinued operations",-12,-2,"Cash from (used for) operating activities",29870,16342,15169,"Cash from (used for) operating activities – discontinued operations",-1,-90,-12,"Principal pension plans employer contributions (Note 13)",0,0,0,"(Gains) losses on equity securities (Note 19)",25,-6,21]
["Increase (decrease) in GE progress collections",-257,null,2896,null,4620,"Decrease (increase) in inventories",5,"Increase (decrease) in accounts payable",1938,"[1]",1052,"[1]",-918,"Increase (decrease) in GE progress collections",-920,-1146,-1158,"Provision for losses on GECC financing receivables",0,0,0,"Provision for losses on GECC financing receivables",0,0,0,"Cash from (used for) operating activities",16342,15169,"Cash flows - investing activities",null,null,null,"Cash from (used for) operating activities",11039,29870,16342,"Other postretirement benefit plans (net) (Note 13)",-15,-18,-23,"Principal pension plans cost (Note 13)",0,0,0]
["Provision for losses on financing receivables (Note 6)",0,null,0,null,0,"Increase (decrease) in accounts payable",-194,"Increase (decrease) in GE progress collections",-1146,"[1]",-1158,"[1]",-257,"Provision for losses on GECC financing receivables",0,0,0,"All other operating activities",-3129,-1528,2985,"All other operating activities",-3129,-1528,2985,"Cash flows - investing activities",null,null,"Additions to property, plant and equipment",-3758,-3785,-3970,"Cash flows – investing activities",null,null,null,"Provision (benefit) for income taxes (Note 15)",-582,-374,-6302,"Principal pension plans employer contributions (Note 13)",0,0,0]
["All other operating activities (Note 25)",2033,null,2238,null,1192,"Increase (decrease) in GE progress collections",null,"Provision for losses on GECS financing receivables",0,"[1]",0,"[1]",0,"All other operating activities",2881,3393,4256,"Cash from (used for) operating activities - continuing operations",15171,14255,17826,"Cash from (used for) operating activities - continuing operations",15171,14255,17826,"Additions to property, plant and equipment",-3785,-3970,"Dispositions of property, plant and equipment",1080,939,615,"Additions to property, plant and equipment",-4132,-3758,-3785,"Cash recovered (paid) during the year for income taxes",-46,-61,264,"Other postretirement benefit plans (net) (Note 13)",-47,-15,-18]
["Cash from (used for) operating activities - continuing operations",16581,null,19086,null,23301,"Provision for losses on GECS financing receivables",7191,"All other operating activities",3394,"[1]",4255,"[1]",1856,"Cash from (used for) operating activities - continuing operations",17826,12057,14746,"Cash from (used for) operating activities - discontinued operations",-2,-2,0,"Cash from (used for) operating activities - discontinued operations",-2,-2,0,"Dispositions of property, plant and equipment",939,615,"Net decrease (increase) in GE Capital financing receivables",0,0,0,"Dispositions of property, plant and equipment",1401,1080,939,"Decrease (increase) in contract and other deferred assets",0,0,0,"Provision (benefit) for income taxes (Note 15)",-862,-582,-374]
["Cash from (used for) operating activities - discontinued operations",2,null,-5,null,-857,"All other operating activities (Note 25)",1862,"Cash from (used for) operating activities - continuing operations",12057,"[1]",14746,"[1]",16405,"Cash from (used for) operating activities - discontinued operations",0,0,0,"Cash from (used for) operating activities",15169,14253,17826,"Cash from (used for) operating activities",15169,14253,17826,"Net decrease (increase) in GE Capital financing receivables",0,0,"Proceeds from sale of discontinued operations",0,0,0,"Additions to internal-use software",-518,-740,-755,"Decrease (increase) in GE current receivables",0,0,0,"Cash recovered (paid) during the year for income taxes (Note 15)",1007,-46,-61]
["Cash from (used for) operating activities",16583,null,19081,null,22444,"Cash from (used for) operating activities - continuing operations",21170,"Cash from (used for) operating activities - discontinued operations",0,"[1]",0,"[1]",2,"Cash from (used for) operating activities",17826,12057,14746,"Cash flows - investing activities",null,null,null,"Cash flows - investing activities",null,null,null,"Proceeds from sales of discontinued operations",0,0,"Proceeds from principal business dispositions",5357,1725,602,"Net decrease (increase) in GE Capital financing receivables",0,0,0,"Decrease (increase) in inventories",0,0,0,"Changes in operating working capital:"]
["Cash flows - investing activities",null,null,null,null,null,"Cash from (used for) operating activities - discontinued operations",331,"Cash from (used for) operating activities",12057,"[1]",14746,"[1]",16407,"Cash flows - investing activities",null,null,null,"Additions to property, plant and equipment",-3970,-3680,-3937,"Additions to property, plant and equipment",-3970,-3680,-3937,"Proceeds from principal business dispositions",1725,602,"Net cash from (payments for) principal businesses purchased",-2271,-10350,-2091,"Proceeds from sale of discontinued operations",0,0,0,"Increase (decrease) in accounts payable",-44,2,-75,"Decrease (increase) in current receivables",0,0,0]
["Additions to property, plant and equipment",-2429,null,-2996,null,-2968,"Cash from (used for) operating activities",21501,"Cash flows - investing activities",null,null,null,null,null,"Additions to property, plant and equipment",-3937,-2957,-2418,"Dispositions of property, plant and equipment",0,0,0,"Dispositions of property, plant and equipment",0,0,0,"Proceeds from sale of equity interest in NBCU LLC",0,0,"All other investing activities",-2392,-1308,-1062,"Proceeds from principal business dispositions",3106,5357,1725,"Increase (decrease) in GE progress collections",0,0,0,"Decrease (increase) in inventories, including deferred inventory costs",0,0,0]
["Dispositions of property, plant and equipment",0,null,0,null,0,"Cash flows - investing activities",null,"Additions to property, plant and equipment",-2957,"[1]",-2418,"[1]",-2429,"Dispositions of property, plant and equipment",0,0,0,"Net decrease (increase) in GECC financing receivables",0,0,0,"Net decrease (increase) in GECC financing receivables",0,0,0,"Net cash from (payments for) principal businesses purchased",-10350,-2091,"Cash from (used for) investing activities - continuing operations",-1984,-12779,-5906,"Net cash from (payments for) principal businesses purchased",-6087,-2271,-10350,"All other operating activities",605,158,11114,"Decrease (increase) in current contract assets",0,0,0]
["Net decrease (increase) in GECS financing receivables",0,null,0,null,0,"Additions to property, plant and equipment",-7674,"Dispositions of property, plant and equipment",0,"[1]",0,"[1]",0,"Net decrease (increase) in GECC financing receivables",0,0,0,"Proceeds from sales of discontinued operations",0,0,0,"Proceeds from sales of discontinued operations",0,0,0,"All other investing activities",-1308,-1062,"Cash from (used for) investing activities - discontinued operations",90,12,2,"All other investing activities",-2097,-1652,-553,"Cash from (used for) operating activities – continuing operations",1881,1582,2374,"Increase (decrease) in accounts payable and equipment project accruals",-29,-44,2]
["Proceeds from sales of discontinued operations",0,null,203,null,10826,"Dispositions of property, plant and equipment",7208,"Net decrease (increase) in GECS financing receivables",0,"[1]",0,"[1]",0,"Proceeds from sales of discontinued operations",0,0,0,"Proceeds from principal business dispositions",602,1316,540,"Proceeds from principal business dispositions",602,1316,540,"Cash from (used for) investing activities - continuing operations",-12779,-5906,"Cash from (used for) investing activities",-1894,-12767,-5905,"Cash from (used for) investing activities – continuing operations",-8328,-1984,-12779,"Cash from (used for) operating activities – discontinued operations",-1917,-415,-968,"Increase (decrease) in progress collections and current deferred income",0,0,0]
["Proceeds from principal business dispositions",890,null,58,null,1047,"Net decrease (increase) in GECS financing receivables",26298,"Proceeds from sales of discontinued operations",0,"[1]",0,"[1]",0,"Proceeds from principal business dispositions",540,6254,1721,"Proceeds from sale of equity interest in NBCU LLC",0,16699,0,"Proceeds from sale of equity interest in NBCU LLC",0,16699,0,"Cash from (used for) investing activities - discontinued operations",12,2,"Cash flows - financing activities",null,null,null,"Cash from (used for) investing activities – discontinued operations",1,90,12,"Cash from (used for) operating activities",-35,1166,1407,"All other operating activities",1261,610,138]
["Payments for principal businesses purchased",-428,null,-3149,null,-9645,"Proceeds from sales of discontinued operations",2510,"Proceeds from principal business dispositions",6254,"[1]",1721,"[1]",890,"Payments for principal businesses purchased",-1456,-11152,-653,"Net cash from (payments for) principal businesses purchased",-2091,-8026,1456,"Net cash from (payments for) principal businesses purchased",-2091,-8026,1456,"Cash from (used for) investing activities",-12767,-5905,"Net increase (decrease) in borrowings (maturities of 90 days or less)",1595,603,243,"Cash from (used for) investing activities",-8327,-1894,-12767,"Cash flows – investing activities",null,null,null,"Cash from (used for) operating activities – continuing operations",3495,1881,1582]
["Capital contribution from GE to GECS",-9500,null,-5500,null,0,"Proceeds from principal business dispositions",1171,"Payments for principal businesses purchased",-11152,"[1]",-653,"[1]",-428,"All other investing activities",-564,-384,-550,"Payments for proceeds from other investing activities",-447,-1488,-564,"Payments for proceeds from other investing activities",-447,-1488,-564,"Cash flows - financing activities",null,null,"Newly issued debt (maturities longer than 90 days)",5307,3560,3084,"Cash flows – financing activities",null,null,null,"Additions to property, plant and equipment",-3830,-4569,-3680,"Cash from (used for) operating activities – discontinued operations",-32,-1917,-415]
["All other investing activities",-198,null,324,null,-1697,"Payments for principal businesses purchased",-559,"Capital contribution from GE to GECS",0,"[1]",0,"[1]",-9500,"Cash from (used for) investing activities - continuing operations",-5417,-8239,-1900,"Cash from (used for) investing activities - continuing operations",-5906,4821,-5417,"Cash from (used for) investing activities - continuing operations",-5906,4821,-5417,"Net increase (decrease) in borrowings (maturities of 90 days or less)",603,243,"Repayments and other debt reductions (maturities longer than 90 days)",-4156,-2190,-323,"Net increase (decrease) in borrowings (maturities of 90 days or less)",1680,1595,603,"Dispositions of property, plant and equipment",3348,3853,4579,"Cash from (used for) operating activities",3463,-35,1166]
["Cash from (used for) investing activities - continuing operations",-11665,null,-11060,null,-2437,"Capital contribution from GE to GECS",null,"All other investing activities",-384,"[1]",-550,"[1]",-198,"Cash from (used for) investing activities - discontinued operations",0,0,0,"Cash from (used for) investing activities - discontinued operations",2,2,0,"Cash from (used for) investing activities - discontinued operations",2,2,0,"Newly issued debt (maturities longer than 90 days)",3560,3084,"Proceeds from issuance of GE Capital preferred stock",0,0,0,"Newly issued debt (maturities longer than 90 days)",20264,5307,3560,"Additions to internal-use software",-8,-14,-31,"Cash flows – investing activities"]
["Cash from (used for) investing activities - discontinued operations",-2,null,5,null,1003,"All other investing activities",7401,"Cash from (used for) investing activities - continuing operations",-8239,"[1]",-1900,"[1]",-11665,"Cash from (used for) investing activities",-5417,-8239,-1900,"Cash from (used for) investing activities",-5904,4823,-5417,"Cash from (used for) investing activities",-5904,4823,-5417,"Repayments and other reductions (maturities longer than 90 days)",-2190,-323,"Net dispositions (purchases) of GE shares for treasury",-21429,-1099,-1218,"Repayments and other reductions (maturities longer than 90 days)",-5981,-4156,-2190,"Net decrease (increase) in GE Capital financing receivables",3389,9986,2897,"Additions to property, plant and equipment",-1765,-3830,-4569]
["Cash from (used for) investing activities",-11667,null,-11055,null,-1434,"Cash from (used for) investing activities - continuing operations",36355,"Cash from (used for) investing activities - discontinued operations",0,"[1]",0,"[1]",-2,"Cash flows - financing activities",null,null,null,"Cash flows - financing activities",null,null,null,"Cash flows - financing activities",null,null,null,"Proceeds from issuance of GE Capital preferred stock",0,0,"Dividends paid to shareowners",-8474,-9289,-8851,"Net dispositions (purchases) of GE shares for treasury",-2550,-21429,-1099,"Net cash from (payments for) principal businesses purchased",0,0,0,"Dispositions of property, plant and equipment",1450,3348,3853]
["Cash flows - financing activities",null,null,null,null,null,"Cash from (used for) investing activities - discontinued operations",-2045,"Cash from (used for) investing activities",-8239,"[1]",-1900,"[1]",-11667,"Net increase (decrease) in borrowings (maturities of 90 days or less)",-890,1058,-671,"Net increase (decrease) in borrowings (maturities of 90 days or less)",243,949,-890,"Net increase (decrease) in borrowings (maturities of 90 days or less)",243,949,-890,"Net dispositions (purchases) of GE shares for treasury",-1099,-1218,"All other financing activities",-273,203,346,"Dividends paid to shareowners",-8355,-8474,-9289,"Capital contribution from GE to GE Capital",0,0,0,"Additions to internal-use software",-7,-8,-14]
["Net increase (decrease) in borrowings (maturities of 90 days or less)",317,null,-2152,null,-3284,"Cash from (used for) investing activities",34310,"Cash flows - financing activities",null,null,null,null,null,"Net increase (decrease) in bank deposits",0,0,0,"Net increase (decrease) in bank deposits",0,0,0,"Net increase (decrease) in bank deposits",0,0,0,"Dividends paid to shareowners",-9289,-8851,"Cash from (used for) financing activities - continuing operations",-27430,-8211,-6719,"All other financing activities",-528,-273,203,"All other investing activities",2617,482,3013,"Net decrease (increase) in GE Capital financing receivables",199,3389,9986]
["Net increase (decrease) in bank deposits",0,null,0,null,0,"Cash flows - financing activities",null,"Net increase (decrease) in borrowings (maturities of 90 days or less)",1058,"[1]",-671,"[1]",317,"Newly issued debt (maturities longer than 90 days)",6961,177,9474,"Newly issued debt (maturities longer than 90 days)",3084,512,6961,"Newly issued debt (maturities longer than 90 days)",3084,512,6961,"All other financing activities",203,346,"Cash from (used for) financing activities - discontinued operations",0,0,0,"Cash from (used for) financing activities – continuing operations",4530,-27430,-8211,"Cash from (used for) investing activities – continuing operations",9453,11777,8242,"Net cash from (payments for) principal businesses purchased",0,0,0]
["Newly issued debt (maturities longer than 90 days)",1883,null,136,null,8751,"Net increase (decrease) in borrowings (maturities of 90 days or less)",-652,"Net increase (decrease) in bank deposits",0,"[1]",0,"[1]",0,"Repayments and other reductions (maturities longer than 90 days)",-34,-270,-2554,"Repayments and other reductions (maturities longer than 90 days)",-323,-5032,-34,"Repayments and other reductions (maturities longer than 90 days)",-323,-5032,-34,"Cash from (used for) financing activities - continuing operations",-8211,-6719,"Cash from (used for) financing activities",-27430,-8211,-6719,"Cash from (used for) financing activities – discontinued operations",0,0,0,"Cash from (used for) investing activities – discontinued operations",2023,186,-1784,"Capital contribution from GE Industrial to GE Capital",0,0,0]
["Repayments and other reductions (maturities longer than 90 days)",-1675,null,-1936,null,-298,"Net increase (decrease) in bank deposits",4603,"Newly issued debt (maturities longer than 90 days)",177,"[1]",9474,"[1]",1883,"Proceeds from issuance of GECC preferred stock",0,0,0,"Proceeds from issuance of preferred stock",0,0,0,"Proceeds from issuance of preferred stock",0,0,0,"Cash from (used for) financing activities - discontinued operations",0,0,"Effect of currency exchange rate changes on cash and equivalents",-392,-908,-312,"Cash from (used for) financing activities",4530,-27430,-8211,"Cash from (used for) investing activities",11476,11964,6458,"Sales of retained ownership interests",0,0,0]
["Proceeds from issuance of preferred stock and warrants",0,null,2965,null,0,"Newly issued debt (maturities longer than 90 days)",37970,"Repayments and other reductions (maturities longer than 90 days)",-270,"[1]",-2554,"[1]",-1675,"Repayment of preferred stock",0,-3300,0,"Net dispositions (purchases) of GE shares for treasury",-1218,-9278,-4164,"Net dispositions (purchases) of GE shares for treasury",-1218,-9278,-4164,"Cash from (used for) financing activities",-8211,-6719,"Increase (decrease) in cash and equivalents",153,-5544,2234,"Effect of currency exchange rate changes on cash and equivalents",444,-392,-908,"Cash flows – financing activities",null,null,null,"Net (purchases) dispositions of GE Capital investment securities (Note 3)",-1352,-1616,2534]
["Proceeds from issuance of common stock",0,null,12006,null,0,"Repayments and other reductions (maturities longer than 90 days)",-97600,"Repayment of preferred stock",-3300,"[1]",0,"[1]",0,"Net dispositions (purchases) of GE shares for treasury",-4164,-1456,-1263,"Dividends paid to shareowners",-8851,-7821,-7189,"Dividends paid to shareowners",-8851,-7821,-7189,"Effect of currency exchange rate changes on cash and equivalents",-908,-312,"Cash and equivalents at beginning of year",10372,15916,13682,"Increase (decrease) in cash and equivalents",7686,153,-5544,"Net increase (decrease) in borrowings (maturities of 90 days or less)",-256,-4308,69,"All other investing activities",9673,4233,-2052]
["Net dispositions (purchases) of GE shares for treasury",623,null,-1249,null,-12319,"Proceeds from issuance of preferred stock and warrants",null,"Net dispositions (purchases) of GE shares for treasury",-1456,"[1]",-1263,"[1]",623,"Dividends paid to shareowners",-7189,-6458,-4790,"Proceeds from initial public offering of Synchrony Financial",0,0,0,"Proceeds from initial public offering of Synchrony Financial",0,0,0,"Increase (decrease) in cash and equivalents",-5544,2234,"Cash and equivalents at December 31",10525,10372,15916,"Cash and equivalents at beginning of year",10525,10372,15916,"Newly issued debt (maturities longer than 90 days)",2154,3045,1909,"Cash from (used for) investing activities – continuing operations",8231,9453,11777]
["Dividends paid to shareowners",-8986,null,-12408,null,-11492,"Proceeds from issuance of common stock",null,"Dividends paid to shareowners",-6458,"[1]",-4790,"[1]",-8986,"Purchase of subsidiary shares from noncontrolling interest",0,-4303,-2000,"All other financing activities",346,-211,32,"All other financing activities",346,-211,32,"Cash and equivalents at beginning of year",15916,13682,"Less cash and equivalents of discontinued operations at December 31",0,0,0,"Cash and equivalents at end of year",18211,10525,10372,"Repayments and other reductions (maturities longer than 90 days)",-11632,-19836,-21007,"Cash from (used for) investing activities – discontinued operations",-100,2023,186]
["Capital contribution from GE to GECS",0,null,0,null,0,"Net dispositions (purchases) of GE shares for treasury",null,"Capital contribution from GE to GECS",0,"[1]",0,"[1]",0,"All other financing activities",32,-75,-330,"Cash from (used for) financing activities - continuing operations",-6719,-20881,-5284,"Cash from (used for) financing activities - continuing operations",-6719,-20881,-5284,"Cash and equivalents at end of year",10372,15916,"Cash and equivalents of continuing operations at December 31",10525,10372,15916,"Less cash and equivalents of discontinued operations at end of year",0,0,0,"Capital contribution from GE to GE Capital",4000,0,0,"Cash from (used for) investing activities",8131,11476,11964]
["All other financing activities",-514,null,0,null,0,"Dividends paid to shareowners",null,"Purchase of subsidiary shares from noncontrolling interest",-4303,"[1]",-2000,"[1]",0,"Cash from (used for) financing activities - continuing operations",-5284,-14627,-2134,"Cash from (used for) financing activities - discontinued operations",0,0,0,"Cash from (used for) financing activities - discontinued operations",0,0,0,"Less cash and equivalents of discontinued operations at December 31",0,0,"Cash paid during the year for interest",-1753,-1327,-1248,"Cash and equivalents of continuing operations at end of year",18211,10525,10372,"Net dispositions (purchases) of GE shares for treasury",0,0,0,"Cash flows – financing activities"]
["Cash from (used for) financing activities - continuing operations",-8352,null,-2638,null,-18642,"Capital contribution from GE to GECS",null,"All other financing activities",-75,"[1]",-330,"[1]",-514,"Cash from (used for) financing activities - discontinued operations",0,0,0,"Cash from (used for) financing activities",-6719,-20881,-5284,"Cash from (used for) financing activities",-6719,-20881,-5284,"Cash and equivalents of continuing operations at end of year",10372,15916,"Cash recovered (paid) during the year for income taxes",-2612,-1636,-1337,"Supplemental disclosure of cash flows information",null,null,null,"Dividends paid to shareholders",-455,-371,-4311,"Net increase (decrease) in borrowings (maturities of 90 days or less)",-525,-256,-4308]
["Cash from (used for) financing activities - discontinued operations",0,null,0,null,-146,"Purchases of subsidiary shares from noncontrolling interests",-633,"Cash from (used for) financing activities - continuing operations",-14627,"[1]",-2134,"[1]",-8352,"Cash from (used for) financing activities",-5284,-14627,-2134,"Effect of currency exchange rate changes on cash and equivalents",-312,-22,2,"Effect of currency exchange rate changes on cash and equivalents",-312,-22,2,"Cash paid during the year for interest",-1204,-1215,"GE Capital",null,null,null,"Cash paid during the year for interest",-2256,-1753,-1327,"All other financing activities",-819,-2408,-280,"Newly issued debt (maturities longer than 90 days)",7566,2154,3045]
["Cash from (used for) financing activities",-8352,null,-2638,null,-18788,"All other financing activities",-3317,"Cash from (used for) financing activities - discontinued operations",0,"[1]",0,"[1]",0,"Effect of currency exchange rate changes on cash and equivalents",2,-50,-125,"Increase (decrease) in cash and equivalents",2234,-1827,7127,"Increase (decrease) in cash and equivalents",2234,-1827,7127,"Cash recovered (paid) during the year for income taxes",-1636,-1337,"Cash flows - operating activities",null,null,null,"Cash recovered (paid) during the year for income taxes",-2700,-2612,-1636,"Cash from (used for) financing activities – continuing operations",-7007,-23878,-23619,"Repayments and other reductions (maturities longer than 90 days)",-25252,-11632,-19836]
["Increase (decrease) in cash and equivalents",-3436,null,5388,null,2222,"Cash from (used for) financing activities - continuing operations",-59629,"Cash from (used for) financing activities",-14627,"[1]",-2134,"[1]",-8352,"Increase (decrease) in cash and equivalents",7127,-10859,10587,"Cash and equivalents at beginning of year",13682,15509,8382,"Cash and equivalents at beginning of year",13682,15509,8382,"GE Capital",null,null,"Net earnings (loss)",-1560,-15202,7397,"Financial Services (GE Capital)",null,null,null,"Cash from (used for) financing activities – discontinued operations",-1,0,1909,"Capital contribution from GE Industrial to GE Capital",2000,4000,0]
["Cash and equivalents at beginning of year",12090,null,6702,null,4480,"Cash from (used for) financing activities - discontinued operations",-116,"Effect of currency exchange rate changes on cash and equivalents",-50,"[1]",-125,"[1]",176,"Cash and equivalents at beginning of year",8382,19241,8654,"Cash and equivalents at end of year",15916,13682,15509,"Cash and equivalents at end of year",15916,13682,15509,"Cash flows - operating activities",null,null,"Less net earnings (loss) attributable to noncontrolling interests",-12,248,162,"Cash flows – operating activities",null,null,null,"Cash from (used for) financing activities",-7008,-23878,-21710,"Dividends paid to shareholders",-469,-455,-371]
["Cash and equivalents at end of year",8654,null,12090,null,6702,"Cash from (used for) financing activities",-59745,"Increase (decrease) in cash and equivalents",-10859,"[1]",10587,"[1]",-3436,"Cash and equivalents at end of year",15509,8382,19241,"Less cash and equivalents of discontinued operations at December 31",0,0,0,"Less cash and equivalents of discontinued operations at December 31",0,0,0,"Net earnings (loss)",-15202,7397,"Net earnings (loss) attributable to the Company",-1548,-15450,7234,"Net earnings (loss)",-6643,-1560,-15202,"Effect of currency exchange rate changes on cash, cash equivalents and restricted cash",6,-134,447,"All other financing activities",-58,-819,-2408]
["Less cash and equivalents of discontinued operations at end of year",0,null,0,null,0,"Effect of exchange rate changes on cash and equivalents",-208,"Cash and equivalents at beginning of year",19241,"[1]",8654,"[1]",12090,"Less cash and equivalents of discontinued operations at end of year",0,0,0,"Cash and equivalents of continuing operations at end of year",15916,13682,15509,"Cash and equivalents of continuing operations at end of year",15916,13682,15509,"Less net earnings (loss) attributable to noncontrolling interests",248,162,"(Earnings) loss from discontinued operations",954,7485,-5860,"Less net earnings (loss) attributable to noncontrolling interests",4,-12,248,"Increase (decrease) in cash, cash equivalents and restricted cash",4439,-10882,-13399,"Cash from (used for) financing activities – continuing operations",-16738,-7007,-23878]
["Cash and equivalents of continuing operations at end of year",8654,null,12090,null,6702,"Increase (decrease) in cash and equivalents",-4142,"Cash and equivalents at end of year",8382,"[1]",19241,"[1]",8654,"Cash and equivalents of continuing operations at end of year",15509,8382,19241,"Cash paid during the year for interest",-1215,-1132,-1182,"Cash paid during the year for interest",-1215,-1132,-1182,"Net earnings (loss) attributable to the Company",-15450,7234,"Adjustments to reconcile net earnings attributable to the Company to cash provided from operating activities",null,null,null,"Net earnings (loss) attributable to the Company",-6647,-1548,-15450,"Cash, cash equivalents and restricted cash at beginning of year",15020,25902,39301,"Cash from (used for) financing activities – discontinued operations",0,-1,0]
["Supplemental disclosure of cash flows information",null,null,null,null,null,"Cash and equivalents at beginning of year",64540,"Less cash and equivalents of discontinued operations at end of year",0,"[1]",0,"[1]",0,"Supplemental disclosure of cash flows information",null,null,null,"Cash recovered (paid) during the year for income taxes",-1337,-4753,-2987,"Cash recovered (paid) during the year for income taxes",-1337,-4753,-2987,"(Earnings) loss from discontinued operations, net of taxes",7485,-5860,"Depreciation and amortization of property, plant and equipment",2384,2436,2529,"(Earnings) loss from discontinued operations",312,954,7485,"Cash, cash equivalents and restricted cash at end of year",19460,15020,25902,"Cash from (used for) financing activities",-16738,-7008,-23878]
["Cash paid during the year for interest",-768,null,-1190,null,-1466,"Cash and equivalents at end of year",60398,"Cash and equivalents of continuing operations at end of year",8382,"[1]",19241,"[1]",8654,"Cash paid during the year for interest",-545,-553,-731,"GECC",null,null,null,"GECC",null,null,null,"Adjustments to reconcile net earnings (loss) attributable to the Company to cash provided from operating activities",null,null,"Earnings from continuing operations retained by GE Capital",0,0,0,"Adjustments to reconcile net earnings attributable to the Company to cash provided from operating activities:",null,null,null,"Less cash, cash equivalents and restricted cash of discontinued operations at end of year",633,528,757,"Effect of currency exchange rate changes on cash, cash equivalents and restricted cash",84,6,-134]
["Cash recovered (paid) during the year for income taxes",-3078,null,-2627,null,-4036,"Less cash and equivalents of discontinued operations at end of year",126,"Supplemental disclosure of cash flows information",null,null,null,null,null,"Cash recovered (paid) during the year for income taxes",-2987,-2303,-2775,"Cash flows - operating activities",null,null,null,"Cash flows - operating activities",null,null,null,"Depreciation and amortization of property, plant and equipment",2436,2529,"Deferred income taxes",-293,2183,-406,"Depreciation and amortization of property, plant and equipment",2277,2384,2436,"Cash, cash equivalents and restricted cash of continuing operations at end of year",18826,14492,25145,"Increase (decrease) in cash, cash equivalents and restricted cash",-5060,4439,-10882]
["Financial Services (GECS)",null,null,null,null,null,"Cash and equivalents of continuing operations at end of year",60272,"Cash paid during the year for interest",-553,"[1]",-731,"[1]",-768,"Subsidiaries GECC [Member]",null,null,null,"Net earnings",7396,6257,6278,"Net earnings",7396,6257,6278,"Earnings from continuing operations retained by GE Capital(b)",0,0,"Decrease (increase) in GE current receivables",0,0,0,"(Earnings) loss from continuing operations retained by GE Capital",0,0,0,"Supplemental disclosure of cash flows information",null,null,null,"Cash, cash equivalents and restricted cash at beginning of year",19460,15020,25902]
["Cash flows - operating activities",null,null,null,null,null,"Supplemental Cash Flows Information",null,"Cash recovered (paid) during the year for income taxes",-2303,"[1]",-2775,"[1]",-3078,"Cash flows - operating activities",null,null,null,"Less net earnings (loss) attributable to noncontrolling interests",162,53,63,"Less net earnings (loss) attributable to noncontrolling interests",162,53,63,"Deferred income taxes",2183,-406,"Decrease (increase) in inventories",-10,-14,27,"Deferred income taxes",-5294,-293,2183,"Cash paid during the year for interest",-2632,-2883,-2793,"Cash, cash equivalents and restricted cash at end of year",14400,19460,15020]
["Net earnings",1446,null,7286,null,10510,"Cash paid during the year for interest",-16401,"Subsidiaries GECS [Member]",null,null,null,null,null,"Net earnings",6278,6637,2171,"Net earnings attributable to GE common shareowners for per-share calculation, Basic",7234,6204,6215,"Net earnings attributable to GE common shareowners for per-share calculation, Basic",7234,6204,6215,"Decrease (increase) in GE current receivables",0,0,"Increase (decrease) in accounts payable",17,-189,258,"Decrease (increase) in GE current receivables",0,0,0,"GE",null,null,null,"Less cash, cash equivalents and restricted cash of discontinued operations at end of year",524,633,528]
["Less net earnings attributable to noncontrolling interests",31,null,231,null,209,"Cash recovered (paid) during the year for income taxes",104,"Cash flows - operating activities",null,null,null,null,null,"Less: net earnings (loss) attributable to noncontrollng interests",63,127,16,"(Earnings) loss from discontinued operations, net of taxes",107,2054,1130,"(Earnings) loss from discontinued operations, net of taxes",107,2054,1130,"Decrease (increase) in inventories",-14,27,"Increase (decrease) in GE progress collections",0,0,0,"Decrease (increase) in inventories",-2,-10,-14,"Cash flows – operating activities",null,null,null,"Cash, cash equivalents and restricted cash of continuing operations at end of year",13876,18826,14492]
["Net earnings attributable to the Company",1415,null,7055,null,10301,"GE [Member]",null,"Net earnings",6637,null,2171,null,1430,"Net earnings (loss) attributable to the Company",6215,6510,2155,"Adjustments to reconcile net earnings attributable to the Company to cash provided from operating activities",null,null,null,"Adjustments to reconcile net earnings attributable to the Company to cash provided from operating activities",null,null,null,"Increase (decrease) in accounts payable",-189,258,"All other operating activities",-3054,5087,2480,"Increase (decrease) in accounts payable",-75,17,-189,"Net earnings (loss)",-5373,-22931,-9288,"Supplemental disclosure of cash flows information"]
["Loss from discontinued operations",175,null,719,null,2116,"Cash flows - operating activities",null,"Less net earnings (loss) attributable to noncontrollng interests",127,null,16,null,15,"(Earnings) loss from discontinued operations",1186,74,965,"Depreciation and amortization of property, plant and equipment",6859,7313,6901,"Depreciation and amortization of property, plant and equipment",6859,7313,6901,"Increase (decrease) in GE progress collections",0,0,"Cash from (used for) operating activities - continuing operations",-1552,1537,6263,"Increase (decrease) in GE progress collections",0,0,0,"(Earnings) loss from discontinued operations",5335,1363,319,"Cash paid during the year for interest",-1957,-2632,-2883]
["Adjustments to reconcile net earnings attributable to the Company to cash provided from operating activities",null,null,null,null,null,"Net earnings",12163,"Net earnings (loss) attributable to the Company",6510,null,2155,null,1415,"Adjustments to reconcile net earnings attributable to the Company to cash provided from operating activities",null,null,null,"Earnings from continuing operations retained by GECC(b)",0,0,0,"Earnings from continuing operations retained by GECC(b)",0,0,0,"All other operating activities",5087,2480,"Cash from (used for) operating activities - discontinued operations",-6253,8046,11678,"All other operating activities",11802,-3054,5087,"Adjustments to reconcile net earnings (loss) to cash provided from operating activities:",null,null,null,"GE Industrial"]
["Depreciation and amortization of property, plant and equipment",8325,null,9330,null,8126,"Less net earnings attributable to noncontrolling interests",519,"(Earnings) loss from discontinued operations, net of taxes",-78,null,868,null,-238,"Depreciation and amortization of property, plant and equipment",7055,7117,7752,"Deferred income taxes",-710,-724,-858,"Deferred income taxes",-710,-724,-858,"Cash from (used for) operating activities - continuing operations",1537,6263,"Cash from (used for) operating activities",-7805,9583,17941,"Cash from (used for) operating activities – continuing operations",2374,-1552,1537,"Depreciation and amortization of property, plant and equipment (Note 7)",2001,2290,2050,"Cash flows – operating activities"]
["Earnings from continuing operations retained by GECS",0,null,0,null,0,"Net earnings attributable to the Company",11644,"Adjustments to reconcile net earnings attributable to the Company to cash provided from operating activities",null,null,null,null,null,"Earnings from continuing operations retained by GECC",0,0,0,"Decrease (increase) in GE current receivables",0,0,0,"Decrease (increase) in GE current receivables",0,0,0,"Cash from (used for) operating activities - discontinued operations",8046,11678,"Cash flows - investing activities",null,null,null,"Cash from (used for) operating activities – discontinued operations",-968,-6253,8046,"Amortization of intangible assets (Note 8)",1512,2109,1796,"Net earnings (loss)",6868,-5035,-20772]
["Deferred income taxes",-2245,null,-867,null,93,"(Earnings) loss from discontinued operations",979,"Depreciation and amortization of property, plant and equipment",7117,null,7752,null,8306,"Deferred income taxes",-877,124,1307,"Increase (Decrease) in Inventories",27,33,-27,"Increase (Decrease) in Inventories",27,33,-27,"Cash from (used for) operating activities",9583,17941,"Additions to property, plant and equipment",-3769,-4237,-3818,"Cash from (used for) operating activities",1407,-7805,9583,"Goodwill impairments (Note 8)",1486,22136,1165,"(Earnings) loss from discontinued operations",35,5527,-307]
["Decrease (increase) in GE current receivables",0,null,0,null,0,"Adjustments to reconcile net earnings attributable to the Company to cash provided from operating activities",null,"Earnings from continuing operations retained by GECS",0,null,0,null,0,"Decrease (increase) in GE current receivables",0,0,0,"Increase (decrease) in accounts payable",-2,73,-880,"Increase (decrease) in accounts payable",-2,73,-880,"Cash flows - investing activities",null,null,"Dispositions of property, plant and equipment",3637,2526,2331,"Cash flows – investing activities",null,null,null,"(Earnings) loss from continuing operations retained by GE Capital",530,489,10781,"Adjustments to reconcile net earnings (loss) to cash provided from operating activities:"]
["Decrease (increase) in inventories",-6,null,-14,null,2,"Depreciation and amortization of property, plant and equipment",2260,"Deferred income taxes",124,null,1307,null,-2318,"Decrease (increase) in inventories",-27,15,5,"Increase (decrease) in GE progress collections",0,0,0,"Increase (decrease) in GE progress collections",0,0,0,"Additions to property, plant and equipment",-4237,-3818,"Net decrease (increase) in GE Capital financing receivables",-1279,226,-161,"Additions to property, plant and equipment",-3680,-3769,-4237,"(Gains) losses on purchases and sales of business interests (Note 19)",-3,-1234,-1024,"Depreciation and amortization of property, plant and equipment (Note 7)",2130,2001,2290]
["Increase (decrease) in accounts payable",-379,null,-1045,null,485,"Earnings from continuing operations retained by GECS",-3130,"Decrease (increase) in GE current receivables",0,null,0,null,0,"Increase (decrease) in accounts payable",-867,50,-116,"Provision for losses on GECC financing receivables",3993,4818,3832,"Provision for losses on GECC financing receivables",3993,4818,3832,"Dispositions of property, plant and equipment",2526,2331,"Proceeds from sale of discontinued operations",59890,79615,232,"Dispositions of property, plant and equipment",4579,3637,2526,"Principal pension plans cost (Note 13)",3878,4226,3687,"Amortization of intangible assets (Note 8)",1325,1512,2109]
["Increase (decrease) in GE progress collections",0,null,0,null,0,"Deferred income taxes",-377,"Decrease (increase) in inventories",15,null,5,null,-6,"Increase (decrease) in GE progress collections",0,0,0,"All other operating activities",-240,-99,-5418,"All other operating activities",-240,-99,-5418,"Net decrease (increase) in GE Capital financing receivables",226,-161,"Proceeds from principal business dispositions",0,532,0,"Additions to internal-use software",-31,-8,-23,"Principal pension plans employer contributions (Note 13)",-298,-6283,-1978,"Goodwill impairments (Note 8)",877,1486,22136]
["Provision for losses on financing receivables (Note 6)",10928,null,7518,null,4431,"Decrease (increase) in GE current receivables",-963,"Increase (decrease) in accounts payable",50,null,-116,null,-363,"Provision for losses on GECC financing receivables",3891,3951,7085,"Cash from (used for) operating activities - continuing operations",17748,19870,21731,"Cash from (used for) operating activities - continuing operations",17748,19870,21731,"Proceeds from sales of discontinued operations",79615,232,"Net cash from (payments for) principal businesses purchased",0,-1677,0,"Net decrease (increase) in GE Capital financing receivables",2897,-1279,226,"Other postretirement benefit plans (net) (Note 13)",-1213,-1015,-865,"(Gains) losses on purchases and sales of business interests (Note 19)",-12468,-3,-1234]
["All other operating activities (Note 25)",-10654,null,8508,null,-539,"Decrease (increase) in inventories",409,"Increase (decrease) in GE progress collections",0,null,0,null,0,"All other operating activities",5392,3282,2482,"Cash from (used for) operating activities - discontinued operations",197,-456,316,"Cash from (used for) operating activities - discontinued operations",197,-456,316,"Proceeds from principal business dispositions",532,0,"All other investing activities",1639,-4690,24574,"Proceeds from sale of discontinued operations",1464,59890,79615,"Provision (benefit) for income taxes (Note 15)",1309,467,3493,"(Gains) losses on equity securities (Note 19)",2080,-688,-185]
["Cash from (used for) operating activities - continuing operations",7559,null,31204,null,25015,"Increase (decrease) in accounts payable",1052,"Provision for losses on GECS financing receivables",4083,null,7176,null,10585,"Cash from (used for) operating activities - continuing operations",21968,21123,21635,"Cash from (used for) operating activities",17945,19414,22047,"Cash from (used for) operating activities",17945,19414,22047,"Net cash from (payments for) principal businesses purchased",-1677,0,"Cash from (used for) investing activities - continuing operations",60118,72295,23158,"Proceeds from principal business dispositions",0,0,532,"Cash recovered (paid) during the year for income taxes",-1904,-1343,-2188,"Principal pension plans cost (Note 13)",3559,3878,4226]
["Cash from (used for) operating activities - discontinued operations",-133,null,765,null,4039,"Increase (decrease) in GE progress collections",-1158,"All other operating activities",3281,null,2487,null,-11558,"Cash from (used for) operating activities - discontinued operations",79,737,-133,"Cash flows - investing activities",null,null,null,"Cash flows - investing activities",null,null,null,"All other investing activities",-4690,24574,"Cash from (used for) investing activities - discontinued operations",-13501,-2137,-24263,"Net cash from (payments for) principal businesses purchased",0,0,-1677,"Decrease (increase) in contract and other deferred assets",62,-81,-1243,"Principal pension plans employer contributions (Note 13)",-2806,-298,-6283]
["Cash from (used for) operating activities",7426,null,31969,null,29054,"Provision for losses on GECS financing receivables",null,"Cash from (used for) operating activities - continuing operations",21102,null,21634,null,5823,"Cash from (used for) operating activities",22047,21860,21502,"Additions to property, plant and equipment",-10410,-9978,-11879,"Additions to property, plant and equipment",-10410,-9978,-11879,"Cash from (used for) investing activities - continuing operations",72295,23158,"Cash from (used for) investing activities",46617,70158,-1105,"All other investing activities",3052,1647,-4667,"Decrease (increase) in GE current receivables",-3904,-966,1040,"Other postretirement benefit plans (net) (Note 13)",-846,-1213,-1015]
["Cash flows - investing activities",null,null,null,null,null,"All other operating activities (Note 25)",4030,"Cash from (used for) operating activities - discontinued operations",758,null,-132,null,1603,"Cash flows - investing activities",null,null,null,"Dispositions of property, plant and equipment",6284,5883,6184,"Dispositions of property, plant and equipment",6284,5883,6184,"Cash from (used for) investing activities - discontinued operations",-2137,-24263,"Cash flows - financing activities",null,null,null,"Cash from (used for) investing activities – continuing operations",8282,60118,72295,"Decrease (increase) in inventories",-877,-364,339,"Provision (benefit) for income taxes (Note 15)",388,1309,467]
["Additions to property, plant and equipment",-6443,null,-13321,null,-15217,"Cash from (used for) operating activities - continuing operations",14746,"Cash from (used for) operating activities",21860,null,21502,null,7426,"Additions to property, plant and equipment",-11886,-9882,-7674,"Net decrease (increase) in GECC financing receivables",-5689,3589,5490,"Net decrease (increase) in GECC financing receivables",-5689,3589,5490,"Cash from (used for) investing activities",70158,-1105,"Net increase (decrease) in borrowings (maturities of 90 days or less)",-1655,-24834,-7078,"Cash from (used for) investing activities – discontinued operations",-1618,-13501,-2137,"Increase (decrease) in accounts payable",684,1595,-46,"Cash recovered (paid) during the year for income taxes (Note 15)",-2447,-1904,-1343]
["Dispositions of property, plant and equipment",6479,null,10975,null,8457,"Cash from (used for) operating activities - discontinued operations",null,"Cash flows - investing activities",null,null,null,null,null,"Dispositions of property, plant and equipment",6200,5896,7208,"Proceeds from sales of discontinued operations",232,528,227,"Proceeds from sales of discontinued operations",232,528,227,"Cash flows - financing activities",null,null,"Newly issued debt (maturities longer than 90 days)",1174,10391,11545,"Cash from (used for) investing activities",6664,46617,70158,"Increase (decrease) in GE progress collections",1317,-433,1938,"Changes in operating working capital:"]
["Net decrease (increase) in GECS financing receivables",43952,null,-17375,null,-44164,"Cash from (used for) operating activities",14746,"Additions to property, plant and equipment",-9882,null,-7674,null,-6445,"Net decrease (increase) in GECC financing receivables",5383,14370,23046,"Proceeds from principal business dispositions",2320,1983,2863,"Proceeds from principal business dispositions",2320,1983,2863,"Net increase (decrease) in borrowings (maturities of 90 days or less)",-24834,-7078,"Repayments and other debt reductions (maturities longer than 90 days)",-58285,-44848,-38087,"Cash flows – financing activities",null,null,null,"All other operating activities",72,676,1504,"Decrease (increase) in current receivables",-558,-3904,-966]
["Proceeds from sales of discontinued operations",0,null,5220,null,117,"Cash flows - investing activities",null,"Dispositions of property, plant and equipment",5896,null,7208,null,6479,"Proceeds from sales of discontinued operations",227,8950,2510,"Proceeds from sale of equity interest in NBCU LLC",0,0,0,"Proceeds from sale of equity interest in NBCU LLC",0,0,0,"Newly issued debt (maturities longer than 90 days)",10391,11545,"Proceeds from issuance of GE Capital preferred stock",0,0,0,"Net increase (decrease) in borrowings (maturities of 90 days or less)",69,-1655,-24834,"Cash from (used for) operating activities – continuing operations",4614,701,11479,"Decrease (increase) in inventories, including deferred inventory costs",1188,-1349,-581]
["Proceeds from principal business dispositions",9088,null,4928,null,1699,"Additions to property, plant and equipment",-2418,"Net decrease (increase) in GECS financing receivables",14392,null,23061,null,36927,"Proceeds from principal business dispositions",2863,2623,1171,"Net cash from (payments for) principal businesses purchased",-548,6384,0,"Net cash from (payments for) principal businesses purchased",-548,6384,0,"Repayments and other reductions (maturities longer than 90 days)",-44848,-38087,"Net dispositions (purchases) of GE shares for treasury",0,0,0,"Newly issued debt (maturities longer than 90 days)",1909,1174,10391,"Cash from (used for) operating activities – discontinued operations",-49,2051,-195,"Decrease (increase) in current contract assets",1631,891,751]
["Payments for principal businesses purchased",-5702,null,-24961,null,-7570,"Dispositions of property, plant and equipment",null,"Proceeds from sales of discontinued operations",8950,null,2510,null,0,"Payments for principal businesses purchased",0,-50,-559,"Payments for proceeds from other investing activities",6997,14972,11794,"Payments for proceeds from other investing activities",6997,14972,11794,"Proceeds from issuance of GE Capital preferred stock",0,0,"Dividends paid to shareowners",-20427,-4620,-3322,"Repayments and other reductions (maturities longer than 90 days)",-21007,-58285,-44848,"Cash from (used for) operating activities",4565,2752,11284,"Increase (decrease) in accounts payable and equipment project accruals",-2556,381,716]
["Capital contribution from GE to GECS",0,null,0,null,0,"Net decrease (increase) in GECS financing receivables",null,"Proceeds from principal business dispositions",2623,null,1171,null,9088,"All other investing activities",11701,7301,9960,"Cash from (used for) investing activities - continuing operations",-814,23361,14679,"Cash from (used for) investing activities - continuing operations",-814,23361,14679,"Net dispositions (purchases) of GE shares for treasury",0,0,"All other financing activities",-1127,-1362,-679,"Net dispositions (purchases) of GE shares for treasury",0,0,0,"Cash flows – investing activities",null,null,null,"Increase (decrease) in progress collections and current deferred income",-247,1476,-424]
["All other investing activities",-1686,null,5979,null,-8730,"Proceeds from sales of discontinued operations",null,"Payments for principal businesses purchased",-50,null,-559,null,-7414,"Cash from (used for) investing activities - continuing operations",14488,29208,35662,"Cash from (used for) investing activities - discontinued operations",-290,441,-288,"Cash from (used for) investing activities - discontinued operations",-290,441,-288,"Dividends paid to shareowners",-4620,-3322,"Cash from (used for) financing activities - continuing operations",-80320,-65273,-37621,"Dividends paid to shareowners",-4311,-20427,-4620,"Additions to property, plant and equipment",-2216,-2234,-3403,"All other operating activities",591,548,1117]
["Cash from (used for) investing activities - continuing operations",45688,null,-28555,null,-65408,"Proceeds from principal business dispositions",1721,"Capital contribution from GE to GECS",0,null,0,null,0,"Cash from (used for) investing activities - discontinued operations",-97,-714,-1352,"Cash from (used for) investing activities",-1104,23802,14391,"Cash from (used for) investing activities",-1104,23802,14391,"All other financing activities",-1362,-679,"Cash from (used for) financing activities - discontinued operations",789,-6507,23956,"All other financing activities",-280,-1127,-1362,"Dispositions of property, plant and equipment",371,271,1186,"Cash from (used for) operating activities – continuing operations",-1254,4614,701]
["Cash from (used for) investing activities - discontinued operations",136,null,-881,null,-3921,"Payments for principal businesses purchased",-653,"All other investing activities",7300,null,9947,null,4592,"Cash from (used for) investing activities",14391,28494,34310,"Cash flows - financing activities",null,null,null,"Cash flows - financing activities",null,null,null,"Cash from (used for) financing activities - continuing operations",-65273,-37621,"Cash from (used for) financing activities",-79531,-71780,-13665,"Cash from (used for) financing activities – continuing operations",-23619,-80320,-65273,"Additions to internal-use software",-274,-306,-423,"Cash from (used for) operating activities – discontinued operations",32,-49,2051]
["Cash from (used for) investing activities",45824,null,-29436,null,-69329,"Capital contribution from GE to GECS",null,"Cash from (used for) investing activities - continuing operations",29229,null,35664,null,43227,"Cash flows - financing activities",null,null,null,"Net increase (decrease) in borrowings (maturities of 90 days or less)",-6781,-13892,-1401,"Net increase (decrease) in borrowings (maturities of 90 days or less)",-6781,-13892,-1401,"Cash from (used for) financing activities - discontinued operations",-6507,23956,"Effect of currency exchange rate changes on cash and equivalents",-754,-2556,-3180,"Cash from (used for) financing activities – discontinued operations",1909,789,-6507,"Net decrease (increase) in GE Capital financing receivables",0,0,0,"Cash from (used for) operating activities",-1223,4565,2752]
["Cash flows - financing activities",null,null,null,null,null,"All other investing activities",-550,"Cash from (used for) investing activities - discontinued operations",-735,null,-1354,null,1978,"Net increase (decrease) in borrowings (maturities of 90 days or less)",-1401,4393,-652,"Net increase (decrease) in bank deposits",13286,2197,2450,"Net increase (decrease) in bank deposits",13286,2197,2450,"Cash from (used for) financing activities",-71780,-13665,"Increase (decrease) in cash and equivalents",-41473,5406,-9,"Cash from (used for) financing activities",-21710,-79531,-71780,"Net cash from (payments for) principal businesses purchased",-447,-1,-2722,"Cash flows – investing activities"]
["Net increase (decrease) in borrowings (maturities of 90 days or less)",-26882,null,-45515,null,1642,"Cash from (used for) investing activities - continuing operations",-1900,"Cash from (used for) investing activities",28494,null,34310,null,45205,"Net increase (decrease) in bank deposits",2432,6748,4603,"Newly issued debt (maturities longer than 90 days)",34464,44888,55841,"Newly issued debt (maturities longer than 90 days)",34464,44888,55841,"Effect of currency exchange rate changes on cash and equivalents",-2556,-3180,"Cash and equivalents at beginning of year",80506,75100,75109,"Effect of currency exchange rate changes on cash and equivalents",447,-754,-2556,"Capital contribution from GE to GE Capital",-4000,0,0,"Additions to property, plant and equipment",-1579,-2216,-2234]
["Net increase (decrease) in bank deposits",-3986,null,20623,null,2144,"Cash from (used for) investing activities - discontinued operations",null,"Cash flows - financing activities",null,null,null,null,null,"Newly issued debt (maturities longer than 90 days)",55841,43267,37971,"Repayments and other reductions (maturities longer than 90 days)",-53057,-56429,-103908,"Repayments and other reductions (maturities longer than 90 days)",-53057,-56429,-103908,"Increase (decrease) in cash and equivalents",5406,-9,"Cash and equivalents at December 31",39033,80506,75100,"Increase (decrease) in cash and equivalents",-13193,-41473,5406,"All other investing activities",3675,-640,-9439,"Dispositions of property, plant and equipment",202,371,271]
["Newly issued debt (maturities longer than 90 days)",81186,null,116117,null,91678,"Cash from (used for) investing activities",-1900,"Net increase (decrease) in borrowings (maturities of 90 days or less)",4393,null,-652,null,-27255,"Repayments and other reductions (maturities longer than 90 days)",-103908,-85436,-97379,"Proceeds from issuance of preferred stock",0,990,3960,"Proceeds from issuance of preferred stock",0,990,3960,"Cash and equivalents at beginning of year",75100,75109,"Less cash and equivalents of discontinued operations at December 31",1429,20395,20991,"Cash and equivalents at beginning of year",39033,80506,75100,"Cash from (used for) investing activities – continuing operations",4056,3138,-11715,"Additions to internal-use software",-143,-274,-306]
["Repayments and other reductions (maturities longer than 90 days)",-83503,null,-67114,null,-49576,"Cash flows - financing activities",null,"Net increase (decrease) in bank deposits",6748,null,4603,null,-3784,"Proceeds from issuance of GECC preferred stock",3960,0,0,"Net dispositions (purchases) of GE shares for treasury",0,0,0,"Net dispositions (purchases) of GE shares for treasury",0,0,0,"Cash and equivalents at end of year",80506,75100,"Cash and equivalents of continuing operations at December 31",37604,60111,54109,"Cash and equivalents at end of year",25840,39033,80506,"Cash from (used for) investing activities – discontinued operations",-3449,-698,2312,"Net decrease (increase) in GE Capital financing receivables",0,0,0]
["Proceeds from issuance of preferred stock and warrants",0,null,0,null,0,"Net increase (decrease) in borrowings (maturities of 90 days or less)",-671,"Newly issued debt (maturities longer than 90 days)",43267,null,37971,null,81073,"Repayment of preferred stock",0,0,0,"Dividends paid to shareowners",-3322,-6283,-6549,"Dividends paid to shareowners",-3322,-6283,-6549,"Less cash and equivalents of discontinued operations at December 31",20395,20991,"Cash paid during the year for interest",-4982,-8047,-8910,"Less cash and equivalents of discontinued operations at end of year",752,1429,20395,"Cash from (used for) investing activities",607,2439,-9403,"Net cash from (payments for) principal businesses purchased",-85,-447,-1]
["Proceeds from issuance of common stock",0,null,0,null,0,"Net increase (decrease) in bank deposits",null,"Repayments and other reductions (maturities longer than 90 days)",-85436,null,-97379,null,-81615,"Net dispositions (purchases) of GE shares for treasury",0,0,0,"Proceeds from initial public offering of Synchrony Financial",2842,0,0,"Proceeds from initial public offering of Synchrony Financial",2842,0,0,"Cash and equivalents of continuing operations at end of year",60111,54109,"Cash recovered (paid) during the year for income taxes",-4857,-850,-1618,"Cash and equivalents of continuing operations at end of year",25088,37604,60111,"Cash flows – financing activities",null,null,null,"Capital contribution from GE Industrial to GE Capital",-2000,-4000,0]
["Net dispositions (purchases) of GE shares for treasury",0,null,0,null,0,"Newly issued debt (maturities longer than 90 days)",9474,"Repayment of preferred stock",0,null,0,null,0,"Dividends paid to shareowners",-6549,0,0,"All other financing activities",-1091,-909,-2867,"All other financing activities",-1091,-909,-2867,"Cash paid during the year for interest",-8884,-8910,null,null,null,null,"Supplemental disclosure of cash flows information",null,null,null,"Net increase (decrease) in borrowings (maturities of 90 days or less)",-595,-987,1808,"Sales of retained ownership interests",417,3383,0]
["Dividends paid to shareowners",0,null,-2351,null,-7291,"Repayments and other reductions (maturities longer than 90 days)",-2554,"Net dispositions (purchases) of GE shares for treasury",0,null,0,null,0,"Purchase of subsidiary shares from noncontrolling interest",0,-275,-633,"Cash from (used for) financing activities - continuing operations",-13659,-29438,-52474,"Cash from (used for) financing activities - continuing operations",-13659,-29438,-52474,"Cash recovered (paid) during the year for income taxes",-850,-1618,null,null,null,null,"Cash paid during the year for interest",-2793,-4982,-8047,"Newly issued debt (maturities longer than 90 days)",31,6570,16267,"Net (purchases) dispositions of GE Capital investment securities (Note 3)",0,0,0]
["Capital contribution from GE to GECS",9500,null,5500,null,0,"Proceeds from issuance of preferred stock and warrants",null,"Dividends paid to shareowners",0,null,0,null,0,"All other financing activities",-2868,-1792,-3318,"Cash from (used for) financing activities - discontinued operations",-6,56,-19,"Cash from (used for) financing activities - discontinued operations",-6,56,-19,null,null,null,null,null,null,null,"Cash recovered (paid) during the year for income taxes",264,-4857,-850,"Repayments and other reductions (maturities longer than 90 days)",-6458,-1023,-5579,"All other investing activities",523,292,-640]
["All other financing activities",-2691,null,-1862,null,-1204,"Proceeds from issuance of common stock",null,"Capital contribution from GE to GECS",0,null,0,null,9500,"Cash from (used for) financing activities - continuing operations",-52493,-33095,-59408,"Cash from (used for) financing activities",-13665,-29382,-52493,"Cash from (used for) financing activities",-13665,-29382,-52493,"[1]",null,null,null,null,null,null,null,null,null,null,"Capital contribution from GE to GE Capital",0,0,0,"Cash from (used for) investing activities – continuing operations",17729,4056,3138]
["Cash from (used for) financing activities - continuing operations",-26376,null,25398,null,37393,"Net dispositions (purchases) of GE shares for treasury",-1263,"Purchase of subsidiary shares from noncontrolling interest",-275,null,-633,null,0,"Cash from (used for) financing activities - discontinued operations",0,-44,-337,"Effect of currency exchange rate changes on cash and equivalents",-3180,-773,1276,"Effect of currency exchange rate changes on cash and equivalents",-3180,-773,1276,"[2]",null,null,null,null,null,null,"[1]","Represents the adding together of all affiliated companies except GE Capital, which is presented on a one-line basis. See Note 1.",null,null,"Net dispositions (purchases) of GE shares for treasury",29,-17,-2550,"Cash from (used for) investing activities – discontinued operations",-36,-3449,-698]
["Cash from (used for) financing activities - discontinued operations",0,null,-4,null,-8,"Dividends paid to shareowners",-4790,"All other financing activities",-1792,null,-3318,null,-2691,"Cash from (used for) financing activities",-52493,-33139,-59745,"Increase (decrease) in cash and equivalents",-4,13061,-14779,"Increase (decrease) in cash and equivalents",-4,13061,-14779,null,null,null,null,null,null,null,"[2]","Represents GE Capital earnings/loss from continuing operations attributable to the Company, net of GE Capital dividends paid to GE.",null,null,"Dividends paid to shareholders",-352,-4179,-8355,"Cash from (used for) investing activities",17693,607,2439]
["Cash from (used for) financing activities",-26376,null,25394,null,37385,"Capital contribution from GE to GECS",null,"Cash from (used for) financing activities - continuing operations",-33095,null,-59408,null,-24772,"Effect of currency exchange rate changes on cash and equivalents",1276,-791,-208,"Cash and equivalents at beginning of year",75105,62044,76823,"Cash and equivalents at beginning of year",75105,62044,76823,null,null,null,null,null,null,null,null,null,null,null,"All other financing activities",-312,1107,290,"Cash flows – financing activities"]
["Increase (decrease) in cash and equivalents",26874,null,27927,null,-2890,"Purchases of subsidiary shares from noncontrolling interests",-2000,"Cash from (used for) financing activities - discontinued operations",-44,null,-337,null,-1604,"Increase (decrease) in cash and equivalents",-14779,16424,-4141,"Cash and equivalents at end of year",75101,75105,62044,"Cash and equivalents at end of year",75101,75105,62044,null,null,null,null,null,null,null,null,null,null,null,"Cash from (used for) financing activities – continuing operations",-7658,1470,1881,"Net increase (decrease) in borrowings (maturities of 90 days or less)",-4234,-595,-987]
["Cash and equivalents at beginning of year",37666,null,9739,null,12629,"All other financing activities",-330,"Cash from (used for) financing activities",-33139,null,-59745,null,-26376,"Cash and equivalents at beginning of year",76823,60399,64540,"Less cash and equivalents of discontinued operations at December 31",133,232,191,"Less cash and equivalents of discontinued operations at December 31",133,232,191,null,null,null,null,null,null,null,null,null,null,null,"Cash from (used for) financing activities – discontinued operations",-368,-4462,3534,"Newly issued debt (maturities longer than 90 days)",7462,31,6570]
["Cash and equivalents at end of year",64540,null,37666,null,9739,"Cash from (used for) financing activities - continuing operations",-2134,"Effect of currency exchange rate changes on cash and equivalents",-791,null,-208,null,619,"Cash and equivalents at end of year",62044,76823,60399,"Cash and equivalents of continuing operations at end of year",74968,74873,61853,"Cash and equivalents of continuing operations at end of year",74968,74873,61853,null,null,null,null,null,null,null,null,null,null,null,"Cash from (used for) financing activities",-8026,-2992,5415,"Repayments and other reductions (maturities longer than 90 days)",-13673,-6458,-1023]
["Less cash and equivalents of discontinued operations at end of year",184,null,180,null,300,"Cash from (used for) financing activities - discontinued operations",null,"Increase (decrease) in cash and equivalents",16424,null,-4141,null,26874,"Less cash and equivalents of discontinued operations at end of year",103,121,142,"Cash paid during the year for interest",-8910,-8146,-12172,"Cash paid during the year for interest",-8910,-8146,-12172,null,null,null,null,null,null,null,null,null,null,null,"Effect of currency exchange rate changes on cash, cash equivalents and restricted cash",-56,-494,444,"Capital contribution from GE Industrial to GE Capital",0,0,0]
["Cash and equivalents of continuing operations at end of year",64356,null,37486,null,9439,"Cash from (used for) financing activities",-2134,"Cash and equivalents at beginning of year",60399,null,64540,null,37666,"Cash and equivalents of continuing operations at end of year",61941,76702,60257,"Cash recovered (paid) during the year for income taxes",-1618,2266,-250,"Cash recovered (paid) during the year for income taxes",-1618,2266,-250,null,null,null,null,null,null,null,null,null,null,null,"Increase (decrease) in cash, cash equivalents and restricted cash",-2911,1706,7739,"Dividends paid to shareholders",-354,-352,-4179]
["Supplemental disclosure of cash flows information",null,null,null,null,null,"Effect of exchange rate changes on cash and equivalents",-125,"Cash and equivalents at end of year",76823,null,60399,null,64540,"Supplemental disclosure of cash flows information",null,null,null,"Synchrony",null,null,null,"Synchrony",null,null,null,null,null,null,null,null,null,null,null,null,null,null,"Cash, cash equivalents and restricted cash at beginning of year",20528,18822,11083,"All other financing activities",-141,-283,1090]
["Cash paid during the year for interest",-18833,null,-24663,null,-21874,"Increase (decrease) in cash and equivalents",10587,"Less cash and equivalents of discontinued operations at end of year",121,null,142,null,1965,"Cash paid during the year for interest",-12172,-15018,-16401,"Cash flows - financing activities",null,null,null,"Cash flows - financing activities",null,null,null,null,null,null,null,null,null,null,null,null,null,null,"Cash, cash equivalents and restricted cash at end of year",17617,20528,18822,"Cash from (used for) financing activities – continuing operations",-10941,-7658,1470]
["Cash recovered (paid) during the year for income taxes",543,null,-610,null,1124,"Cash and equivalents at beginning of year",8654,"Cash and equivalents of continuing operations at end of year",76702,null,60257,null,62575,"Cash recovered (paid) during the year for income taxes",-250,-616,104,"Proceeds from initial public offering of Synchrony Financial",2842,0,null,"Proceeds from initial public offering of Synchrony Financial",2842,0,null,null,null,null,null,null,null,null,null,null,null,null,"Less cash, cash equivalents and restricted cash of discontinued operations at end of year",4,3896,7144,"Cash from (used for) financing activities – discontinued operations",1,-368,-4462]
["[1]See Note 3 for other-than-temporary impairment amounts.",null,null,null,null,null,"Cash and equivalents at end of year",19241,"Supplemental disclosure of cash flows information",null,null,null,null,null,null,null,null,null,null,null,null,null,null,null,null,null,null,null,null,null,null,null,null,null,null,null,null,"Cash, cash equivalents and restricted cash of continuing operations at end of year",17613,16632,11678,"Cash from (used for) financing activities",-10940,-8026,-2992]
[null,null,null,null,null,null,"Less cash and equivalents of discontinued operations at end of year",null,"Cash paid during the year for interest",-15018,null,-16401,null,-18833,"[1]","(a) Represents the adding together of all affiliated companies except General Electric Capital Corporation (GECC or financial services), which is presented on a one-line basis See Note 1",null,null,"[1]","(a)Represents the adding together of all affiliated companies except General Electric Capital Corporation (GECC or Financial Services), which is presented on a one-line basis. See Note 1.",null,null,"[1]","(a)Represents the adding together of all affiliated companies except General Electric Capital Corporation (GECC or Financial Services), which is presented on a one-line basis. See Note 1.",null,null,null,null,null,null,null,null,null,null,null,null,null,"Supplemental disclosure of cash flows information",null,null,null,"Effect of currency exchange rate changes on cash, cash equivalents and restricted cash",61,-56,-494]
[null,null,null,null,null,null,"Cash and equivalents of continuing operations at end of year",19241,"Cash recovered (paid) during the year for income taxes",-616,null,104,null,543,"[2]","Represents GECC earnings from continuing operations attributable to the Company, net of GECC dividends paid to GE.",null,null,null,null,null,null,null,null,null,null,null,null,null,null,null,null,null,null,null,null,null,"Cash paid during the year for interest",-1975,-2201,-2347,"Increase (decrease) in cash, cash equivalents and restricted cash",5591,-2911,1706]
[null,null,null,null,null,null,"Supplemental Cash Flows Information",null,null,null,null,null,null,null,null,null,null,null,null,null,null,null,null,null,null,null,null,null,null,null,null,null,null,null,null,null,null,"Sale of discontinued operations",null,null,null,"Cash, cash equivalents and restricted cash at beginning of year",17617,20528,18822]
[null,null,null,null,null,null,"Cash paid during the year for interest",-731,"[1]","(a) Represents the adding together of all affiliated companies except General Electric Capital Services, Inc. (GECS or financial services), which is presented on a one-line basis. See Note 1.",null,null,null,null,null,null,null,null,null,null,null,null,null,null,null,null,null,null,null,null,null,null,null,null,null,null,null,"Cash flows – investing activities",null,null,null,"Cash, cash equivalents and restricted cash at end of year",23209,17617,20528]
[null,null,null,null,null,null,"Cash recovered (paid) during the year for income taxes",-2775,null,null,null,null,null,null,null,null,null,null,null,null,null,null,null,null,null,null,null,null,null,null,null,null,null,null,null,null,null,"Proceeds from sale of businesses",5864,29,1464,"Less cash, cash equivalents and restricted cash of discontinued operations at end of year",0,4,3896]
[null,null,null,null,null,null,null,null,null,null,null,null,null,null,null,null,null,null,null,null,null,null,null,null,null,null,null,null,null,null,null,null,null,null,null,null,null,"Sale of discontinued operations | GE Capital",null,null,null,"Cash, cash equivalents and restricted cash of continuing operations at end of year",23209,17613,16632]
[null,null,null,null,null,null,"[1]","Represents the adding together of all affiliated companies except General Electric Capital Services, Inc. (GECS or financial services), which is presented on a one-line basis. See Note 1.",null,null,null,null,null,null,null,null,null,null,null,null,null,null,null,null,null,null,null,null,null,null,null,null,null,null,null,null,null,"Cash flows – investing activities",null,null,null,"Supplemental disclosure of cash flows information"]
[null,null,null,null,null,null,null,null,null,null,null,null,null,null,null,null,null,null,null,null,null,null,null,null,null,null,null,null,null,null,null,null,null,null,null,null,null,"Proceeds from sale of businesses",0,29,1464,"Cash paid during the year for interest",-1276,-1975,-2201]
[null,null,null,null,null,null,null,null,null,null,null,null,null,null,null,null,null,null,null,null,null,null,null,null,null,null,null,null,null,null,null,null,null,null,null,null,null,"Sale of discontinued operations | GE",null,null,null,"Sale of discontinued operations"]
[null,null,null,null,null,null,null,null,null,null,null,null,null,null,null,null,null,null,null,null,null,null,null,null,null,null,null,null,null,null,null,null,null,null,null,null,null,"Cash flows – investing activities",null,null,null,"Cash flows – investing activities"]
[null,null,null,null,null,null,null,null,null,null,null,null,null,null,null,null,null,null,null,null,null,null,null,null,null,null,null,null,null,null,null,null,null,null,null,null,null,"Proceeds from sale of businesses",5864,0,0,"Proceeds from sale of businesses",0,5864,29]
[null,null,null,null,null,null,null,null,null,null,null,null,null,null,null,null,null,null,null,null,null,null,null,null,null,null,null,null,null,null,null,null,null,null,null,null,null,"Principal business dispositions",null,null,null,"Sale of discontinued operations | GE Capital"]
[null,null,null,null,null,null,null,null,null,null,null,null,null,null,null,null,null,null,null,null,null,null,null,null,null,null,null,null,null,null,null,null,null,null,null,null,null,"Cash flows – investing activities",null,null,null,"Cash flows – investing activities"]
[null,null,null,null,null,null,null,null,null,null,null,null,null,null,null,null,null,null,null,null,null,null,null,null,null,null,null,null,null,null,null,null,null,null,null,null,null,"Proceeds from sale of businesses",4683,8425,3208,"Proceeds from sale of businesses",0,0,29]
[null,null,null,null,null,null,null,null,null,null,null,null,null,null,null,null,null,null,null,null,null,null,null,null,null,null,null,null,null,null,null,null,null,null,null,null,null,"Principal business dispositions | GE Capital",null,null,null,"Sale of discontinued operations | GE Industrial"]
[null,null,null,null,null,null,null,null,null,null,null,null,null,null,null,null,null,null,null,null,null,null,null,null,null,null,null,null,null,null,null,null,null,null,null,null,null,"Cash flows – investing activities",null,null,null,"Cash flows – investing activities"]
[null,null,null,null,null,null,null,null,null,null,null,null,null,null,null,null,null,null,null,null,null,null,null,null,null,null,null,null,null,null,null,null,null,null,null,null,null,"Proceeds from sale of businesses",3938,2011,0,"Proceeds from sale of businesses",0,5864,0]
[null,null,null,null,null,null,null,null,null,null,null,null,null,null,null,null,null,null,null,null,null,null,null,null,null,null,null,null,null,null,null,null,null,null,null,null,null,"Principal business dispositions | GE",null,null,null,"Principal business dispositions"]
[null,null,null,null,null,null,null,null,null,null,null,null,null,null,null,null,null,null,null,null,null,null,null,null,null,null,null,null,null,null,null,null,null,null,null,null,null,"Cash flows – investing activities",null,null,null,"Cash flows – investing activities"]
[null,null,null,null,null,null,null,null,null,null,null,null,null,null,null,null,null,null,null,null,null,null,null,null,null,null,null,null,null,null,null,null,null,null,null,null,null,"Proceeds from sale of businesses",1083,6047,3086,"Proceeds from sale of businesses",20596,4683,8425]
[null,null,null,null,null,null,null,null,null,null,null,null,null,null,null,null,null,null,null,null,null,null,null,null,null,null,null,null,null,null,null,null,null,null,null,null,null,null,null,null,null,"Principal business dispositions | GE Capital"]
[null,null,null,null,null,null,null,null,null,null,null,null,null,null,null,null,null,null,null,null,null,null,null,null,null,null,null,null,null,null,null,null,null,null,null,null,null,"[1]","Represents the adding together of all GE Industrial affiliates and GE Capital continuing operations on a one-line basis. See Note 1.",null,null,"Cash flows – investing activities"]
[null,null,null,null,null,null,null,null,null,null,null,null,null,null,null,null,null,null,null,null,null,null,null,null,null,null,null,null,null,null,null,null,null,null,null,null,null,"[2]","Represents the adding together of all GE Industrial affiliates and the impact of GE Capital dividends on a one-line basis. See Note 1.",null,null,"Proceeds from sale of businesses",34,3938,2011]
[null,null,null,null,null,null,null,null,null,null,null,null,null,null,null,null,null,null,null,null,null,null,null,null,null,null,null,null,null,null,null,null,null,null,null,null,null,null,null,null,null,"Principal business dispositions | GE Industrial"]
[null,null,null,null,null,null,null,null,null,null,null,null,null,null,null,null,null,null,null,null,null,null,null,null,null,null,null,null,null,null,null,null,null,null,null,null,null,null,null,null,null,"Cash flows – investing activities"]
[null,null,null,null,null,null,null,null,null,null,null,null,null,null,null,null,null,null,null,null,null,null,null,null,null,null,null,null,null,null,null,null,null,null,null,null,null,null,null,null,null,"Proceeds from sale of businesses",20394,1083,6047]

{"sheet":"Amazon Financial Statements","index":5,"n_rows":186,"n_cols":17,"rows_kept":186,"cut":false,"hidden":false,"merged":[]}
[null,null,null,null,null,2009,2010,2011,2012,2013,2014,2015,2016,2017,2018,2019]
[null,null,null,"Net product sales",null,22273,30792,42000,51733,60903,70080,79268,0,0,0,0]
[null,null,null,"Net service sales",null,2236,3412,6077,9360,13549,18908,27738,0,0,0,0]
[null,null,null,"Total net sales",null,24509,34204,48077,61093,74452,88988,107006,135987,177866,232887,280522]
[]
[null,null,null,"Cost of sales",null,18978,26561,37288,45971,54181,62752,71651,88265,111934,139156,165536]
[null,null,null,"Gross profit",null,{"$f":"F4-F6","v":5531},7643,10789,15122,20271,26236,35355,47722,65932,93731,114986]
[null,null,null,"Operating expenses:"]
[null,null,null,"Fulfillment",null,2052,2898,4576,6419,8585,10766,13410,17619,25249,34027,40232]
[null,null,null,"Marketing",null,680,1029,1630,2408,3133,4332,5254,7233,10069,13814,18878]
[null,null,null,"General and administrative",null,328,470,658,896,1129,1552,1747,2432,3674,4336,5203]
[null,null,null,"Technology and content",null,1240,1734,2909,4564,6565,9275,12540,16085,22620,28837,35931]
[null,null,null,"Other operating expense (income), net",null,102,106,154,159,114,133,171,167,214,296,201]
[null,null,null,"Total operating expenses",null,23380,32798,47215,60417,73707,88810,104773,131801,173760,220466,265981]
[null,null,null,"Operating income",null,{"$f":"F4-F14","v":1129},1406,862,676,745,178,2233,4186,4106,12421,14541]
[null,null,null,"Other income (expense), net",null,29,79,76,-80,-136,-118,-256,90,346,-183,203]
[null,null,null,"Interest expense",null,-34,-39,-65,-92,-141,-210,-459,-484,-848,-1417,-1600]
[null,null,null,"Interest income",null,37,51,61,40,38,39,50,100,202,440,832]
[null,null,null,"Total non-operating income (expense)",null,{"$f":"SUM(F16:F18)","v":32},{"$f":"SUM(G16:G18)","v":91},72,-132,-239,-289,-665,-294,-300,-1160,-565]
[null,null,null,"Income before income taxes",null,{"$f":"F15+F19","v":1161},{"$f":"G15+G19","v":1497},934,544,506,-111,1568,3892,3806,11261,13976]
[null,null,null,"Provision for income taxes",null,-253,-352,-291,-428,-161,-167,-950,-1425,-769,-1197,-2374]
[null,null,null,"Equity-method investment activity, net of tax",null,-6,7,-12,-155,-71,37,-22,-96,-4,9,-14]
[null,null,null,"Net income (loss)",null,{"$f":"F20+F21+F22","v":902},{"$f":"G20+G21+G22","v":1152},{"$f":"H20+H21+H22","v":631},-39,274,-241,596,2371,3033,10073,11588]
[]
[null,null,null,"Basic earnings per share",null,2.0799999237060547,2.5799999237060547,0,0,0.60000002384185791,-0.51999998092651367,1.2799999713897705,5.0100002288818359,6.320000171661377,20.680000305175781,23.459999084472656]
[null,null,null,"Basic (in shares)",null,433,447,453,453,457,462,467,474,480,487,494]
[null,null,null,"Diluted (in shares)",null,442,456,461,453,465,462,477,484,493,500,504]
[null,null,null,"Diluted earnings per share (in usd per share)",null,2.0399999618530273,2.5299999713897705,1.3700000047683716,-9.0000003576278687E-2,0.5899999737739563,-0.51999998092651367,1.25,4.9000000953674316,6.1500000953674316,20.139999389648438,23.010000228881836]
[]
[null,null,"Cash Flow"]
[null,null,null,"Net income",null,902,1152,631,-39,274,-241,596,2371,3033,10073,11588]
[null,null,null,"Depreciation of fixed assets, including internal-use software and website development, and other amortization",null,378,568,1083,2159,3253,4746,6281,8116,11478,15341,21789]
[null,null,null,"Deferred income taxes",null,81,4,136,-265,-156,-316,81,-246,-29,441,796]
[null,null,null,"Other expense (income), net",null,-15,-79,-56,253,166,59,250,-20,-292,219,-249]
[null,null,null,"Other operating expense (income), net",null,103,106,154,154,114,129,155,160,202,274,164]
[null,null,null,"Stock-based compensation",null,341,424,557,833,1134,1497,2119,2975,4215,5418,6864]
[null,null,null,"Losses (gains) on sales of marketable securities, net",null,-4,-2,-4,-9,1,0,0,0,0,0,0]
[null,null,null,"Excess tax benefits from stock-based compensation",null,-105,-259,-62,-429,-78,-6,-119,0,0,0,0]
[]
[null,null,null,"Accounts receivable, net and other",null,-481,-295,-866,-861,-846,-1039,-1755,-3436,-4780,-4615,-7681]
[null,null,null,"Inventories",null,-531,-1019,-1777,-999,-1410,-1193,-2187,-1426,-3583,-1314,-3278]
[null,null,null,"Accounts payable",null,1859,2373,2997,2070,1888,1759,4294,5030,7100,3263,8193]
[null,null,null,"Accrued expenses and other",null,300,740,1067,1038,736,706,913,1724,283,472,-1383]
[null,null,null,"Unearned revenue",null,0,0,0,0,0,0,0,1955,738,1151,1711]
[null,null,null,"Additions to unearned revenue",null,1054,687,1064,1796,2691,4433,7401,0,0,0,0]
[null,null,null,"Amortization of previously unearned revenue",null,-589,-905,-1021,-1521,-2292,-3692,-6109,0,0,0,0]
[null,null,null,"Net cash provided by (used in) operating activities",null,3293,3495,3903,4180,5475,6842,11920,17203,18365,30723,38514]
[]
[null,null,"INVESTING ACTIVITIES:"]
[null,null,null,"Proceeds from property and equipment incentives",null,null,null,null,null,null,null,null,1067,1897,2104,4172]
[null,null,null,"Purchases of property and equipment",null,-373,-979,-1811,-3785,-3444,-4893,-4589,-7804,-11955,-13427,-16861]
[null,null,null,"Acquisitions, net of cash acquired, and other",null,-40,-352,-705,-745,-312,-979,-795,-116,-13972,-2186,-2461]
[]
[null,null,"FINANCING ACTIVITIES:"]
[null,null,null,"Proceeds from Issuance of Long-term Debt",null,0,0,0,0,0,6359,353,0,0,0,0]
[null,null,null,"Common stock repurchased",null,0,0,-277,-960,0,0,0,0,0,0,0]
[null,null,null,"Principal repayments of finance leases",null,0,0,0,0,-5,-135,-121,-147,-4799,-7449,-9628]
[null,null,null,"Repayments of long-term debt and other",null,-472,-221,-444,-588,-775,-1285,-2462,-3860,-1301,-668,-2684]
[null,null,null,"Principal repayments of financing obligations",null,0,0,0,0,-231,-513,-1652,-327,-200,-337,-27]
[null,null,null,"Proceeds from long-term debt and other",null,87,143,177,3378,394,0,0,618,16228,768,2273]
[null,null,null,"Net cash provided by (used in) financing activities",null,-280,181,-482,2259,-539,4432,-3763,-3716,9928,-7686,-10066]
[null,null,null,"Foreign currency effect on cash, cash equivalents, and restricted cash",null,0,0,0,0,0,-310,-374,-212,713,-351,70]
[null,null,null,"Net increase (decrease) in cash, cash equivalents, and restricted cash",null,0,0,0,0,0,0,0,3759,1922,10317,4237]
[null,null,null,"Net cash provided by (used in) investing activities",null,0,0,-1930,-3595,-4276,-5065,-6450,-9516,-27084,-12369,-24281]
[null,null,null,"Sales and maturities of marketable securities",null,1966,4250,6843,4237,2306,3349,3025,4577,9677,8240,22681]
[null,null,null,"Purchases of marketable securities",null,0,0,0,0,2826,-2542,-4091,-7240,-12731,-7100,-31812]
[null,null,null,"Purchases of marketable securities and other investments",null,-3890,-6279,-6257,-3302,0,0,0,0,0,0,0]
[null,null,null,"Net cash used in investing activities",null,-2337,-3360,0,0,0,0,0,0,0,0,0]
[null,null,null,"Foreign-currency effect on cash and cash equivalents",null,-1,17,1,-29,-86,0,0,0,0,0,0]
[null,null,null,"Net increase (decrease) in cash and cash equivalents",null,0,0,1492,2815,574,5899,1333,0,0,0,0]
[null,null,null,"Net increase in cash and cash equivalents",null,675,333,0,0,0,0,0,0,0,0,0]
[null,null,"CASH AND CASH EQUIVALENTS, END OF PERIOD",null,null,3444,3777,5269,8084,8658,14557,15890,0,0,0,0]
[null,null,null,"Cash paid for interest on long term debt",null,32,11,0,0,0,0,0,0,0,0,0]
[null,null,null,"Cash paid for interest on long-term debt",null,0,0,14,31,97,91,325,290,328,854,875]
[null,null,null,"Cash paid for operating leases",null,0,0,0,0,0,0,0,0,0,0,3361]
[null,null,null,"Cash paid for interest on capital leases",null,0,0,0,0,0,0,0,0,200,381,0]
[null,null,null,"Assets Held under Capital Leases",null,0,0,0,0,0,0,0,0,0,0,0]
[null,null,null,"Cash paid for interest on capital and finance lease obligations",null,0,0,0,0,41,86,153,206,0,0,0]
[null,null,null,"Cash paid for interest on finance leases",null,0,0,0,0,0,0,0,0,0,0,647]
[]
[null,null,null,"Assets held under capital leases",null,0,0,0,0,0,0,0,0,0,0,0]
[null,null,null,"Cash paid for income taxes (net of refunds)",null,48,75,33,112,169,0,0,0,0,0,0]
[null,null,null,"Cash paid for interest on financing obligations",null,0,0,0,0,0,0,0,0,119,194,39]
[]
[null,null,null,"Cash paid for income taxes, net of refunds",null,0,0,0,0,0,177,273,412,-957,-1184,881]
[null,null,null,"SUPPLEMENTAL CASH FLOW INFORMATION:",null,0,0,0,0,0,0,0,0,0,0,0]
[null,null,null,"Assets Held under Build-To-Suit Leases",null,0,0,0,0,0,0,0,0,0,0,0]
[null,null,null,"Assets acquired under operating leases",null,0,0,0,0,0,0,0,0,0,0,7870]
[null,null,null,"Assets held under build-to-suit leases",null,0,0,0,0,0,0,0,0,0,0,0]
[null,null,null,"Fixed assets acquired",null,147,405,0,0,0,0,0,0,0,0,0]
[null,null,null,"Property and equipment acquired under finance leases",null,0,0,0,0,0,0,0,0,0,0,13723]
[null,null,null,"Property and equipment acquired",null,0,0,753,802,1867,4008,4717,0,0,0,0]
[null,null,null,"Property and equipment acquired under build-to-suit arrangements",null,0,0,0,0,0,0,0,0,3541,3641,1362]
[]
[]
[null,null,"OPERATING ACTIVITIES:",null,null,2009,2010,2011,2012,2013,2014,2015,2016,2017,2018,2019]
[null,null,null,"Net income",null,902,1152,631,-39,274,-241,596,2371,3033,10073,11588]
[null,null,null,"Depreciation of fixed assets, including internal-use software and website development, and other amortization",null,378,568,1083,2159,3253,4746,6281,8116,11478,15341,21789]
[null,null,null,"Deferred income taxes",null,81,4,136,-265,-156,-316,81,-246,-29,441,796]
[null,null,null,"Other expense (income), net",null,-15,-79,-56,253,166,59,250,-20,-292,219,-249]
[null,null,null,"Other operating expense (income), net",null,103,106,154,154,114,129,155,160,202,274,164]
[null,null,null,"Stock-based compensation",null,341,424,557,833,1134,1497,2119,2975,4215,5418,6864]
[null,null,null,"Losses (gains) on sales of marketable securities, net",null,-4,-2,-4,-9,1,0,0,0,0,0,0]
[null,null,null,"Excess tax benefits from stock-based compensation",null,-105,-259,-62,-429,-78,-6,-119,0,0,0,0]
[]
[null,null,null,"Accounts receivable, net and other",null,-481,-295,-866,-861,-846,-1039,-1755,-3436,-4780,-4615,-7681]
[null,null,null,"Inventories",null,-531,-1019,-1777,-999,-1410,-1193,-2187,-1426,-3583,-1314,-3278]
[null,null,null,"Accounts payable",null,1859,2373,2997,2070,1888,1759,4294,5030,7100,3263,8193]
[null,null,null,"Accrued expenses and other",null,300,740,1067,1038,736,706,913,1724,283,472,-1383]
[null,null,null,"Unearned revenue",null,0,0,0,0,0,0,0,1955,738,1151,1711]
[null,null,null,"Additions to unearned revenue",null,1054,687,1064,1796,2691,4433,7401,0,0,0,0]
[null,null,null,"Amortization of previously unearned revenue",null,-589,-905,-1021,-1521,-2292,-3692,-6109,0,0,0,0]
[null,null,null,"Net cash provided by (used in) operating activities",null,3293,3495,3903,4180,5475,6842,11920,17203,18365,30723,38514]
[null,null,"INVESTING ACTIVITIES:"]
[null,null,null,"Proceeds from property and equipment incentives",null,null,null,null,null,null,null,null,1067,1897,2104,4172]
[null,null,null,"Purchases of property and equipment",null,-373,-979,-1811,-3785,-3444,-4893,-4589,-7804,-11955,-13427,-16861]
[null,null,null,"Acquisitions, net of cash acquired, and other",null,-40,-352,-705,-745,-312,-979,-795,-116,-13972,-2186,-2461]
[null,null,"FINANCING ACTIVITIES:",null,null,0,0,0,0,0,0,0,0,0,0,0]
[null,null,null,"Proceeds from Issuance of Long-term Debt",null,0,0,0,0,0,6359,353,0,0,0,0]
[null,null,null,"Common stock repurchased",null,0,0,-277,-960,0,0,0,0,0,0,0]
[null,null,null,"Principal repayments of finance leases",null,0,0,0,0,-5,-135,-121,-147,-4799,-7449,-9628]
[null,null,null,"Repayments of long-term debt and other",null,-472,-221,-444,-588,-775,-1285,-2462,-3860,-1301,-668,-2684]
[null,null,null,"Principal repayments of financing obligations",null,0,0,0,0,-231,-513,-1652,-327,-200,-337,-27]
[null,null,null,"Proceeds from long-term debt and other",null,87,143,177,3378,394,0,0,618,16228,768,2273]
[null,null,null,"Net cash provided by (used in) financing activities",null,-280,181,-482,2259,-539,4432,-3763,-3716,9928,-7686,-10066]
[null,null,null,"Foreign currency effect on cash, cash equivalents, and restricted cash",null,0,0,0,0,0,-310,-374,-212,713,-351,70]
[null,null,null,"Net increase (decrease) in cash, cash equivalents, and restricted cash",null,0,0,0,0,0,0,0,3759,1922,10317,4237]
[null,null,null,"Net cash provided by (used in) investing activities",null,0,0,-1930,-3595,-4276,-5065,-6450,-9516,-27084,-12369,-24281]
[null,null,null,"Sales and maturities of marketable securities",null,1966,4250,6843,4237,2306,3349,3025,4577,9677,8240,22681]
[null,null,null,"Purchases of marketable securities",null,0,0,0,0,2826,-2542,-4091,-7240,-12731,-7100,-31812]
[null,null,null,"Purchases of marketable securities and other investments",null,-3890,-6279,-6257,-3302,0,0,0,0,0,0,0]
[null,null,null,"Net cash used in investing activities",null,-2337,-3360,0,0,0,0,0,0,0,0,0]
[null,null,null,"Foreign-currency effect on cash and cash equivalents",null,-1,17,1,-29,-86,0,0,0,0,0,0]
[null,null,null,"Net increase (decrease) in cash and cash equivalents",null,0,0,1492,2815,574,5899,1333,0,0,0,0]
[null,null,null,"Net increase in cash and cash equivalents",null,675,333,0,0,0,0,0,0,0,0,0]
[null,null,"CASH AND CASH EQUIVALENTS, END OF PERIOD",null,null,3444,3777,5269,8084,8658,14557,15890,0,0,0,0]
[null,null,null,"Cash paid for interest on long term debt",null,32,11,0,0,0,0,0,0,0,0,0]
[null,null,null,"Cash paid for interest on long-term debt",null,0,0,14,31,97,91,325,290,328,854,875]
[null,null,null,"Cash paid for operating leases",null,0,0,0,0,0,0,0,0,0,0,3361]
[null,null,null,"Cash paid for interest on capital leases",null,0,0,0,0,0,0,0,0,200,381,0]
[null,null,null,"Assets Held under Capital Leases",null,0,0,0,0,0,0,0,0,0,0,0]
[null,null,null,"Cash paid for interest on capital and finance lease obligations",null,0,0,0,0,41,86,153,206,0,0,0]
[null,null,null,"Cash paid for interest on finance leases",null,0,0,0,0,0,0,0,0,0,0,647]
[]
[null,null,null,"Assets held under capital leases",null,0,0,0,0,0,0,0,0,0,0,0]
[null,null,null,"Cash paid for income taxes (net of refunds)",null,48,75,33,112,169,0,0,0,0,0,0]
[null,null,null,"Cash paid for interest on financing obligations",null,0,0,0,0,0,0,0,0,119,194,39]
[]
[null,null,null,"Cash paid for income taxes, net of refunds",null,0,0,0,0,0,177,273,412,-957,-1184,881]
[null,null,null,"SUPPLEMENTAL CASH FLOW INFORMATION:",null,0,0,0,0,0,0,0,0,0,0,0]
[null,null,null,"Assets Held under Build-To-Suit Leases",null,0,0,0,0,0,0,0,0,0,0,0]
[null,null,null,"Assets acquired under operating leases",null,0,0,0,0,0,0,0,0,0,0,7870]
[null,null,null,"Assets held under build-to-suit leases",null,0,0,0,0,0,0,0,0,0,0,0]
[null,null,null,"Fixed assets acquired",null,147,405,0,0,0,0,0,0,0,0,0]
[null,null,null,"Property and equipment acquired under finance leases",null,0,0,0,0,0,0,0,0,0,0,13723]
[null,null,null,"Property and equipment acquired",null,0,0,753,802,1867,4008,4717,0,0,0,0]
[null,null,null,"Property and equipment acquired under build-to-suit arrangements",null,0,0,0,0,0,0,0,0,3541,3641,1362]
[]
[null,null,null,null,null,2009,2010,2011,2012,2013,2014,2015,2016,2017,2018,2019,2008]
[null,null,null,"Current assets:"]
[null,null,null,"Cash and cash equivalents",null,3444,3777,5269,8084,8658,14557,15890,19334,20522,31750,36092,2769]
[null,null,null,"Marketable securities",null,2922,4985,4307,3364,3789,2859,3918,6647,10464,9500,18929,958]
[null,null,null,"Inventories",null,2171,3202,4992,6031,7411,8299,10243,11461,16047,17174,20497,1399]
[null,null,null,"Accounts receivable, net and other",null,988,1587,2571,3817,4767,5612,5654,8339,13164,16677,20816,827]
[null,null,null,"Total current assets",null,9797,13747,17490,21296,24625,31327,35705,45781,60197,75101,96334,6157]
[null,null,null,"Property and equipment, net",null,1290,2414,4417,7060,10949,16967,21838,29114,48866,61797,72705,854]
[null,null,null,"Goodwill",null,1234,1349,1955,2552,2655,3319,3759,3784,13350,14548,14754,438]
[null,null,null,"Operating leases",null,0,0,0,0,0,0,0,0,0,0,25141,0]
[null,null,null,"Deferred tax assets",null,272,196,351,0,0,0,0,0,0,0,0,204]
[null,null,null,"Other assets",null,1474,1265,1388,1647,1930,2892,3445,4723,8897,11202,16314,720]
[null,null,null,"Total assets",null,13813,18797,25278,32555,40159,54505,64747,83402,131310,162648,225248,8314]
[null,null,null,"Current liabilities:"]
[null,null,null,"Accounts payable",null,5605,8051,11145,13318,15133,16459,20397,25309,34616,38192,47183,3594]
[null,null,null,"Unearned revenue",null,0,0,0,792,1159,1823,3118,4768,5097,6536,8190,0]
[null,null,null,"Accrued expenses and other",null,1759,2321,3751,4892,6688,9807,10372,13739,18170,23663,32439,1152]
[null,null,null,"Total current liabilities",null,7364,10372,14896,19002,22980,28089,33887,43816,57883,68391,87812,4746]
[null,null,null,"Long-term debt",null,109,1561,2625,3084,3191,8265,8227,7694,24743,23495,23414,409]
[null,null,null,"Long-term lease liabilities",null,0,0,0,0,0,0,0,0,0,9650,39791,0]
[null,null,null,"Other long-term liabilities",null,1083,0,0,2277,4242,7410,9249,12607,20975,17563,12171,487]
[null,null,null,"Preferred stock, $0.01 par value: Authorized shares - 500 Issued and outstanding shares - none",null,5,5,5,5,5,5,5,5,5,5,5,4]
[null,null,null,"Treasury stock, at cost",null,-600,-600,-877,-1837,-1837,-1837,-1837,-1837,-1837,-1837,-1837,-600]
[null,null,null,"Additional paid-in capital",null,5736,6325,6990,8347,9573,11135,13394,17186,21389,26791,33658,4121]
[null,null,null,"Accumulated other comprehensive income (loss)",null,-56,-190,-316,-239,-185,-511,-723,-985,-484,-1035,-986,-123]
[null,null,null,"Retained earnings",null,172,1324,1955,1916,2190,1949,2545,4916,8636,19625,31220,-730]
[null,null,null,"Total stockholders’ equity",null,5257,6864,7757,8192,9746,10741,13384,19285,27709,43549,62060,2672]
[null,null,null,"Total liabilities and stockholders’ equity",null,13813,18797,25278,32555,40159,54505,64747,83402,131310,162648,225248,8314]

{"sheet":"Sheet2","index":6,"n_rows":0,"n_cols":0,"rows_kept":0,"cut":false,"hidden":false,"merged":[]}